Workbook

Sheet Žebříček ZMĚNA (hidden)
A1: Přítomnost | B1: Přijmení | C1: Jméno | D1: Oddíl | E1: Check Rudná | F1: poř. | G1: příjmení | H1: jméno | I1: narození | J1: kategorie | K1: kateg. | L1: oddíl | M1: oddíl
B2: =CONCATENATE(G2," ",LEFT(H2,1),". ","(",L2,")") -> Vágner J. (Roztoky) | D2: =+L2 -> Roztoky | F2: 1 | G2: Vágner | H2: Jonáš | I2: 2005 | J2: D | K2: Hráč | L2: Roztoky | M2: Sokol Roztoky u Prahy
B3: =CONCATENATE(G3," ",LEFT(H3,1),". ","(",L3,")") -> Ciněk D. (Roztoky) | D3: =+L3 -> Roztoky | F3: 2 | G3: Ciněk | H3: David | I3: 2008 | J3: SŽ | K3: Člen | L3: Roztoky | M3: Sokol Roztoky u Prahy
A4: X | B4: Ducháček P. (Úholičky) | D4: Úholičky | F4: 3 | G4: Ducháček | H4: Petr | I4: 2009 | J4: MŽ | K4: Hráč | L4: Úholičky | M4: TJ Úholičky, z.s.
B5: Machek J. (Roztoky) | D5: Roztoky | F5: 4 | G5: Machek | H5: Jan | I5: 2008 | J5: SŽ | K5: Hráč | L5: Roztoky | M5: Sokol Roztoky u Prahy
B6: Vašků K. (Roztoky) | D6: Roztoky | F6: 5 | G6: Vašků | H6: Karolína | I6: 2010 | J6: MŽ | K6: Hráč | L6: Roztoky | M6: Sokol Roztoky u Prahy
A7: X | B7: Yosypenko M. (Úholičky) | D7: Úholičky | F7: 6 | G7: Yosypenko | H7: Michal | I7: 2008 | J7: SŽ | K7: Člen | L7: Úholičky | M7: TJ Úholičky, z.s.
B8: Müller V. (Davle) | D8: Davle | F8: 7 | G8: Müller | H8: Vojtěch | I8: 2009 | J8: MŽ | K8: Hráč | L8: Davle | M8: TJ. Slavoj Davle
A9: X | B9: Toman O. (Davle) | D9: Davle | F9: 8 | G9: Toman | H9: Olin | I9: 2008 | J9: SŽ | K9: Hráč | L9: Davle | M9: TJ. Slavoj Davle
B10: Kaláb M. (Roztoky) | D10: Roztoky | F10: 9 | G10: Kaláb | H10: Matyáš | I10: 2009 | J10: MŽ | K10: Neregistrován | L10: Roztoky | M10: Sokol Roztoky u Prahy
B11: Hora O. ( Rudná) | D11: Rudná | F11: 50 | G11: Hora | H11: Ondřej | I11: 2007 | J11: SŽ | K11: Hráč | L11: Rudná | M11: Sokol Rudná
B12: Kolbušovský M. ( Rudná) | D12: Rudná | F12: 10 | G12: Kolbušovský | H12: Michal | I12: 2005 | J12: D | K12: Hráč | L12: Rudná | M12: Sokol Rudná
A13: X | B13: Šťastný J. (Ořech) | D13: =+L13 -> Ořech | F13: 45 | G13: Šťastný | H13: Jan | I13: 2008 | J13: SŽ | K13: Hráč | L13: Ořech | M13: SK Viktorie Ořech
A14: X | B14: Frýdl L. ( Rudná) | D14: Rudná | F14: 70 | G14: Frýdl | H14: Lukáš | I14: 2010 | J14: MŽ | K14: Hráč | L14: Rudná | M14: Sokol Rudná
A15: X | B15: Šťastná D. (Ořech) | D15: =+L15 -> Ořech | F15: 54 | G15: Šťastná | H15: Dominika | I15: 2008 | J15: SŽ | K15: Hráč | L15: Ořech | M15: SK Viktorie Ořech
B16: Bosch M. ( Rudná) | D16: Rudná | F16: 69 | G16: Bosch | H16: Maxmilian | I16: 2005 | J16: D | K16: Hráč | L16: Rudná | M16: Sokol Rudná
A17: X | B17: Šťastná N. (Ořech) | D17: =+L17 -> Ořech | F17: 58 | G17: Šťastná | H17: Nataly | I17: 2008 | J17: SŽ | K17: Hráč | L17: Ořech | M17: SK Viktorie Ořech
B18: Bosch M. ( Rudná) | D18: Rudná | F18: 11 | G18: Bosch | H18: Maya | I18: 2008 | J18: SŽ | K18: Hráč | L18: Rudná | M18: Sokol Rudná
A19: X | B19: Jurenka D. ( Rudná) | D19: Rudná | F19: 12 | G19: Jurenka | H19: David | I19: 2007 | J19: SŽ | K19: Hráč | L19: Rudná | M19: Sokol Rudná
B20: Kalinová H. (Roztoky) | D20: Roztoky | F20: 13 | G20: Kalinová | H20: Hana | I20: 2009 | J20: MŽ | K20: Neregistrován | L20: Roztoky | M20: Sokol Roztoky u Prahy
B21: Cabicar Š. (Roztoky) | D21: Roztoky | F21: 14 | G21: Cabicar | H21: Šimon | I21: 2005 | J21: D | K21: Hráč | L21: Roztoky | M21: Sokol Roztoky u Prahy
A22: X | B22: Sazimová A. (Úholičky) | D22: Úholičky | F22: 15 | G22: Sazimová | H22: Adéla | I22: 2008 | J22: SŽ | K22: Člen | L22: Úholičky | M22: TJ Úholičky, z.s.
B23: Teichman P. ( Rudná) | D23: Rudná | F23: 16 | G23: Teichman | H23: Petr | I23: 2007 | J23: SŽ | K23: Hráč | L23: Rudná | M23: Sokol Rudná
A24: X | B24: Kutil T. ( Rudná) | D24: Rudná | F24: 17 | G24: Kutil | H24: Tomáš | I24: 2008 | J24: SŽ | K24: Hráč | L24: Rudná | M24: Sokol Rudná
A25: X | B25: Skyva M. (Davle) | D25: Davle | F25: 18 | G25: Skyva | H25: Michal | I25: 2006 | J25: D | K25: Hráč | L25: Davle | M25: TJ. Slavoj Davle
B26: Teichman R. ( Rudná) | D26: Rudná | F26: 19 | G26: Teichman | H26: Radim | I26: 2009 | J26: MŽ | K26: Hráč | L26: Rudná | M26: Sokol Rudná
B27: Stříbrný M. (Roztoky) | D27: Roztoky | F27: 20 | G27: Stříbrný | H27: Maxmilián | I27: 2006 | J27: D | K27: Neregistrován | L27: Roztoky | M27: Sokol Roztoky u Prahy
B28: Čepela O. (Roztoky) | D28: Roztoky | F28: 21 | G28: Čepela | H28: Ondřej | I28: 2008 | J28: SŽ | K28: Neregistrován | L28: Roztoky | M28: Sokol Roztoky u Prahy
B29: Nováková K. (Roztoky) | D29: Roztoky | F29: 22 | G29: Nováková | H29: Karolína | I29: 2005 | J29: D | K29: Člen | L29: Roztoky | M29: Sokol Roztoky u Prahy
A30: X | B30: Břečková A. (Úholičky) | D30: Úholičky | F30: 23 | G30: Břečková | H30: Aneta | I30: 2008 | J30: SŽ | K30: Člen | L30: Úholičky | M30: TJ Úholičky, z.s.
A31: X | B31: Knotek M. (Davle) | D31: Davle | F31: 24 | G31: Knotek | H31: Martin | I31: 2008 | J31: SŽ | K31: Hráč | L31: Davle | M31: TJ. Slavoj Davle
A32: X | B32: Kohoutková K. ( Rudná) | D32: Rudná | F32: 25 | G32: Kohoutková | H32: Karolína | I32: 2010 | J32: MŽ | K32: Hráč | L32: Rudná | M32: Sokol Rudná
B33: Pojerová G. (Libčice) | D33: Libčice | F33: 26 | G33: Pojerová | H33: Gabriela | I33: 2010 | J33: MŽ | K33: Člen | L33: Libčice | M33: Sokol Libčice nad Vltavou
A34: X | B34: Kuliš D. (Černošice) | D34: Černošice | F34: 27 | G34: Kuliš | H34: David | I34: 2007 | J34: SŽ | K34: Člen | L34: Černošice | M34: Sokol Černošice
A35: X | B35: Ducháček M. (Úholičky) | D35: Úholičky | F35: 28 | G35: Ducháček | H35: Michal | I35: 2013 | J35: NŽ | K35: Člen | L35: Úholičky | M35: TJ Úholičky, z.s.
B36: Lukáš L. (Roztoky) | D36: Roztoky | F36: 29 | G36: Lukáš | H36: Lukáš | I36: 2006 | J36: D | K36: Hráč | L36: Roztoky | M36: Sokol Roztoky u Prahy
B37: Lederer J. (Roztoky) | D37: Roztoky | F37: 30 | G37: Lederer | H37: Jan | I37: 2004 | J37: D | K37: Hráč | L37: Roztoky | M37: Sokol Roztoky u Prahy
B38: Kaláb A. (Roztoky) | D38: Roztoky | F38: 31 | G38: Kaláb | H38: Adam | I38: 2006 | J38: D | K38: Hráč | L38: Roztoky | M38: Sokol Roztoky u Prahy
B39: Černý V. (Roztoky) | D39: Roztoky | F39: 32 | G39: Černý | H39: Vojtěch | I39: 2008 | J39: SŽ | K39: Člen | L39: Roztoky | M39: Sokol Roztoky u Prahy
B40: Pajer F. (Černošice) | D40: Černošice | F40: 33 | G40: Pajer | H40: Filip | I40: 2005 | J40: D | K40: Hráč | L40: Černošice | M40: Sokol Černošice
B41: Dostálová A. (Libčice) | D41: Libčice | F41: 34 | G41: Dostálová | H41: Aneta | I41: 2009 | J41: MŽ | K41: Hráč | L41: Libčice | M41: Sokol Libčice nad Vltavou
B42: Klusoň M. (Úholičky) | D42: Úholičky | F42: 35 | G42: Klusoň | H42: Matyáš | I42: 2005 | J42: D | K42: Člen | L42: Úholičky | M42: TJ Úholičky, z.s.
B43: Konopásková K. (Úholičky) | D43: Úholičky | F43: 36 | G43: Konopásková | H43: Kristina | I43: 2004 | J43: D | K43: Hráč | L43: Úholičky | M43: TJ Úholičky, z.s.
B44: Walsh Z. (Úholičky) | D44: Úholičky | F44: 37 | G44: Walsh | H44: Zak | I44: 2007 | J44: SŽ | K44: Člen | L44: Úholičky | M44: TJ Úholičky, z.s.
B45: Kořínek H. (Úholičky) | D45: Úholičky | F45: 38 | G45: Kořínek | H45: Hubert | I45: 2008 | J45: SŽ | K45: Člen | L45: Úholičky | M45: TJ Úholičky, z.s.
B46: Dostál O. (Libčice) | D46: Libčice | F46: 39 | G46: Dostál | H46: Ondřej | I46: 2009 | J46: MŽ | K46: Hráč | L46: Libčice | M46: Sokol Libčice nad Vltavou
B47: Wolf V. (Černošice) | D47: Černošice | F47: 40 | G47: Wolf | H47: Vojtěch | I47: 2004 | J47: D | K47: Hráč | L47: Černošice | M47: Sokol Černošice
B48: Kříž F. (Úholičky) | D48: Úholičky | F48: 41 | G48: Kříž | H48: Filip | I48: 2007 | J48: SŽ | K48: Člen | L48: Úholičky | M48: TJ Úholičky, z.s.
B49: Lukáš F. (Roztoky) | D49: Roztoky | F49: 42 | G49: Lukáš | H49: Filip | I49: 2011 | J49: NŽ | K49: Hráč | L49: Roztoky | M49: Sokol Roztoky u Prahy
B50: Provazník A. (Černošice) | D50: Černošice | F50: 43 | G50: Provazník | H50: Adam | I50: 2005 | J50: D | K50: Člen | L50: Černošice | M50: Sokol Černošice
B51: Vokálková T. (Černošice) | D51: Černošice | F51: 44 | G51: Vokálková | H51: Tereza | I51: 2009 | J51: MŽ | K51: Člen | L51: Černošice | M51: Sokol Černošice
B52: Slapnička O. (Libčice) | D52: Libčice | F52: 46 | G52: Slapnička | H52: Ondřej | I52: 2009 | J52: MŽ | K52: Hráč | L52: Libčice | M52: Sokol Libčice nad Vltavou
B53: Carboch O. (Černošice) | D53: Černošice | F53: 47 | G53: Carboch | H53: Ondřej | I53: 2011 | J53: NŽ | K53: Člen | L53: Černošice | M53: Sokol Černošice
B54: Horony M. (Úholičky) | D54: Úholičky | F54: 48 | G54: Horony | H54: Martin | I54: 2007 | J54: SŽ | K54: Člen | L54: Úholičky | M54: TJ Úholičky, z.s.
B55: Hanzlík F. ( Rudná) | D55: Rudná | F55: 49 | G55: Hanzlík | H55: František | I55: 2006 | J55: D | K55: Hráč | L55: Rudná | M55: Sokol Rudná
B56: Housa J. (Černošice) | D56: Černošice | F56: 51 | G56: Housa | H56: Jiří | I56: 2007 | J56: SŽ | K56: Člen | L56: Černošice | M56: Sokol Černošice
B57: Matějovský J. ( Rudná) | D57: Rudná | F57: 52 | G57: Matějovský | H57: Jan | I57: 2005 | J57: D | K57: Hráč | L57: Rudná | M57: Sokol Rudná
B58: Marval J. ( Rudná) | D58: Rudná | F58: 53 | G58: Marval | H58: Jan | I58: 2008 | J58: SŽ | K58: Hráč | L58: Rudná | M58: Sokol Rudná
B59: Kutilová K. ( Rudná) | D59: Rudná | F59: 55 | G59: Kutilová | H59: KrIstýna | I59: 2009 | J59: MŽ | K59: Hráč | L59: Rudná | M59: Sokol Rudná
B60: Lundák P. (Davle) | D60: Davle | F60: 56 | G60: Lundák | H60: Pavel | I60: 2011 | J60: NŽ | K60: Hráč | L60: Davle | M60: TJ. Slavoj Davle
B61: Kohoutek J. ( Rudná) | D61: Rudná | F61: 57 | G61: Kohoutek | H61: Jakub | I61: 2008 | J61: SŽ | K61: Hráč | L61: Rudná | M61: Sokol Rudná
B62: Středa L. (Davle) | D62: Davle | F62: 59 | G62: Středa | H62: Lukáš | I62: 2010 | J62: MŽ | K62: Hráč | L62: Davle | M62: TJ. Slavoj Davle
B63: Hron M. (Černošice) | D63: Černošice | F63: 60 | G63: Hron | H63: Matyáš | I63: 2009 | J63: MŽ | K63: Hráč | L63: Černošice | M63: Sokol Černošice
B64: Patras M. (Libčice) | D64: Libčice | F64: 61 | G64: Patras | H64: Matyáš | I64: 2007 | J64: SŽ | K64: Člen | L64: Libčice | M64: Sokol Libčice nad Vltavou
B65: Framberk M. (Libčice) | D65: Libčice | F65: 62 | G65: Framberk | H65: Mikuláš | I65: 2013 | J65: NŽ | K65: Člen | L65: Libčice | M65: Sokol Libčice nad Vltavou
B66: Auf T. (Ořech) | D66: Ořech | F66: 63 | G66: Auf | H66: Tadeáš | I66: 2006 | J66: D | K66: Hráč | L66: Ořech | M66: SK Viktorie Ořech
B67: =CONCATENATE(G67," ",LEFT(H67,1),". ","(",L67,")") -> Smetanková A. ( Rudná) | D67: =+L67 -> Rudná | F67: 64 | G67: Smetanková | H67: Amálie | I67: 2010 | J67: MŽ | K67: Člen | L67: Rudná | M67: Sokol Rudná
B68: Hudák T. (Ořech) | D68: Ořech | F68: 65 | G68: Hudák | H68: Tomáš | I68: 2004 | J68: D | K68: Hráč | L68: Ořech | M68: SK Viktorie Ořech
B69: Freislebenová S. (Unětice) | D69: Unětice | F69: 66 | G69: Freislebenová | H69: Sára | I69: 2005 | J69: D | K69: Hráč | L69: Unětice | M69: TJ Sokol Unětice
B70: Kuchtová K. (Roztoky) | D70: Roztoky | F70: 67 | G70: Kuchtová | H70: Klára | I70: 2005 | J70: D | K70: Hráč | L70: Roztoky | M70: Sokol Roztoky u Prahy
B71: Švarcová L. ( Rudná) | D71: Rudná | F71: 68 | G71: Švarcová | H71: Liana | I71: 2009 | J71: MŽ | K71: Člen | L71: Rudná | M71: Sokol Rudná
B72: Šenfeldová A. (Úholičky) | D72: Úholičky | F72: 71 | G72: Šenfeldová | H72: Aneta | I72: 2008 | J72: SŽ | K72: Člen | L72: Úholičky | M72: TJ Úholičky, z.s.
B73: Rein T. (Ořech) | D73: Ořech | F73: 72 | G73: Rein | H73: Tomáš | I73: 2005 | J73: D | K73: Hráč | L73: Ořech | M73: SK Viktorie Ořech
B74: Němejc M. (Ořech) | D74: Ořech | F74: 73 | G74: Němejc | H74: Melichar | I74: 2005 | J74: D | K74: Hráč | L74: Ořech | M74: SK Viktorie Ořech
B75: Ponáhlo M. (Libčice) | D75: Libčice | F75: 74 | G75: Ponáhlo | H75: Michal | I75: 2007 | J75: SŽ | K75: Člen | L75: Libčice | M75: Sokol Libčice nad Vltavou
B76: Carboch V. (Černošice) | D76: Černošice | F76: 75 | G76: Carboch | H76: Vilém | I76: 2007 | J76: SŽ | K76: Člen | L76: Černošice | M76: Sokol Černošice

Sheet navody
A1: Videonávody k ovládání aplikace BTM:
A2: https://drive.google.com/drive/folders/1iv2HqN3UQiRS3o0PYjKYasSOHfg-EvPz
A6: Divize 3 [var. C] - B - rozrazovaci [var. A] | F6: Hracu: | G6: 5 | H6: Zapasu: | I6: 10 | J6: Zbyva: | K6: 9
C7: Bosch M. (Rud) | E7: Suchý M. (Čer) | G7: Drašar J. (Mní) | I7: Teichman P. (Rud) | K7: Šťastná N. (Oře) | M7: Sety | N7: Body | O7: Pozice
A8: Bosch M. (Rud) | E8: 1 | F8: 0 | G8: 0 | H8: 1 | I8: 1 | J8: 0 | K8: 0 | L8: 1 | M8: 2:2 | N8: 2
A9: Suchý M. (Čer) | C9: 0 | D9: 1 | G9: 0 | H9: 1 | I9: 1 | J9: 0 | K9: 3 | L9: 1 | M9: 4:3 | N9: 2
A10: Drašar J. (Mní) | C10: 1 | D10: 0 | E10: 1 | F10: 0 | I10: 1 | J10: 0 | K10: 1 | L10: 0 | M10: 4:0 | N10: 4 | O10: 1
A11: Teichman P. (Rud) | C11: 0 | D11: 1 | E11: 0 | F11: 1 | G11: 0 | H11: 1 | K11: 0 | L11: 1 | M11: 0:4 | N11: 0 | O11: 5
A12: Šťastná N. (Oře) | C12: 1 | D12: 0 | E12: 1 | F12: 3 | G12: 0 | H12: 1 | I12: 1 | J12: 0 | M12: 3:4 | N12: 2
A14: udelam jen minitabulku
A16: Divize 3 [var. C] - B - rozrazovaci [var. A] | F16: Hracu: | G16: 5 | H16: Zapasu: | I16: 10 | J16: Zbyva: | K16: 9
C17: Bosch M. (Rud) | E17: Suchý M. (Čer) | K17: Šťastná N. (Oře) | M17: Sety | N17: Body | O17: Pozice
A18: Bosch M. (Rud) | E18: 1 | F18: 0 | K18: 0 | L18: 1 | M18: 1:1 | N18: 1 | O18: 3
A19: Suchý M. (Čer) | C19: 0 | D19: 1 | K19: 3 | L19: 1 | M19: 3:2 | N19: 1 | O19: 2
A22: Šťastná N. (Oře) | C22: 1 | D22: 0 | E22: 1 | F22: 3 | M22: 2:3 | N22: 1 | O22: 4
A24: všichni mají stejný počet bodů, proto se hodnotí poměr setů a z toho lze již pořadí určit
A25: případně kdyby měli všichni jede z nich měl jiný počet bodů (případně poměr setů) tak by se určilo jeho místo a pro ostatní by se udělala minitabulka
A26: kdyby i vše víše uvedené bylo stejné tak se rozhodne losem

Sheet berger
A1: berger | B1: domaci | C1: host
A2: b_2 | B2: 1 | C2: 2
A3: b_4 | B3: 1 | C3: 4
A4: b_4 | B4: 2 | C4: 3
A5: b_4 | B5: 4 | C5: 3
A6: b_4 | B6: 1 | C6: 2
A7: b_4 | B7: 2 | C7: 4
A8: b_4 | B8: 3 | C8: 1
A9: b_6 | B9: 1 | C9: 6
A10: b_6 | B10: 2 | C10: 5
A11: b_6 | B11: 3 | C11: 4
A12: b_6 | B12: 6 | C12: 4
A13: b_6 | B13: 5 | C13: 3
A14: b_6 | B14: 1 | C14: 2
A15: b_6 | B15: 2 | C15: 6
A16: b_6 | B16: 3 | C16: 1
A17: b_6 | B17: 4 | C17: 5
A18: b_6 | B18: 6 | C18: 5
A19: b_6 | B19: 1 | C19: 4
A20: b_6 | B20: 2 | C20: 3
A21: b_6 | B21: 3 | C21: 6
A22: b_6 | B22: 4 | C22: 2
A23: b_6 | B23: 5 | C23: 1
A24: b_8 | B24: 1 | C24: 8
A25: b_8 | B25: 2 | C25: 7
A26: b_8 | B26: 3 | C26: 6
A27: b_8 | B27: 4 | C27: 5
A28: b_8 | B28: 8 | C28: 5
A29: b_8 | B29: 6 | C29: 4
A30: b_8 | B30: 7 | C30: 3
A31: b_8 | B31: 1 | C31: 2
A32: b_8 | B32: 2 | C32: 8
A33: b_8 | B33: 3 | C33: 1
A34: b_8 | B34: 4 | C34: 7
A35: b_8 | B35: 5 | C35: 6
A36: b_8 | B36: 8 | C36: 6
A37: b_8 | B37: 7 | C37: 5
A38: b_8 | B38: 1 | C38: 4
A39: b_8 | B39: 2 | C39: 3
A40: b_8 | B40: 3 | C40: 8
A41: b_8 | B41: 4 | C41: 2
A42: b_8 | B42: 5 | C42: 1
A43: b_8 | B43: 6 | C43: 7
A44: b_8 | B44: 8 | C44: 7
A45: b_8 | B45: 1 | C45: 6
A46: b_8 | B46: 2 | C46: 5
A47: b_8 | B47: 3 | C47: 4
A48: b_8 | B48: 4 | C48: 8
A49: b_8 | B49: 5 | C49: 3
A50: b_8 | B50: 6 | C50: 2
A51: b_8 | B51: 7 | C51: 1
A52: b_10 | B52: 1 | C52: 10
A53: b_10 | B53: 2 | C53: 9
A54: b_10 | B54: 3 | C54: 8
A55: b_10 | B55: 4 | C55: 7
A56: b_10 | B56: 5 | C56: 6
A57: b_10 | B57: 10 | C57: 6
A58: b_10 | B58: 7 | C58: 5
A59: b_10 | B59: 8 | C59: 4
A60: b_10 | B60: 9 | C60: 3
A61: b_10 | B61: 1 | C61: 2
A62: b_10 | B62: 2 | C62: 10
A63: b_10 | B63: 3 | C63: 1
A64: b_10 | B64: 4 | C64: 9
A65: b_10 | B65: 5 | C65: 8
A66: b_10 | B66: 6 | C66: 7
A67: b_10 | B67: 10 | C67: 7
A68: b_10 | B68: 8 | C68: 6
A69: b_10 | B69: 9 | C69: 5
A70: b_10 | B70: 1 | C70: 4
A71: b_10 | B71: 2 | C71: 3
A72: b_10 | B72: 3 | C72: 10
A73: b_10 | B73: 4 | C73: 2
A74: b_10 | B74: 5 | C74: 1
A75: b_10 | B75: 6 | C75: 9
A76: b_10 | B76: 7 | C76: 8
A77: b_10 | B77: 10 | C77: 8
A78: b_10 | B78: 9 | C78: 7
A79: b_10 | B79: 1 | C79: 6
A80: b_10 | B80: 2 | C80: 5
A81: b_10 | B81: 3 | C81: 4
A82: b_10 | B82: 4 | C82: 10
A83: b_10 | B83: 5 | C83: 3
A84: b_10 | B84: 6 | C84: 2
A85: b_10 | B85: 7 | C85: 1
A86: b_10 | B86: 8 | C86: 9
A87: b_10 | B87: 10 | C87: 9
A88: b_10 | B88: 1 | C88: 8
A89: b_10 | B89: 2 | C89: 7
A90: b_10 | B90: 3 | C90: 6
A91: b_10 | B91: 4 | C91: 5
A92: b_10 | B92: 5 | C92: 10
A93: b_10 | B93: 6 | C93: 4
A94: b_10 | B94: 7 | C94: 3
A95: b_10 | B95: 8 | C95: 2
A96: b_10 | B96: 9 | C96: 1
A97: b_12 | B97: 1 | C97: 12
A98: b_12 | B98: 2 | C98: 11
A99: b_12 | B99: 3 | C99: 10
A100: b_12 | B100: 4 | C100: 9
A101: b_12 | B101: 5 | C101: 8
A102: b_12 | B102: 6 | C102: 7
A103: b_12 | B103: 12 | C103: 7
A104: b_12 | B104: 8 | C104: 6
A105: b_12 | B105: 9 | C105: 5
A106: b_12 | B106: 10 | C106: 4
A107: b_12 | B107: 11 | C107: 3
A108: b_12 | B108: 1 | C108: 2
A109: b_12 | B109: 2 | C109: 12
A110: b_12 | B110: 3 | C110: 1
A111: b_12 | B111: 4 | C111: 11
A112: b_12 | B112: 5 | C112: 10
A113: b_12 | B113: 6 | C113: 9
A114: b_12 | B114: 7 | C114: 8
A115: b_12 | B115: 12 | C115: 8
A116: b_12 | B116: 9 | C116: 7
A117: b_12 | B117: 10 | C117: 6
A118: b_12 | B118: 11 | C118: 5
A119: b_12 | B119: 1 | C119: 4
A120: b_12 | B120: 2 | C120: 3
A121: b_12 | B121: 3 | C121: 12
A122: b_12 | B122: 4 | C122: 2
A123: b_12 | B123: 5 | C123: 1
A124: b_12 | B124: 6 | C124: 11
A125: b_12 | B125: 7 | C125: 10
A126: b_12 | B126: 8 | C126: 9
A127: b_12 | B127: 12 | C127: 9
A128: b_12 | B128: 10 | C128: 8
A129: b_12 | B129: 11 | C129: 7
A130: b_12 | B130: 1 | C130: 6
A131: b_12 | B131: 2 | C131: 5
A132: b_12 | B132: 3 | C132: 4
A133: b_12 | B133: 4 | C133: 12
A134: b_12 | B134: 5 | C134: 3
A135: b_12 | B135: 6 | C135: 2
A136: b_12 | B136: 7 | C136: 1
A137: b_12 | B137: 8 | C137: 11
A138: b_12 | B138: 9 | C138: 10
A139: b_12 | B139: 12 | C139: 10
A140: b_12 | B140: 11 | C140: 9
A141: b_12 | B141: 1 | C141: 8
A142: b_12 | B142: 2 | C142: 7
A143: b_12 | B143: 3 | C143: 6
A144: b_12 | B144: 4 | C144: 5
A145: b_12 | B145: 5 | C145: 12
A146: b_12 | B146: 6 | C146: 4
A147: b_12 | B147: 7 | C147: 3
A148: b_12 | B148: 8 | C148: 2
A149: b_12 | B149: 9 | C149: 1
A150: b_12 | B150: 10 | C150: 11
A151: b_12 | B151: 12 | C151: 11
A152: b_12 | B152: 1 | C152: 10
A153: b_12 | B153: 2 | C153: 9
A154: b_12 | B154: 3 | C154: 8
A155: b_12 | B155: 4 | C155: 7
A156: b_12 | B156: 5 | C156: 6
A157: b_12 | B157: 6 | C157: 12
A158: b_12 | B158: 7 | C158: 5
A159: b_12 | B159: 8 | C159: 4
A160: b_12 | B160: 9 | C160: 3
A161: b_12 | B161: 10 | C161: 2
A162: b_12 | B162: 11 | C162: 1
A163: b_14 | B163: 1 | C163: 14
A164: b_14 | B164: 2 | C164: 13
A165: b_14 | B165: 3 | C165: 12
A166: b_14 | B166: 4 | C166: 11
A167: b_14 | B167: 5 | C167: 10
A168: b_14 | B168: 6 | C168: 9
A169: b_14 | B169: 7 | C169: 8
A170: b_14 | B170: 14 | C170: 8
A171: b_14 | B171: 9 | C171: 7
A172: b_14 | B172: 10 | C172: 6
A173: b_14 | B173: 11 | C173: 5
A174: b_14 | B174: 12 | C174: 4
A175: b_14 | B175: 13 | C175: 3
A176: b_14 | B176: 1 | C176: 2
A177: b_14 | B177: 2 | C177: 14
A178: b_14 | B178: 3 | C178: 1
A179: b_14 | B179: 4 | C179: 13
A180: b_14 | B180: 5 | C180: 12
A181: b_14 | B181: 6 | C181: 11
A182: b_14 | B182: 7 | C182: 10
A183: b_14 | B183: 8 | C183: 9
A184: b_14 | B184: 14 | C184: 9
A185: b_14 | B185: 10 | C185: 8
A186: b_14 | B186: 11 | C186: 7
A187: b_14 | B187: 12 | C187: 6
A188: b_14 | B188: 13 | C188: 5
A189: b_14 | B189: 1 | C189: 4
A190: b_14 | B190: 2 | C190: 3
A191: b_14 | B191: 3 | C191: 14
A192: b_14 | B192: 4 | C192: 2
A193: b_14 | B193: 5 | C193: 1
A194: b_14 | B194: 6 | C194: 13
A195: b_14 | B195: 7 | C195: 12
A196: b_14 | B196: 8 | C196: 11
A197: b_14 | B197: 9 | C197: 10
A198: b_14 | B198: 14 | C198: 10
A199: b_14 | B199: 11 | C199: 9
A200: b_14 | B200: 12 | C200: 8
... 53 more rows

Sheet Body_old (hidden)
A1: Divize | B1: D1 | C1: D2 | D1: D3 | E1: D4 | F1: D5 | G1: D6 | H1: D7 | I1: D8
A2: 1. | B2: 600 | C2: 530 | D2: 460 | E2: 390 | F2: 320 | G2: 250 | H2: 180 | I2: 110
A3: 2. | B3: 580 | C3: 510 | D3: 440 | E3: 370 | F3: 300 | G3: 230 | H3: 160 | I3: 90
A4: 3. | B4: 570 | C4: 500 | D4: 430 | E4: 360 | F4: 290 | G4: 220 | H4: 150 | I4: 80
A5: 4. | B5: 560 | C5: 490 | D5: 420 | E5: 350 | F5: 280 | G5: 210 | H5: 140 | I5: 70
A6: 5. | B6: 550 | C6: 480 | D6: 410 | E6: 340 | F6: 270 | G6: 200 | H6: 130 | I6: 60
A7: 6. | B7: 540 | C7: 470 | D7: 400 | E7: 330 | F7: 260 | G7: 190 | H7: 120 | I7: 50
A8: 7. | B8: 530 | C8: 460 | D8: 390 | E8: 320 | F8: 250 | G8: 180 | H8: 110 | I8: 40
A9: 8. | B9: 520 | C9: 450 | D9: 380 | E9: 310 | F9: 240 | G9: 170 | H9: 100 | I9: 30

Sheet body
A1: Průběžné | B1: 1. | C1: 2. | D1: 3. | E1: 4. | F1: 5. | G1: 6. | H1: 7. | I1: 8. | J1: 9. | K1: 10. | L1: 11. | M1: 12.
A2: D1 | B2: 2000 | C2: =B2-30 -> 1970 | D2: 1940 | E2: =D2-20 -> 1920 | F2: =E2-20 -> 1900 | G2: 1880 | H2: 1860 | I2: 1840 | J2: 1820 | K2: 1800 | L2: 1780 | M2: 1760
A3: D2 | B3: =H2+10 -> 1870 | C3: 1840 | D3: 1810 | E3: =D3-20 -> 1790 | F3: 1770 | G3: 1750 | H3: 1730 | I3: 1710 | J3: 1690 | K3: 1670 | L3: 1650 | M3: 1630
A4: D3 | B4: 1740 | C4: 1710 | D4: 1680 | E4: 1660 | F4: 1640 | G4: 1620 | H4: 1600 | I4: 1580 | J4: 1560 | K4: 1540 | L4: 1520 | M4: 1500
A5: D4 | B5: 1610 | C5: 1580 | D5: 1550 | E5: 1530 | F5: 1510 | G5: 1490 | H5: 1470 | I5: 1450 | J5: 1430 | K5: 1410 | L5: 1390 | M5: 1370
A6: D5 | B6: 1480 | C6: 1450 | D6: 1420 | E6: 1400 | F6: 1380 | G6: 1360 | H6: 1340 | I6: 1320 | J6: 1300 | K6: 1280 | L6: 1260 | M6: 1240
A7: D6 | B7: 1350 | C7: 1320 | D7: 1290 | E7: 1270 | F7: 1250 | G7: 1230 | H7: 1210 | I7: 1190 | J7: 1170 | K7: 1150 | L7: 1130 | M7: 1110
A8: D7 | B8: 1220 | C8: 1190 | D8: 1160 | E8: 1140 | F8: 1120 | G8: 1100 | H8: 1080 | I8: 1060 | J8: 1040 | K8: 1020 | L8: 1000 | M8: 980
A9: D8 | B9: 1090 | C9: 1060 | D9: 1030 | E9: 1010 | F9: 990 | G9: 970 | H9: 950 | I9: 930 | J9: 910 | K9: 890 | L9: 870 | M9: 850
A10: D9 | B10: 960 | C10: 930 | D10: 900 | E10: 880 | F10: 860 | G10: 840 | H10: 820 | I10: 800 | J10: 780 | K10: 760 | L10: 740 | M10: 720
A11: D10 | B11: 830 | C11: 800 | D11: 770 | E11: 750 | F11: 730 | G11: 710 | H11: 690 | I11: 670 | J11: 650 | K11: 630 | L11: 610 | M11: 590
A20: Výchozí | B20: 1. | C20: 2. | D20: 3. | E20: 4. | F20: 5. | G20: 6. | H20: 7. | I20: 8.
A21: D1 | B21: 2000 | C21: =B21-17 -> 1983 | D21: =C21-17 -> 1966 | E21: =D21-16 -> 1950 | F21: 1934 | G21: 1918 | H21: 1902 | I21: 1886
A22: D2 | B22: =I21-16 -> 1870 | C22: =B22-17 -> 1853 | D22: =C22-17 -> 1836 | E22: =D22-16 -> 1820 | F22: 1804 | G22: 1788 | H22: 1772 | I22: 1756
A23: D3 | B23: =I22-16 -> 1740 | C23: =B23-17 -> 1723 | D23: 1706 | E23: =D23-16 -> 1690 | F23: 1674 | G23: 1658 | H23: 1642 | I23: 1626
A24: D4 | B24: 1610 | C24: =B24-17 -> 1593 | D24: 1576 | E24: =D24-16 -> 1560 | F24: 1544 | G24: 1528 | H24: 1512 | I24: 1496
A25: D5 | B25: 1480 | C25: =B25-17 -> 1463 | D25: 1446 | E25: =D25-16 -> 1430 | F25: 1414 | G25: 1398 | H25: 1382 | I25: 1366
A26: D6 | B26: 1350 | C26: =B26-17 -> 1333 | D26: 1316 | E26: =D26-16 -> 1300 | F26: 1284 | G26: 1268 | H26: 1252 | I26: 1236
A27: D7 | B27: 1220 | C27: =B27-17 -> 1203 | D27: 1186 | E27: =D27-16 -> 1170 | F27: 1154 | G27: 1138 | H27: 1122 | I27: 1106
A28: D8 | B28: 1090 | C28: =B28-17 -> 1073 | D28: 1056 | E28: =D28-16 -> 1040 | F28: 1024 | G28: 1008 | H28: 992 | I28: 976
A29: D9 | B29: 960 | C29: =B29-17 -> 943 | D29: 926 | E29: =D29-16 -> 910 | F29: 894 | G29: 878 | H29: 862 | I29: 846
A30: D10 | B30: 830 | C30: =B30-17 -> 813 | D30: 796 | E30: =D30-16 -> 780 | F30: 764 | G30: 748 | H30: 732 | I30: 716

Sheet info
A2: Herní systém A (každý s každým)
A3: Kolik hráčů podporuje: | B3: 14
A5: Počet zápasů: | B5: hráčů | C5: systém | D5: počet zápasů
B6: 4 | C6: A | D6: =computeCountOfMatch(B6:C6) -> 6
B7: 5 | C7: A | D7: 10
B8: 6 | C8: A | D8: 15
B9: 7 | C9: A | D9: 21
B10: 8 | C10: A | D10: 28
B11: 9 | C11: A | D11: 36
B12: 10 | C12: A | D12: 45
B13: 11 | C13: A | D13: 55
B14: 12 | C14: A | D14: 66
B15: 13 | C15: A | D15: 78
B16: 14 | C16: A | D16: 91
A18: Popis: | B18: Jedná se o klasický systém, kdy hraje každý s každým. Pořadí zápasů podle bergerových tabulek.
A22: Herní systém B (rozřazovací zápasy a pak dvě 4-členné tabulky o umístění)
A23: Kolik hráčů podporuje: | B23: 14
A25: Počet zápasů: | B25: hráčů | C25: systém | D25: počet zápasů
B26: 6 | C26: B | D26: =computeCountOfMatch(B26:C26) -> 9
B27: 7 | C27: B | D27: 12
B28: 8 | C28: B | D28: 16
B29: 9 | C29: B | D29: 20
B30: 10 | C30: B | D30: 25
B31: 11 | C31: B | D31: 30
B32: 12 | C32: B | D32: 36
B33: 13 | C33: B | D33: 42
B34: 14 | C34: B | D34: 49
A36: Popis:
A37: 1. | B37: utvoří se 4 dvojice hráčů, tak že první 4 jsou nasazeni a k nim se náhodně dolosují zbylí 4
A38: 2. | B38: vítěz z každé dvojice jde do horní tabulky, poražený do spodní tabulky
A39: 3. | B39: horní 4-členná tabulka hraje o 1-4. místo
A40: 4. | B40: spodní 4-členná tabulka hraje o 5-8 místo
A42: Nevýhody: | B42: první zápas (náhlá smrt) rozhoduje o umístění v celém turnaji
B43: pokud mám lichý počet hráčů, tak kam s tím lichým hráčem, když ho dám do horní tak ho zvýhodňuju, když do spodní tak ho diskriminuju.
A46: Herní systém C ( dvě 4-členné tabulky o rozdělení do pavouka, první a druhý jdou do horního pavouka, třetí a čtvrtý jde do spodního pavouka )
A47: Kolik hráčů podporuje: | B47: 12
A49: Počet zápasů: | B49: hráčů | C49: systém | D49: počet zápasů
B50: 6 | C50: C | D50: =computeCountOfMatch(B50:C50) -> 10
B51: 7 | C51: C | D51: 15
B52: 8 | C52: C | D52: 20
B53: 9 | C53: C | D53: 24
B54: 10 | C54: C | D54: 29
B55: 11 | C55: C | D55: 35
B56: 12 | C56: C | D56: 42
A58: Popis:
A59: 1. | B59: utvoří se 2 tabulky tak že nasazená 1. se dá do tab1 a nasazená 2. do tab2
A60: 2. | B60: náhodně se losuje mezi 3 a 4 kdo půjde do jaké tabulky
A61: 3. | B61: náhodně se losuje mezi 5, 6, 7 a 8 hráčem kdo půjde do jaké tabulky
A62: 4. | B62: ve druhém kole se hraje pavouk o 1-2 místo s dohráváním o 3-4 místo. Do pavouka postupují hráči z 1. a 2. místa z obou tabulek
A63: 5. | B63: ve druhém kole se hraje pavouk o 5-6 místo s dohráváním o 7-8 místo. Do pavouka postupují hráči z 3. a 4. místa z obou tabulek
A65: Nevýhody: | B65: jen trochu více zápasů
A69: Herní systém D ( dvě 4-členné tabulky o rozdělení do zápasů o umístění vítězové tabulek hrají spolu o 1. a 2. místo, druzí hrají o 3. a 4. místo, ... )
A70: Kolik hráčů podporuje: | B70: 12
A72: Počet zápasů: | B72: hráčů | C72: systém | D72: počet zápasů
B73: 6 | C73: D | D73: =computeCountOfMatch(B73:C73) -> 9
B74: 7 | C74: D | D74: 12
B75: 8 | C75: D | D75: 16
B76: 9 | C76: D | D76: 20
B77: 10 | C77: D | D77: 25
B78: 11 | C78: D | D78: 30
B79: 12 | C79: D | D79: 36
A81: Popis:
A82: 1. | B82: utvoří se 2 tabulky tak že nasazená 1. se dá do tab1 a nasazená 2. do tab2
A83: 2. | B83: náhodně se losuje mezi 3 a 4 kdo půjde do jaké tabulky
A84: 3. | B84: náhodně se losuje mezi 5, 6, 7 a 8 hráčem kdo půjde do jaké tabulky
A85: 4. | B85: ve druhém kole hrají vítězové tabulek o 1. a 2. místo, hráči na druhém místě o 3. a 4. místo, hráči na třetím místě tabulek o 5. a 6. místo, ….
A87: Nevýhody: | B87: o trochu lepší než varianta B, ale už jedna prohra v tabulce může znamenat že zmizela šance na výhru.

Sheet cfgNasazeniSkPavouk
A1: pozice v pavouku/Počet skupin | B1: 1 | C1: 2 | D1: 3 | E1: 4
A2: 1 | B2: s1_1|01 | C2: s1_1|01 | D2: s1_1|01 | E2: s1_1|01
A3: 2 | B3: s1_8|08 | C3: s2_4|08 | E3: s3_2|07
A4: 3 | B4: s1_5|05 | C4: s1_3|05 | D4: s3_2|06 | E4: s2_2|06
A5: 4 | B5: s1_4|04 | C5: s2_2|04 | D5: s1_2|04 | E5: s4_1|04
A6: 5 | B6: s1_3|03 | C6: s1_2|03 | D6: s3_1|03 | E6: s3_1|03
A7: 6 | B7: s1_6|06 | C7: s2_3|06 | D7: s2_2|05 | E7: s1_2|05
A8: 7 | B8: s1_7|07 | C8: s1_4|07 | E8: s4_2|08
A9: 8 | B9: s1_2|02 | C9: s2_1|02 | D9: s2_1|02 | E9: s2_1|02
A11: pozice v pavouku/Počet skupin | B11: 1 | C11: 2 | D11: 3 | E11: 4 | F11: 5 | G11: 6 | H11: 7 | I11: 8
A12: 1 | B12: s1_1|01 | C12: s1_1|01 | D12: s1_1|01 | E12: s1_1|01 | F12: s1_1|01 | G12: s1_1|01 | H12: s1_1|01 | I12: s1_1|01
A13: 2 | B13: s1_16|16 | C13: s2_8|16 | E13: s4_4|16 | I13: s8_2|16
A14: 3 | B14: s1_7|07 | C14: s2_4|08 | D14: s2_3|08 | E14: s3_2|07 | F14: s2_2|07 | G14: s2_2|08 | H14: s7_1|07 | I14: s7_1|07
A15: 4 | B15: s1_10|10 | C15: s1_5|09 | D15: s3_3|09 | E15: s2_3|10 | F15: s3_2|08 | G15: s3_2|09 | H15: s2_2|09 | I15: s2_2|10
A16: 5 | B16: s1_6|06 | C16: s1_3|05 | D16: s3_2|06 | E16: s2_2|06 | F16: s5_1|05 | G16: s6_1|06 | H16: s5_1|05 | I16: s6_1|06
A17: 6 | B17: s1_11|11 | C17: s2_6|12 | D17: s2_4|11 | E17: s3_3|11 | F17: s1_3|11 | G17: s5_2|11 | H17: s3_2|10 | I17: s3_2|11
A18: 7 | B18: s1_13|13 | C18: s1_7|13 | D18: s1_5|13 | E18: s1_4|13 | F18: s3_3|13 | H18: s6_2|13 | I18: s5_2|13
A19: 8 | B19: s1_4|04 | C19: s2_2|04 | D19: s1_2|04 | E19: s4_1|04 | F19: s4_1|04 | G19: s4_1|04 | H19: s4_1|04 | I19: s4_1|04
A20: 9 | B20: s1_3|03 | C20: s1_2|03 | D20: s3_1|03 | E20: s3_1|03 | F20: s3_1|03 | G20: s3_1|03 | H20: s3_1|03 | I20: s3_1|03
A21: 10 | B21: s1_14|14 | C21: s2_7|14 | D21: s2_5|14 | E21: s2_4|14 | F21: s4_3|14 | H21: s7_2|14 | I21: s6_2|14
A22: 11 | B22: s1_5|05 | C22: s2_3|06 | D22: s2_2|05 | E22: s1_2|05 | F22: s1_2|06 | G22: s5_1|05 | H22: s6_1|06 | I22: s5_1|05
A23: 12 | B23: s1_12|12 | C23: s1_6|11 | D23: s3_4|12 | E23: s4_3|12 | F23: s2_3|12 | G23: s6_2|12 | H23: s5_2|12 | I23: s4_2|12
A24: 13 | B24: s1_8|08 | C24: s1_4|07 | D24: s1_3|07 | E24: s4_2|08 | F24: s4_2|09 | G24: s1_2|07 | H24: s1_2|08 | I24: s8_1|08
A25: 14 | B25: s1_9|09 | C25: s2_5|10 | D25: s1_4|10 | E25: s1_3|09 | F25: s5_2|10 | G25: s4_2|10 | H25: s4_2|11 | I25: s1_2|09
A26: 15 | B26: s1_15|15 | C26: s1_8|15 | D26: s3_5|15 | E26: s3_4|15 | F26: s5_3|15 | I26: s7_2|15
A27: 16 | B27: s1_2|02 | C27: s2_1|02 | D27: s2_1|02 | E27: s2_1|02 | F27: s2_1|02 | G27: s2_1|02 | H27: s2_1|02 | I27: s2_1|02
A29: pozice v pavouku/Počet skupin | B29: 1 | C29: 2 | D29: 3 | E29: 4 | F29: 5 | G29: 6 | H29: 7 | I29: 8 | J29: 9 | K29: 10 | L29: 11 | M29: 12 | N29: 13 | O29: 14 | P29: 15 | Q29: 16
A30: 1 | B30: 1 | E30: s1_1|01 | F30: s1_1|01 | G30: s1_1|01 | H30: s1_1|01 | I30: s1_1|01 | J30: s1_1|01 | K30: s1_1|01 | L30: s1_1|01 | M30: s1_1|01 | N30: s1_1|01 | O30: s1_1|01 | P30: s1_1|01 | Q30: s1_1|01
A31: 2 | B31: 32 | E31: s3_8|31 | I31: s6_4|30 | Q31: s16_2|32
A32: 3 | B32: 16 | E32: s4_4|16 | F32: s5_3|15 | G32: s4_3|16 | H32: s2_3|16 | I32: s7_2|15 | J32: s7_2|16 | K32: s6_2|16 | L32: s5_2|16 | M32: s4_2|16 | N32: s3_2|16 | O32: s2_2|16 | P32: s1_2|16 | Q32: s16_1|16
A33: 4 | B33: 17 | E33: s2_5|18 | F33: s2_4|17 | G33: s5_3|17 | H33: s4_3|18 | I33: s3_3|19 | J33: s2_3|20 | K33: s7_2|17 | L33: s6_2|17 | M33: s5_2|17 | N33: s4_2|17 | O33: s3_2|17 | P33: s2_2|17 | Q33: s1_2|17
A34: 5 | B34: 9 | E34: s2_3|10 | F34: s4_2|09 | G34: s3_2|09 | H34: s3_2|10 | I34: s2_2|10 | J34: s9_1|09 | K34: s9_1|09 | L34: s9_1|09 | M34: s9_1|09 | N34: s9_1|09 | O34: s9_1|09 | P34: s9_1|09 | Q34: s9_1|09
A35: 6 | B35: 24 | E35: s4_6|24 | F35: s1_5|21 | G35: s6_4|24 | H35: s7_4|28 | I35: s5_3|21 | J35: s3_3|21 | K35: s4_3|24 | M35: s12_2|24 | N35: s11_2|24 | O35: s10_2|24 | P35: s9_2|24 | Q35: s8_2|24
A36: 7 | B36: 25 | E36: s1_7|25 | F36: s2_6|27 | G36: s1_5|25 | H36: s5_4|26 | I36: s4_4|28 | J36: s6_3|24 | K36: s5_3|25 | N36: s12_2|25 | O36: s11_2|25 | P36: s10_2|25 | Q36: s9_2|25
A37: 8 | B37: 8 | E37: s3_2|07 | F37: s3_2|08 | G37: s2_2|08 | H37: s6_1|06 | I37: s8_1|08 | J37: s8_1|08 | K37: s8_1|08 | L37: s8_1|08 | M37: s8_1|08 | N37: s8_1|08 | O37: s8_1|08 | P37: s8_1|08 | Q37: s8_1|08
A38: 9 | B38: 5 | E38: s2_2|06 | F38: s5_1|05 | G38: s5_1|05 | H38: s5_1|05 | I38: s5_1|05 | J38: s5_1|05 | K38: s5_1|05 | L38: s5_1|05 | M38: s5_1|05 | N38: s5_1|05 | O38: s5_1|05 | P38: s5_1|05 | Q38: s5_1|05
A39: 10 | B39: 28 | E39: s4_7|28 | F39: s3_6|28 | G39: s4_5|28 | H39: s3_4|24 | I39: s2_4|26 | K39: s8_3|28 | O39: s14_2|28 | P39: s13_2|28 | Q39: s12_2|28
A40: 11 | B40: 21 | E40: s1_6|21 | F40: s4_5|24 | G40: s3_4|21 | H40: s1_4|22 | I40: s7_3|23 | J40: s7_3|25 | K40: s1_3|21 | L40: s10_2|21 | M40: s9_2|21 | N40: s8_2|21 | O40: s7_2|21 | P40: s6_2|21 | Q40: s5_2|21
A41: 12 | B41: 12 | E41: s3_3|11 | F41: s2_3|12 | G41: s6_2|12 | H41: s6_2|13 | I41: s3_2|11 | J41: s2_2|11 | K41: s2_2|12 | L41: s1_2|12 | M41: s12_1|12 | N41: s12_1|12 | O41: s12_1|12 | P41: s12_1|12 | Q41: s12_1|12
A42: 13 | B42: 13 | E42: s1_4|13 | F42: s3_3|13 | G42: s1_3|13 | H42: s7_2|14 | I42: s6_2|14 | J42: s3_2|12 | K42: s3_2|13 | L42: s2_2|13 | M42: s1_2|13 | N42: s13_1|13 | O42: s13_1|13 | P42: s13_1|13 | Q42: s13_1|13
A43: 14 | B43: 20 | E43: s3_5|19 | F43: s1_4|16 | G43: s2_4|20 | H43: s2_4|23 | I43: s1_3|17 | J43: s1_3|19 | K43: s10_2|20 | L43: s9_2|20 | M43: s8_2|20 | N43: s7_2|20 | O43: s6_2|20 | P43: s5_2|20 | Q43: s4_2|20
A44: 15 | B44: 29 | E44: s2_8|30 | F44: s5_6|30 | G44: s5_5|29 | I44: s8_4|32 | K44: s9_3|29 | P44: s14_2|29 | Q44: s13_2|29
A45: 16 | B45: 4 | E45: s4_1|04 | F45: s4_1|04 | G45: s4_1|04 | H45: s4_1|04 | I45: s4_1|04 | J45: s4_1|04 | K45: s4_1|04 | L45: s4_1|04 | M45: s4_1|04 | N45: s4_1|04 | O45: s4_1|04 | P45: s4_1|04 | Q45: s4_1|04
A46: 17 | B46: 3 | E46: s3_1|03 | F46: s3_1|03 | G46: s3_1|03 | H46: s3_1|03 | I46: s3_1|03 | J46: s3_1|03 | K46: s3_1|03 | L46: s3_1|03 | M46: s3_1|03 | N46: s3_1|03 | O46: s3_1|03 | P46: s3_1|03 | Q46: s3_1|03
A47: 18 | B47: 30 | E47: s1_8|29 | F47: s4_6|29 | G47: s6_5|30 | I47: s7_4|31 | K47: s10_3|30 | P47: s15_2|30 | Q47: s14_2|30
A48: 19 | B48: 14 | E48: s2_4|14 | F48: s4_3|14 | G48: s2_3|14 | H48: s5_2|12 | I48: s5_2|13 | J48: s5_2|14 | K48: s4_2|14 | L48: s3_2|14 | M48: s2_2|14 | N48: s1_2|14 | O48: s14_1|14 | P48: s14_1|14 | Q48: s14_1|14
A49: 20 | B49: 19 | E49: s4_5|20 | F49: s3_5|23 | G49: s1_4|19 | H49: s1_3|15 | I49: s2_3|18 | J49: s9_2|08 | K49: s9_2|19 | L49: s8_2|19 | M49: s7_2|19 | N49: s6_2|19 | O49: s5_2|19 | P49: s4_2|19 | Q49: s3_2|19
A50: 21 | B50: 11 | E50: s4_3|12 | F50: s1_3|11 | G50: s5_2|11 | H50: s2_2|09 | I50: s4_2|12 | J50: s4_2|13 | K50: s1_2|11 | L50: s11_1|11 | M50: s11_1|11 | N50: s11_1|11 | O50: s11_1|11 | P50: s11_1|11 | Q50: s11_1|11
A51: 22 | B51: 22 | E51: s2_6|22 | F51: s5_4|20 | G51: s4_4|22 | H51: s6_3|20 | I51: s8_3|24 | J51: s5_3|23 | K51: s2_3|22 | L51: s11_2|22 | M51: s10_2|22 | N51: s9_2|22 | O51: s8_2|22 | P51: s7_2|22 | Q51: s6_2|22
A52: 23 | B52: 27 | E52: s3_7|27 | F52: s1_6|26 | G52: s3_5|27 | H52: s4_4|25 | I52: s1_4|25 | J52: s8_3|26 | K52: s7_3|27 | O52: s13_2|27 | P52: s12_2|27 | Q52: s11_2|27
A53: 24 | B53: 6 | E53: s1_2|05 | F53: s2_2|07 | G53: s6_1|06 | H53: s7_1|07 | I53: s6_1|06 | J53: s6_1|06 | K53: s6_1|06 | L53: s6_1|06 | M53: s6_1|06 | N53: s6_1|06 | O53: s6_1|06 | P53: s6_1|06 | Q53: s6_1|06
A54: 25 | B54: 7 | E54: s4_2|08 | F54: s1_2|06 | G54: s1_2|07 | H54: s4_2|11 | I54: s7_1|07 | J54: s7_1|07 | K54: s7_1|07 | L54: s7_1|07 | M54: s7_1|07 | N54: s7_1|07 | O54: s7_1|07 | P54: s7_1|07 | Q54: s7_1|07
A55: 26 | B55: 26 | E55: s2_7|26 | F55: s2_5|22 | G55: s2_5|26 | H55: s7_3|21 | I55: s3_4|27 | J55: s9_3|27 | K55: s6_3|26 | N55: s13_2|26 | O55: s12_2|26 | P55: s11_2|26 | Q55: s10_2|26
A56: 27 | B56: 23 | E56: s3_6|23 | F56: s4_4|19 | G56: s5_4|23 | H56: s6_4|27 | I56: s6_3|22 | J56: s4_3|22 | K56: s3_3|23 | M56: s11_2|23 | N56: s10_2|23 | O56: s9_2|23 | P56: s8_2|23 | Q56: s7_2|23
A57: 28 | B57: 10 | E57: s1_3|09 | F57: s5_2|10 | G57: s4_2|10 | H57: s1_2|08 | I57: s1_2|09 | J57: s1_2|10 | K57: s10_1|10 | L57: s10_1|10 | M57: s10_1|10 | N57: s10_1|10 | O57: s10_1|10 | P57: s10_1|10 | Q57: s10_1|10
A58: 29 | B58: 15 | E58: s3_4|15 | F58: s5_5|25 | G58: s3_3|15 | H58: s5_3|19 | I58: s8_2|16 | J58: s6_2|15 | K58: s5_2|15 | L58: s4_2|15 | M58: s3_2|15 | N58: s2_2|15 | O58: s1_2|15 | P58: s15_1|15 | Q58: s15_1|15
A59: 30 | B59: 18 | E59: s1_5|17 | F59: s3_4|18 | G59: s6_3|18 | H59: s3_3|17 | I59: s4_3|20 | J59: s8_2|17 | K59: s8_2|18 | L59: s7_2|18 | M59: s6_2|18 | N59: s5_2|18 | O59: s4_2|18 | P59: s3_2|18 | Q59: s2_2|18
A60: 31 | B60: 31 | E60: s4_8|32 | I60: s5_4|29 | Q60: s15_2|31
A61: 32 | B61: 2 | E61: s2_1|02 | F61: s2_1|02 | G61: s2_1|02 | H61: s2_1|02 | I61: s2_1|02 | J61: s2_1|02 | K61: s2_1|02 | L61: s2_1|02 | M61: s2_1|02 | N61: s2_1|02 | O61: s2_1|02 | P61: s2_1|02 | Q61: s2_1|02

Sheet cfgSkupiny
A1: Počet hráčů | B1: D1 | D1: D2 | F1: D3 | H1: D4 | J1: D5 | L1: D6 | N1: D7 | P1: D8 | R1: D9 | T1: D10 | V1: Počet zápasů
A2: =B2+D2+F2+H2+J2+L2+N2+P2+R2+T2 -> 1 | B2: 1 | C2: A | V2: =computeCountOfMatch(B2:U2) -> 0
A3: =B3+D3+F3+H3+J3+L3+N3+P3+R3+T3 -> 2 | B3: 2 | C3: A | V3: 1
A4: 3 | B4: 3 | C4: A | V4: 3
A5: 4 | B5: 4 | C5: A | V5: 6
A6: 5 | B6: 5 | C6: A | V6: 10
A7: 6 | B7: 6 | C7: A | V7: 15
A8: 7 | B8: 7 | C8: A | V8: 21
A9: 8 | B9: 8 | C9: C | V9: =computeCountOfMatch(B9:U9) -> 20
A10: 9 | B10: 9 | C10: C | V10: =computeCountOfMatch(B10:U10) -> 24
A11: 10 | B11: 10 | C11: C | V11: =computeCountOfMatch(B11:U11) -> 29
A12: 11 | B12: 11 | C12: C | V12: =computeCountOfMatch(B12:U12) -> 35
A13: 12 | B13: 12 | C13: C | V13: =computeCountOfMatch(B13:U13) -> 42
A14: 13 | B14: 8 | C14: C | D14: 5 | E14: A | V14: =computeCountOfMatch(B14:U14) -> 30
A15: 14 | B15: 8 | C15: C | D15: 6 | E15: A | V15: 35
A16: 15 | B16: 8 | C16: C | D16: 7 | E16: A | V16: 41
A17: 16 | B17: 8 | C17: C | D17: 8 | E17: C | V17: 40
A18: 17 | B18: 8 | C18: C | D18: 9 | E18: C | V18: 44
A19: 18 | B19: 8 | C19: C | D19: 10 | E19: C | V19: 49
A20: 19 | B20: 9 | C20: C | D20: 10 | E20: C | V20: 53
A21: 20 | B21: 8 | C21: C | D21: 8 | E21: B | F21: 4 | G21: A | V21: 42
A22: 21 | B22: 8 | C22: C | D22: 8 | E22: C | F22: 5 | G22: A | V22: 50
A23: 22 | B23: 8 | C23: C | D23: 8 | E23: C | F23: 6 | G23: A | V23: 55
A24: 23 | B24: 8 | C24: C | D24: 8 | E24: C | F24: 7 | G24: A | V24: 61
A25: 24 | B25: 8 | C25: C | D25: 8 | E25: C | F25: 8 | G25: C | V25: 60
A26: 25 | B26: 8 | C26: C | D26: 8 | E26: C | F26: 9 | G26: C | V26: 64
A27: 26 | B27: 8 | C27: C | D27: 8 | E27: C | F27: 10 | G27: C | V27: 69
A28: 27 | B28: 8 | C28: C | D28: 8 | E28: C | F28: 11 | G28: C | V28: 75
A29: 28 | B29: 8 | C29: C | D29: 8 | E29: C | F29: 6 | G29: A | H29: 6 | I29: A | V29: 70
A30: 29 | B30: 8 | C30: C | D30: 8 | E30: C | F30: 8 | G30: C | H30: 5 | I30: A | V30: 70
A31: 30 | B31: 8 | C31: C | D31: 8 | E31: C | F31: 8 | G31: C | H31: 6 | I31: A | V31: 75
A32: 31 | B32: 8 | C32: C | D32: 8 | E32: C | F32: 8 | G32: C | H32: 7 | I32: C | V32: 75
A33: 32 | B33: 8 | C33: C | D33: 8 | E33: C | F33: 8 | G33: C | H33: 8 | I33: C | V33: 80
A34: 33 | B34: 8 | C34: C | D34: 8 | E34: C | F34: 8 | G34: C | H34: 9 | I34: C | V34: 84
A35: 34 | B35: 8 | C35: C | D35: 8 | E35: C | F35: 8 | G35: C | H35: 10 | I35: C | V35: 89
A36: 35 | B36: 8 | C36: C | D36: 8 | E36: C | F36: 8 | G36: C | H36: 11 | I36: C | V36: 95
A37: 36 | B37: 8 | C37: C | D37: 8 | E37: C | F37: 8 | G37: C | H37: 6 | I37: C | J37: 6 | K37: A | V37: 85
A38: 37 | B38: 8 | C38: C | D38: 8 | E38: C | F38: 8 | G38: C | H38: 8 | I38: C | J38: 5 | K38: A | V38: 90
A39: 38 | B39: 8 | C39: C | D39: 8 | E39: C | F39: 8 | G39: C | H39: 8 | I39: C | J39: 6 | K39: A | V39: 95
A40: 39 | B40: 8 | C40: C | D40: 8 | E40: C | F40: 8 | G40: C | H40: 8 | I40: C | J40: 7 | K40: C | V40: 95
A41: 40 | B41: 8 | C41: C | D41: 8 | E41: C | F41: 8 | G41: C | H41: 8 | I41: C | J41: 8 | K41: C | V41: 100
A42: 41 | B42: 8 | C42: C | D42: 8 | E42: D | F42: 8 | G42: D | H42: 8 | I42: D | J42: 9 | K42: D | V42: 88
A43: 42 | B43: 8 | C43: C | D43: 8 | E43: D | F43: 8 | G43: D | H43: 8 | I43: D | J43: 10 | K43: D | V43: 93
A44: 43 | B44: 8 | C44: C | D44: 8 | E44: D | F44: 8 | G44: D | H44: 8 | I44: D | J44: 11 | K44: D | V44: 98
A45: 44 | B45: 8 | C45: C | D45: 8 | E45: D | F45: 8 | G45: D | H45: 8 | I45: D | J45: 6 | K45: A | L45: 6 | M45: A | V45: 98
A46: 45 | B46: 8 | C46: C | D46: 8 | E46: D | F46: 8 | G46: D | H46: 8 | I46: D | J46: 8 | K46: D | L46: 5 | M46: A | V46: 94
A47: 46 | B47: 8 | C47: C | D47: 8 | E47: D | F47: 8 | G47: D | H47: 8 | I47: D | J47: 8 | K47: D | L47: 6 | M47: A | V47: 99
A48: 47 | B48: 8 | C48: C | D48: 8 | E48: D | F48: 8 | G48: D | H48: 8 | I48: D | J48: 8 | K48: D | L48: 7 | M48: D | V48: 96
A49: 48 | B49: 8 | C49: D | D49: 8 | E49: D | F49: 8 | G49: D | H49: 8 | I49: D | J49: 8 | K49: D | L49: 8 | M49: D | V49: 96
A50: 49 | B50: 8 | C50: D | D50: 8 | E50: D | F50: 8 | G50: D | H50: 8 | I50: D | J50: 8 | K50: D | L50: 9 | M50: D | V50: 100
A51: 50 | B51: 8 | C51: D | D51: 8 | E51: D | F51: 8 | G51: D | H51: 8 | I51: D | J51: 8 | K51: D | L51: 10 | M51: D | V51: 105
A52: 51 | B52: 8 | C52: D | D52: 8 | E52: D | F52: 8 | G52: D | H52: 8 | I52: D | J52: 8 | K52: D | L52: 11 | M52: D | V52: 110
A53: 52 | B53: 8 | C53: D | D53: 8 | E53: D | F53: 8 | G53: D | H53: 8 | I53: D | J53: 8 | K53: D | L53: 6 | M53: A | N53: 6 | O53: A | V53: 110
A54: 53 | B54: 8 | C54: D | D54: 8 | E54: D | F54: 8 | G54: D | H54: 8 | I54: D | J54: 8 | K54: D | L54: 8 | M54: D | N54: 5 | O54: A | V54: 106
A55: 54 | B55: 8 | C55: D | D55: 8 | E55: D | F55: 8 | G55: D | H55: 8 | I55: D | J55: 8 | K55: D | L55: 8 | M55: D | N55: 6 | O55: A | V55: 111
A56: 55 | B56: 8 | C56: D | D56: 8 | E56: D | F56: 8 | G56: D | H56: 8 | I56: D | J56: 8 | K56: D | L56: 8 | M56: D | N56: 7 | O56: D | V56: 108
A57: 56 | B57: 8 | C57: D | D57: 8 | E57: D | F57: 8 | G57: D | H57: 8 | I57: D | J57: 8 | K57: D | L57: 8 | M57: D | N57: 8 | O57: D | V57: 112
A58: 57 | B58: 8 | C58: D | D58: 8 | E58: D | F58: 8 | G58: D | H58: 8 | I58: D | J58: 8 | K58: D | L58: 8 | M58: D | N58: 9 | O58: D | V58: 116
A59: 58 | B59: 8 | C59: D | D59: 8 | E59: D | F59: 8 | G59: D | H59: 8 | I59: D | J59: 8 | K59: D | L59: 8 | M59: D | N59: 10 | O59: D | V59: 121
A60: 59 | B60: 8 | C60: D | D60: 8 | E60: D | F60: 8 | G60: D | H60: 8 | I60: D | J60: 8 | K60: D | L60: 8 | M60: D | N60: 11 | O60: D | V60: 126
A61: 60 | B61: 8 | C61: D | D61: 8 | E61: D | F61: 8 | G61: D | H61: 8 | I61: D | J61: 8 | K61: D | L61: 8 | M61: D | N61: 6 | O61: A | P61: 6 | Q61: A | V61: 126
A62: 61 | B62: 8 | C62: D | D62: 8 | E62: D | F62: 8 | G62: D | H62: 8 | I62: D | J62: 8 | K62: D | L62: 8 | M62: D | N62: 8 | O62: D | P62: 5 | Q62: A | V62: 122
A63: 62 | B63: 8 | C63: D | D63: 8 | E63: D | F63: 8 | G63: D | H63: 8 | I63: D | J63: 8 | K63: D | L63: 8 | M63: D | N63: 8 | O63: D | P63: 6 | Q63: A | V63: 127
A64: 63 | B64: 8 | C64: D | D64: 8 | E64: D | F64: 8 | G64: D | H64: 8 | I64: D | J64: 8 | K64: D | L64: 8 | M64: D | N64: 8 | O64: D | P64: 7 | Q64: D | V64: 124
A65: 64 | B65: 8 | C65: D | D65: 8 | E65: D | F65: 8 | G65: D | H65: 8 | I65: D | J65: 8 | K65: D | L65: 8 | M65: D | N65: 8 | O65: D | P65: 8 | Q65: D | V65: 128
A66: 65 | B66: 8 | C66: D | D66: 8 | E66: D | F66: 8 | G66: D | H66: 8 | I66: D | J66: 8 | K66: D | L66: 8 | M66: D | N66: 8 | O66: D | P66: 9 | Q66: D | V66: 132
A67: =B67+D67+F67+H67+J67+L67+N67+P67+R67+T67 -> 66 | B67: 8 | C67: D | D67: 8 | E67: D | F67: 8 | G67: D | H67: 8 | I67: D | J67: 8 | K67: D | L67: 8 | M67: D | N67: 8 | O67: D | P67: 10 | Q67: D | V67: 137
A68: 67 | B68: 8 | C68: D | D68: 8 | E68: D | F68: 8 | G68: D | H68: 8 | I68: D | J68: 8 | K68: D | L68: 8 | M68: D | N68: 8 | O68: D | P68: 11 | Q68: D | V68: 142
A69: 68 | B69: 8 | C69: D | D69: 8 | E69: D | F69: 8 | G69: D | H69: 8 | I69: D | J69: 8 | K69: D | L69: 8 | M69: D | N69: 8 | O69: D | P69: 6 | Q69: A | R69: 6 | S69: A | V69: 142
A70: 69 | B70: 8 | C70: D | D70: 8 | E70: D | F70: 8 | G70: D | H70: 8 | I70: D | J70: 8 | K70: D | L70: 8 | M70: D | N70: 8 | O70: D | P70: 8 | Q70: D | R70: 5 | S70: A | V70: 138
A71: 70 | B71: 8 | C71: D | D71: 8 | E71: D | F71: 8 | G71: D | H71: 8 | I71: D | J71: 8 | K71: D | L71: 8 | M71: D | N71: 8 | O71: D | P71: 8 | Q71: D | R71: 6 | S71: A | V71: 143
A72: 71 | B72: 8 | C72: D | D72: 8 | E72: D | F72: 8 | G72: D | H72: 8 | I72: D | J72: 8 | K72: D | L72: 8 | M72: D | N72: 8 | O72: D | P72: 8 | Q72: D | R72: 7 | S72: D | V72: 140
A73: 72 | B73: 8 | C73: D | D73: 8 | E73: D | F73: 8 | G73: D | H73: 8 | I73: D | J73: 8 | K73: D | L73: 8 | M73: D | N73: 8 | O73: D | P73: 8 | Q73: D | R73: 8 | S73: D | V73: 144
A74: 73 | B74: 8 | C74: D | D74: 8 | E74: D | F74: 8 | G74: D | H74: 8 | I74: D | J74: 8 | K74: D | L74: 8 | M74: D | N74: 8 | O74: D | P74: 8 | Q74: D | R74: 9 | S74: D | V74: 148
A75: 74 | B75: 8 | C75: D | D75: 8 | E75: D | F75: 8 | G75: D | H75: 8 | I75: D | J75: 8 | K75: D | L75: 8 | M75: D | N75: 8 | O75: D | P75: 8 | Q75: D | R75: 10 | S75: D | V75: 153
A76: 75 | B76: 8 | C76: D | D76: 8 | E76: D | F76: 8 | G76: D | H76: 8 | I76: D | J76: 8 | K76: D | L76: 8 | M76: D | N76: 8 | O76: D | P76: 8 | Q76: D | R76: 11 | S76: D | V76: 158
A77: 76 | B77: 8 | C77: D | D77: 8 | E77: D | F77: 8 | G77: D | H77: 8 | I77: D | J77: 8 | K77: D | L77: 8 | M77: D | N77: 8 | O77: D | P77: 8 | Q77: D | R77: 6 | S77: A | T77: 6 | U77: A | V77: =computeCountOfMatch(B77:U77) -> 158
A78: 77 | B78: 8 | C78: D | D78: 8 | E78: D | F78: 8 | G78: D | H78: 8 | I78: D | J78: 8 | K78: D | L78: 8 | M78: D | N78: 8 | O78: D | P78: 8 | Q78: D | R78: 8 | S78: D | T78: 5 | U78: A | V78: 154
A79: 78 | B79: 8 | C79: D | D79: 8 | E79: D | F79: 8 | G79: D | H79: 8 | I79: D | J79: 8 | K79: D | L79: 8 | M79: D | N79: 8 | O79: D | P79: 8 | Q79: D | R79: 8 | S79: D | T79: 6 | U79: A | V79: 159
A80: 79 | B80: 8 | C80: D | D80: 8 | E80: D | F80: 8 | G80: D | H80: 8 | I80: D | J80: 8 | K80: D | L80: 8 | M80: D | N80: 8 | O80: D | P80: 8 | Q80: D | R80: 8 | S80: D | T80: 7 | U80: D | V80: 156
A81: 80 | B81: 8 | C81: D | D81: 8 | E81: D | F81: 8 | G81: D | H81: 8 | I81: D | J81: 8 | K81: D | L81: 8 | M81: D | N81: 8 | O81: D | P81: 8 | Q81: D | R81: 8 | S81: D | T81: 8 | U81: D | V81: 160
A82: 81 | B82: 8 | C82: D | D82: 8 | E82: D | F82: 8 | G82: D | H82: 8 | I82: D | J82: 8 | K82: D | L82: 8 | M82: D | N82: 8 | O82: D | P82: 8 | Q82: D | R82: 8 | S82: D | T82: 9 | U82: D | V82: 164
V83: 0
A84: 83
A85: 84
A86: 85
A87: 86
A88: 87
A89: 88
A90: 89
A91: 90
A92: 91
A93: 92
A94: 93
A95: 94
A96: 95
A97: 96
A98: 97
A99: 98
A100: 99
A101: 100

Sheet cfgBtm
A1: Zkratka turnaje | B1: BTM06
A2: Název turnaje | B2: BTM06(Rud)
A3: Datum turnaje | B3: 23.04.2023
A4: Místo turnaje "konaného v XXX" | B4: Rudné

Sheet ovladani
A1: Kdy | B1: Kdo | C1: Postup: | U1: Status | X1: Lze použít kdykoliv
A2: Na začátku sezóny | B2: Předseda KM | C2: 01. | D2: Pokud zahajuji sezonu, tak je třeba vymazat výsledky z minulé sezony na založce "vychozi" | U2: OK | X2: Uloží do adresáře k původnímu excelu zálohu
D3: - | E3: odstraňte všechny nasledující vyplněné sloupce od sloupce R | X3: - | Y3: nazev souboru YYYYMMDD_HHMMSS_[Akce]_[puvodni nazev]
D4: - | E4: smazte hodnoty ve sloupcích B až E na záložce "výchozí"
D5: - | E5: upravte hodnoty ve sloupci K (založka Vychozi) tak aby šli od 1 vzestupně nahoru
D6: - | E6: pokracujte dalším bodem. Body 03 a 04 je možné vynechat
C7: 02. | D7: Vyplnit chybějící hráče a zejména vyplnit loňské žebříčkové postavení sloupec K (výchozí) | U7: OK | X7: Zamkne všechny listy excelu
D8: - | E8: seradi na listu vychozi podle sloupce K ("Před. Rok")
D9: - | E9: přiřadí hráčům defaultní body ve sloupci M ("Výchozí") viz. tabulka na záložce "body" od řádku 20
D10: - | E10: provede standardní sesortování hráčů
X11: Odemkne všechny listy excelu
A13: 1x na zač.sezony po skončení prvního turnaje | B13: Předseda KM | C13: 03. | D13: Vygeneruju historii, kliknutím na tlačítko. | U13: OK
D14: - | E14: vytvoří z listu "vychozi" nový list "historie"
D15: - | E15: kde hráčům zaznamená aktuální žebříčkové postavení | X15: Nakopíruje list vychozi do listu zebricek a zformatuje pro tisk
D16: - | E16: vždy po skončení turnaje, kliknutím na "Vygeneruj finální zebricek" se přidá další sloupec do historie, ay bylo vidět, jak hráč zlepšoval zhoršoval svoje postavení
A18: Před každým turnajem | B18: Předseda KM | C18: 04. | D18: Vzit excel z předchozího turnaje a přejmenovat ho (např. zvednout číslo bodovaného turnaje) | U18: OK
D19: Otevřít ten přejmenovaný excel a kliknout na "Priprav excel" - provést pouze pokud předcházel nějaký turnaj v této sezone a chci pokračovat ve výsledkách | X19: Nakopíruje list finalni do listu zebricek a zformatuje pro tisk
D20: - | E20: smaže list "vychozi"
D21: - | E21: přejmenuje list "finalni" na "vychozi"
X23: Vygeneruje souhrnou kontingenční tabulku s účastí
A25: Na začatku turnaje | B25: Rozhodčí turnaje | C25: 05. | D25: Vyplnit přítomnost hráčů | U25: OK
C27: 06. | D27: Kliknout na tlačítko "Generuj divize". Toto tlačítko slouží ke generování základního rozdělení divizí. Na kliknutí se provádí toto: | U27: OK
D28: - | E28: vymazání obsahu sloupce Vychozi.Divize
D29: - | E29: vyplnění sloupce vychozi.Divize příslušnou divizí podle vychozi.Pritomen a vychozi.Právo startu
D30: - | E30: vygeneruje list "turnaj_divize", zde budete následně vypisovat výsledky
D31: - | E31: vygeneruje list "turnaj_vysledek", zde je po zkončení vidět výsledné seřazení hráčů, podle výsledků z listu "turnaj_divize"
D33: - | E33: vygeneruje divize do samostatnych založek
D34: - | E34: funkcionalita stejna jako u generovani do jedne zalozky
U36: -
D37: Kliknout na tlačítko "Tisk1". Toto tlačítko slouží ke generování tiskové sestavy pro zápasy v divizích:
D38: - | E38: generuje tiskovou sestavu pro 1 kolo zapasu, zápasy se tisknou jednotlivě
D39: Kliknout na tlačítko "Tisk2". Toto tlačítko slouží ke generování tiskové sestavy pro zápasy v divizích:
D40: - | E40: generuje tiskovou sestavu pro 2 kolo zapasu, zápasy se tisknou jednotlivě
D41: Kliknout na tlačítko "Tisk". Toto tlačítko slouží ke generování tiskové sestavy pro zápasy v divizích:
D42: - | E42: vygeneruje list "turnaj_tisk", který lze případně lehce upravit a vytisknout, rozstřihnout (jednotlivé tabulky) a dát ke konkrétním stolům
A43: V průběhu turnaje | B43: Rozhodčí turnaje | C43: 07. | D43: Vyplňovat výsledky do listů "turnaj_divize" | U43: OK
A45: Na konci turnaje | B45: Rozhodčí turnaje | C45: 08. | D45: po odehrání všech zápasů zkontrolovat výsledky v záložce "turnaj_vysledek" | U45: OK
C47: 09. | D47: Po skončení turnaje, zbývá jen nechat vygenerovat finální část kliknutím na tlačítko "Vygeneruj finální zebricek" | U47: OK
D48: - | E48: vygeneruje zalozku "finalni" kopii z "vychozi"
D49: - | E49: přidá nový sloupec na pozici O a do něj dá výsledky ze záložky "turnaj_vysledky"
D50: - | E50: automaticky přepočítá žebříčkové pořadí a seřadí hráče na záložce "finalni"
D51: - | E51: lze pokračovat daším turnajem viz. bod 03.
D52: - | E52: Systém počítá 4 nejlepší dosažené výsledky (pokud není odehrán dostatečný počet zápasů dopočtě násobek chybějících bodů z výchozího nastavení bodů)
C53: 10. | D53: Po skončení turnaje, je dobré kliknout na tlačítko "Zapasy"
D54: - | E54: vygeneruje zalozku "turnaj_zapasy" kde jsou videt všechny zapasy daneho turnaje
D55: - | E55: je implicitně seřazeno, tak že nahoře jsou nejvíce překvapivé zápasy (rozdíl pořadí na žebříčku mezi vítězem a poraženým je nejvyšší)
D56: - | E56: lze tam dohledat, zda nějaký hráč nízko na žebříčku neporazil více hráčů na žebříčku nad ním.
D57: - | E57: dobrý podklad pro udělování divokých karet
D58: - | E58: když např. uvidím že hráč XXX porazil 2 hráče, kteří jsou v žebříčku o řekněme 8 pozic výše, a s jedním těsně prohrál, tak bych mu dal divokou kartu do vyšší divize
A64: V průběhu turnaje | B64: Rozhodčí turnaje | C64: Blok: | D64: U11 | E64: Pozor neměnit rozmisteni prvku v této části !!!
C65: 01. | D65: Zvolení kategorie, zjištění počtu hráčů | J65: Toto se používá jen o zkopírování tohoto bloku
D66: Název záložky pro registraci hráčů: | H66: vychozi
D67: Kategorie (U11,U13,U15,U18): | H67: U9,U11
D68: Počet přihlášených hráčů: | H68: 7 | J68: Spočítá hráče dané kategorie a vytvoří záložku -LOS
A70: V průběhu turnaje | B70: Rozhodčí turnaje | C70: 02. | D70: Vygenerování hracího plánu, skupiny a následně pavouk
D71: Počet skupin: | H71: 1 | J71: Přírustkově přiřadí hráčům skupinu na záložce -LOS
D72: Počet nasazených do skupin: | H72: 7
J73: Přiřadí hráčům skupinu na záložce LOS
A75: V průběhu turnaje | B75: Rozhodčí turnaje
D76: Počet postupujících do pavouka: | H76: 4 | J76: Vygeneruje záložku s kompletním rozpisem skupin a pavouka
D77: Počet nasazených do pavouka: | H77: 7
D78: varianta pavouka (8, 16, 32) | H78: 8
J79: Vygeneruje záložku pouze s pavoukem. Použití pouze v případě,
J80: že jsou již rozehrány skupiny a zjistí se že pavouk je špatně.
B81: Předseda KM
J82: Smaže záložky vytvořené v rámci tohoto bloku.
A87: V průběhu turnaje | B87: Rozhodčí turnaje | C87: Blok: | D87: U13 | E87: Pozor neměnit rozmisteni prvku v této části !!!
C88: 01. | D88: Zvolení kategorie, zjištění počtu hráčů | J88: Toto se používá jen o zkopírování tohoto bloku
D89: Název záložky pro registraci hráčů: | H89: vychozi
D90: Kategorie (U11,U13,U15,U18): | H90: U13
D91: Počet přihlášených hráčů: | H91: 8 | J91: Spočítá hráče dané kategorie a vytvoří záložku -LOS
A93: V průběhu turnaje | B93: Rozhodčí turnaje | C93: 02. | D93: Vygenerování hracího plánu, skupiny a následně pavouk
D94: Počet skupin: | H94: 2 | J94: Přírustkově přiřadí hráčům skupinu na záložce -LOS
D95: Počet nasazených do skupin: | H95: 8
J96: Přiřadí hráčům skupinu na záložce LOS
A98: V průběhu turnaje | B98: Rozhodčí turnaje
D99: Počet postupujících do pavouka: | H99: 6 | J99: Vygeneruje záložku s kompletním rozpisem skupin a pavouka
D100: Počet nasazených do pavouka: | H100: 6
D101: varianta pavouka (8, 16, 32) | H101: 8
J102: Vygeneruje záložku pouze s pavoukem. Použití pouze v případě,
J103: že jsou již rozehrány skupiny a zjistí se že pavouk je špatně.
B104: Předseda KM
J105: Smaže záložky vytvořené v rámci tohoto bloku.
A110: V průběhu turnaje | B110: Rozhodčí turnaje | C110: Blok: | D110: U15 | E110: Pozor neměnit rozmisteni prvku v této části !!!
C111: 01. | D111: Zvolení kategorie, zjištění počtu hráčů | J111: Toto se používá jen o zkopírování tohoto bloku
D112: Název záložky pro registraci hráčů: | H112: vychozi
D113: Kategorie (U11,U13,U15,U18): | H113: U15
D114: Počet přihlášených hráčů: | H114: 19 | J114: Spočítá hráče dané kategorie a vytvoří záložku -LOS
A116: V průběhu turnaje | B116: Rozhodčí turnaje | C116: 02. | D116: Vygenerování hracího plánu, skupiny a následně pavouk
D117: Počet skupin: | H117: 4 | J117: Přírustkově přiřadí hráčům skupinu na záložce -LOS
D118: Počet nasazených do skupin: | H118: 19
J119: Přiřadí hráčům skupinu na záložce LOS
A121: V průběhu turnaje | B121: Rozhodčí turnaje
D122: Počet postupujících do pavouka: | H122: 8 | J122: Vygeneruje záložku s kompletním rozpisem skupin a pavouka
D123: Počet nasazených do pavouka: | H123: 8
D124: varianta pavouka (8, 16, 32) | H124: 8
J125: Vygeneruje záložku pouze s pavoukem. Použití pouze v případě,
J126: že jsou již rozehrány skupiny a zjistí se že pavouk je špatně.
B127: Předseda KM
J128: Smaže záložky vytvořené v rámci tohoto bloku.
A133: V průběhu turnaje | B133: Rozhodčí turnaje | C133: Blok: | D133: U18 | E133: Pozor neměnit rozmisteni prvku v této části !!!
C134: 01. | D134: Zvolení kategorie, zjištění počtu hráčů | J134: Toto se používá jen o zkopírování tohoto bloku
D135: Název záložky pro registraci hráčů: | H135: vychozi
D136: Kategorie (U11,U13,U15,U18): | H136: U18
D137: Počet přihlášených hráčů: | H137: 7 | J137: Spočítá hráče dané kategorie a vytvoří záložku -LOS
A139: V průběhu turnaje | B139: Rozhodčí turnaje | C139: 02. | D139: Vygenerování hracího plánu, skupiny a následně pavouk
D140: Počet skupin: | H140: 1 | J140: Přírustkově přiřadí hráčům skupinu na záložce -LOS
D141: Počet nasazených do skupin: | H141: 7
J142: Přiřadí hráčům skupinu na záložce LOS
A144: V průběhu turnaje | B144: Rozhodčí turnaje
D145: Počet postupujících do pavouka: | H145: 8 | J145: Vygeneruje záložku s kompletním rozpisem skupin a pavouka
D146: Počet nasazených do pavouka: | H146: 8
D147: varianta pavouka (8, 16, 32) | H147: 8
J148: Vygeneruje záložku pouze s pavoukem. Použití pouze v případě,
J149: že jsou již rozehrány skupiny a zjistí se že pavouk je špatně.
B150: Předseda KM
J151: Smaže záložky vytvořené v rámci tohoto bloku.
A160: V průběhu turnaje | B160: Rozhodčí turnaje | C160: Blok: | D160: OPMJ | E160: Pozor neměnit rozmisteni prvku v této části !!!
C161: 01. | D161: Zvolení kategorie, zjištění počtu hráčů | J161: Toto se používá jen o zkopírování tohoto bloku
D162: Název záložky pro registraci hráčů: | H162: opMuziJedn
D163: Kategorie (U11,U13,U15,U18): | H163: Jednotlivci
D164: Počet přihlášených hráčů: | H164: 25 | J164: Spočítá hráče dané kategorie a vytvoří záložku -LOS
A166: V průběhu turnaje | B166: Rozhodčí turnaje | C166: 02. | D166: Vygenerování hracího plánu, skupiny a následně pavouk
D167: Počet skupin: | H167: 5 | J167: Přírustkově přiřadí hráčům skupinu na záložce -LOS
D168: Počet nasazených do skupin: | H168: 25
J169: Přiřadí hráčům skupinu na záložce LOS
A171: V průběhu turnaje | B171: Rozhodčí turnaje
D172: Počet postupujících do pavouka: | H172: 15 | J172: Vygeneruje záložku s kompletním rozpisem skupin a pavouka
D173: Počet nasazených do pavouka: | H173: 15
D174: varianta pavouka (8, 16, 32) | H174: 16
J175: Vygeneruje záložku pouze s pavoukem. Použití pouze v případě,
J176: že jsou již rozehrány skupiny a zjistí se že pavouk je špatně.
B177: Předseda KM
J178: Smaže záložky vytvořené v rámci tohoto bloku.
A183: V průběhu turnaje | B183: Rozhodčí turnaje | C183: Blok: | D183: OPMC | E183: Pozor neměnit rozmisteni prvku v této části !!!
C184: 01. | D184: Zvolení kategorie, zjištění počtu hráčů | J184: Toto se používá jen o zkopírování tohoto bloku
D185: Název záložky pro registraci hráčů: | H185: opMuziCtyrh
D186: Kategorie (U11,U13,U15,U18): | H186: Čtyřhra
D187: Počet přihlášených hráčů: | H187: 12 | J187: Spočítá hráče dané kategorie a vytvoří záložku -LOS
A189: V průběhu turnaje | B189: Rozhodčí turnaje | C189: 02. | D189: Vygenerování hracího plánu, skupiny a následně pavouk
D190: Počet skupin: | H190: 4 | J190: Přírustkově přiřadí hráčům skupinu na záložce -LOS
D191: Počet nasazených do skupin: | H191: 3
J192: Přiřadí hráčům skupinu na záložce LOS
A194: V průběhu turnaje | B194: Rozhodčí turnaje
D195: Počet postupujících do pavouka: | H195: 8 | J195: Vygeneruje záložku s kompletním rozpisem skupin a pavouka
D196: Počet nasazených do pavouka: | H196: 8
D197: varianta pavouka (8, 16, 32) | H197: 8
J198: Vygeneruje záložku pouze s pavoukem. Použití pouze v případě,
J199: že jsou již rozehrány skupiny a zjistí se že pavouk je špatně.
B200: Předseda KM
J201: Smaže záložky vytvořené v rámci tohoto bloku.

Sheet opMuziJedn (hidden)
A1: pritomen | B1: Hráč zkr. | C1: Hráč | D1: Oddíl | E1: Poradi | F1: žebricek | G1: EloSt
B2: =getPlayerName(C2,D2) -> Veselý M (Roz) | C2: Veselý Milan | D2: Roztoky | E2: 1000 | F2: 1 | G2: 1763
B3: =getPlayerName(C3,D3) -> Jirásek J (Roz) | C3: Jirásek Jiří | D3: Roztoky | E3: 999 | F3: 1 | G3: 1714
B4: Žáček J (Roz) | C4: Žáček Josef | D4: Roztoky | E4: 998 | F4: 1 | G4: 1642
A5: x | B5: Frýdl M (Rud) | C5: Frýdl Miloš | D5: Rudná | E5: 997 | F5: 1 | G5: 1815
B6: Fiala J (Mní) | C6: Fiala Jan | D6: Mníšek | E6: 996 | F6: 1 | G6: 1764
B7: Hluchý M (Rud) | C7: Hluchý Marek | D7: Rudná | E7: 995 | F7: 1 | G7: 1706
B8: Cacek T (Rud) | C8: Cacek Tomáš | D8: Rudná | E8: 994 | F8: 1 | G8: 1714
A9: x | B9: Barcal P (Rud) | C9: Barcal Petr | D9: Rudná | E9: 993 | F9: 1 | G9: 1695
B10: Slaměník R (Lib) | C10: Slaměník Richard | D10: Libčice | E10: 992 | F10: 1 | G10: 1663
B11: Urban J (Mní) | C11: Urban Jan | D11: Mníšek | E11: 991 | F11: 1 | G11: 1680
B12: Levenec P (Roz) | C12: Levenec Petr | D12: Roztoky | E12: 990 | F12: 10.5 | G12: 1773
B13: Špaček M (Roz) | C13: Špaček Michal | D13: Roztoky | E13: 989 | F13: 10.5 | G13: 1793
B14: Smrček M (Roz) | C14: Smrček Michal | D14: Roztoky | E14: 988 | F14: 10.5 | G14: 1785
B15: Zika O (Roz) | C15: Zika Ondřej | D15: Roztoky | E15: 987 | F15: 10.5 | G15: 1716
B16: Fiala O (Mní) | C16: Fiala Ondřej | D16: Mníšek | E16: 986 | F16: 10.5 | G16: 1767
B17: Fišer Š (Lib) | C17: Fišer Štefan | D17: Libčice | E17: 985 | F17: 10.5 | G17: 1654
B18: Richter V (Lib) | C18: Richter Vojtěch | D18: Libčice | E18: 984 | F18: 11 | G18: 1664
B19: Drbohlav M (Mní) | C19: Drbohlav Marek | D19: Mníšek | E19: 983 | F19: 11 | G19: 1650
B20: Stacho L (Mní) | C20: Stacho Libor | D20: Mníšek | E20: 982 | F20: 11 | G20: 1620
B21: Richter J (Lib) | C21: Richter Jaroslav ml. | D21: Libčice | E21: 981 | F21: 11 | G21: 1515
B22: Šulc D (Lib) | C22: Šulc Dalibor | D22: Libčice | E22: 980 | F22: 11 | G22: 1534
A23: x | B23: Rudolf T (Úho) | C23: Rudolf Tomáš | D23: Úholičky | E23: 979 | F23: 11 | G23: 1723
B24: Horák O (Mní) | C24: Horák Ondřej | D24: Mníšek | E24: 978 | F24: 11 | G24: 1652
B25: Taller F (Mní) | C25: Taller Filip | D25: Mníšek | E25: 977 | F25: 11 | G25: 1654
B26: Sedláček L (Ves) | C26: Sedláček Luděk | D26: Vestec | E26: 976 | F26: 11 | G26: 1695
A27: x | B27: Novák M (Ves) | C27: Novák Michal | D27: Vestec | E27: 975 | F27: 11 | G27: 1638
A28: x | B28: Vojtěch D (Úho) | C28: Vojtěch Dušan | D28: Úholičky | E28: 974 | F28: 21 | G28: 1610
B29: Přáda J (Ves) | C29: Přáda Jaroslav | D29: Vestec | E29: 973 | F29: 21 | G29: 1573
B30: Kilian V (Mní) | C30: Kilian Vít | D30: Mníšek | E30: 972 | F30: 21 | G30: 1538
A31: x | B31: Novák O (Ves) | C31: Novák Ondřej | D31: Vestec | E31: 971 | F31: 21 | G31: 1474
B32: Pospíšil A (Mní) | C32: Pospíšil Antonín | D32: Mníšek | E32: 970 | F32: 21 | G32: 1481
B33: Novosad R (Úho) | C33: Novosad Rostislav | D33: Úholičky | E33: 969 | F33: 21 | G33: 1473
A34: x | B34: Mühlhauser Z (Rud) | C34: Mühlhauser Zdeněk | D34: Rudná | E34: 968 | F34: 21 | G34: 1651.9
A35: x | B35: Redlich M (Oře) | C35: Redlich Michal | D35: Ořech | E35: 967 | F35: 21 | G35: 1574
B36: Ptáčník M (Oře) | C36: Ptáčník Martin | D36: Ořech | E36: 966 | F36: 21 | G36: 1601
A37: x | B37: Plecitý L (Rud) | C37: Plecitý Lukáš | D37: Rudná | E37: 965 | F37: 21 | G37: 1607
A38: x | B38: Krasničan J (Oře) | C38: Krasničan Jaroslav | D38: Ořech | E38: 964 | F38: 30.5 | G38: 1548
B39: Coubalová M (Ves) | C39: Coubalová Martina | D39: Vestec | E39: 963 | F39: 31 | G39: 1518.4
A40: x | B40: Škoda J (Oře) | C40: Škoda Jiří | D40: Ořech | E40: 962 | F40: 31 | G40: 1470
A41: x | B41: Vodňanský M (Roz) | C41: Vodňanský Martin | D41: Roztoky | E41: 961 | F41: 31 | G41: 1511
A42: x | B42: Skřivánek J (Oře) | C42: Skřivánek Jiří | D42: Ořech | E42: 960 | F42: 31 | G42: 1542
B43: Deré M (Čer) | C43: Deré Michal | D43: Černošice | E43: 959 | F43: 31 | G43: 1537
B44: Bartoň M (Lib) | C44: Bartoň Milan | D44: Libčice | E44: 958 | F44: 31 | G44: 1493
B45: Faltin M (Úně) | C45: Faltin Miloš | D45: Únětice | E45: 957 | F45: 31 | G45: 1511
B46: Podrápský J (Lib) | C46: Podrápský Jaroslav | D46: Libčice | E46: 956 | F46: 31 | G46: 1523
B47: Skoupil L (Mní) | C47: Skoupil Lukáš | D47: Mníšek | E47: 955 | F47: 31 | G47: 1494
B48: Hozman B (Ves) | C48: Hozman Bohumil | D48: Vestec | E48: 954 | F48: 31 | G48: 1497
B49: Fischer J (Čer) | C49: Fischer Jiří | D49: Černošice | E49: 953 | F49: 41 | G49: 1487
B50: Vodička J (Let) | C50: Vodička Jiří | D50: Lety | E50: 952 | F50: 41 | G50: 1512
B51: Urban R (Let) | C51: Urban Roman | D51: Lety | E51: 951 | F51: 41 | G51: 1474
A52: x | B52: Eibich J (Roz) | C52: Eibich Jan | D52: Roztoky | E52: 950 | F52: 41 | G52: 1487
B53: Tůma M (Mní) | C53: Tůma Martin | D53: Mníšek | E53: 949 | F53: 41 | G53: 1472
B54: Jelínek V (Rud) | C54: Jelínek Vladimír | D54: Rudná | E54: 948 | F54: 41 | G54: 1478
B55: Kačerovský Z (Stř) | C55: Kačerovský Zdeněk | D55: Středokluky | E55: 947 | F55: 41 | G55: 1467
B56: Ráb V (Ves) | C56: Ráb Václav | D56: Vestec | E56: 946 | F56: 41 | G56: 1488
A57: x | B57: Vávra A (Oře) | C57: Vávra Aleš | D57: Ořech | E57: 945 | F57: 41 | G57: 1470
B58: Tolar J (Stř) | C58: Tolar Jakub | D58: Středokluky | E58: 944 | F58: 41 | G58: 1446
B59: Bujárek M (Mní) | C59: Bujárek Milan | D59: Mníšek | E59: 943 | F59: 50.5 | G59: 1473
A60: x | B60: Antoš V (Roz) | C60: Antoš Vojtěch | D60: Roztoky | E60: 942 | F60: 51 | G60: 1403
A61: x | B61: Soukup V (Oře) | C61: Soukup Vojtěch | D61: Ořech | E61: 941 | F61: 51 | G61: 1413
B62: Nágr P (Rud) | C62: Nágr Pavel | D62: Rudná | E62: 940 | F62: 51 | G62: 1433
A63: x | B63: Sedmík Z (Rud) | C63: Sedmík Zdeněk | D63: Rudná | E63: 939 | F63: 51 | G63: 1419
B64: Rein T (Oře) | C64: Rein Tomáš | D64: Ořech | E64: 938 | F64: 51 | G64: 1396
A65: x | B65: Poncar K (Oře) | C65: Poncar Karel | D65: Ořech | E65: 937 | F65: 51 | G65: 1382
B66: Kurková M (Ves) | C66: Kurková Marie | D66: Vestec | E66: 936 | F66: 51 | G66: 1412
B67: =getPlayerName(C67,D67) -> Jungvirt T (Ves) | C67: Jungvirt Tomáš | D67: Vestec | E67: 935 | F67: 51 | G67: 1420
B68: Freisleben R (Mní) | C68: Freisleben Radek | D68: Mníšek | E68: 934 | F68: 51 | G68: 1369
B69: Švarc M (Roz) | C69: Švarc Martin | D69: Roztoky | E69: 933 | F69: 51 | G69: 1463
B70: Hlaváč J (Oře) | C70: Hlaváč Jan | D70: Ořech | E70: 932 | F70: 61 | G70: 1412
B71: Vraštil P (Rud) | C71: Vraštil Petr | D71: Rudná | E71: 931 | F71: 61 | G71: 1387
B72: Cimler L (Čer) | C72: Cimler Lukáš | D72: Černošice | E72: 930 | F72: 61 | G72: 1418
A73: x | B73: Telipský J (Lib) | C73: Telipský Josef | D73: Libčice | E73: 929 | F73: 61 | G73: 1420
B74: Lágner P (Čer) | C74: Lágner Petr | D74: Černošice | E74: 928 | F74: 61 | G74: 1402
B75: Dvořák P (Let) | C75: Dvořák Pavel | D75: Lety | E75: 927 | F75: 61 | G75: 1400
B76: Dvořák F (Úho) | C76: Dvořák František | D76: Úholičky | E76: 926 | F76: 61 | G76: 1379
B77: Bulín Z (Oře) | C77: Bulín Zdeněk | D77: Ořech | E77: 925 | F77: 61 | G77: 1324
B78: Zamazal P (Mní) | C78: Zamazal Pavel | D78: Mníšek | E78: 924 | F78: 61 | G78: 1381
B79: Novák M (Úho) | C79: Novák Martin | D79: Úholičky | E79: 923 | F79: 61 | G79: 1445
B80: Čierny A (Oře) | C80: Čierny Alexander | D80: Ořech | E80: 922 | F80: 70.5 | G80: 1401
B81: Květoň J (Let) | C81: Květoň Jan | D81: Lety | E81: 921 | F81: 71 | G81: 1369
B82: Píš D (Oře) | C82: Píš Daniel | D82: Ořech | E82: 920 | F82: 71 | G82: 1334
B83: Doležal T (Mní) | C83: Doležal Tomáš | D83: Mníšek | E83: 919 | F83: 71 | G83: 1352
A84: x | B84: Zacharda A (Oře) | C84: Zacharda Aleš | D84: Ořech | E84: 918 | F84: 71 | G84: 1319
B85: Matoušek M (Oře) | C85: Matoušek Michal | D85: Ořech | E85: 917 | F85: 71 | G85: 1354
B86: Kosek J (Let) | C86: Kosek Jiří | D86: Lety | E86: 916 | F86: 71 | G86: 1370
B87: Zmatlík L (Čer) | C87: Zmatlík Lukáš | D87: Černošice | E87: 915 | F87: 71 | G87: 1382
A88: x | B88: Šturm V (Roz) | C88: Šturm Vojtěch | D88: Roztoky | E88: 914 | F88: 71 | G88: 1324
B89: Tolar P (Stř) | C89: Tolar Petr | D89: Středokluky | E89: 913 | F89: 71 | G89: 1322
B90: Veverka J (Oře) | C90: Veverka Jan | D90: Ořech | E90: 912 | F90: 71 | G90: 1300
B91: Zwiefelhofer J (Roz) | C91: Zwiefelhofer Jiří | D91: Roztoky | E91: 911 | F91: 81 | G91: 1320
B92: Freisleben Z (Mní) | C92: Freisleben Zdeněk | D92: Mníšek | E92: 910 | F92: 81 | G92: 1313
B93: Framberk J (Lib) | C93: Framberk Jan | D93: Libčice | E93: 909 | F93: 81 | G93: 1317
B94: Hruška O (Oře) | C94: Hruška Ondřej | D94: Ořech | E94: 908 | F94: 81 | G94: 1274
B95: Nykl V (Let) | C95: Nykl Václav | D95: Lety | E95: 907 | F95: 81 | G95: 1324
B96: Potužník V (Úně) | C96: Potužník Václav | D96: Únětice | E96: 906 | F96: 81 | G96: 1331
B97: Lachout M (Ves) | C97: Lachout Miroslav | D97: Vestec | E97: 905 | F97: 81 | G97: 1517
B98: Špiegel J (Lib) | C98: Špiegel Jan | D98: Libčice | E98: 904 | F98: 81 | G98: 1272
A99: x | B99: Pavlín J (Oře) | C99: Pavlín Jiří | D99: Ořech | E99: 903 | F99: 81 | G99: 1318
B100: Klinga P (Lib) | C100: Klinga Petr | D100: Libčice | E100: 902 | F100: 81 | G100: 1320
B101: Kohlík M (Oře) | C101: Kohlík Miroslav ml. | D101: Ořech | E101: 901 | F101: 90.5 | G101: 1337
B102: Malínek L (Ves) | C102: Malínek Lukáš | D102: Vestec | E102: 900 | F102: 90.5 | G102: 1269
B103: Macháček P (Mní) | C103: Macháček Pavel st. | D103: Mníšek | E103: 899 | F103: 91 | G103: 1288
B104: Silovský M (Ves) | C104: Silovský Martin | D104: Vestec | E104: 898 | F104: 91 | G104: 1297
B105: Křižka V (Rud) | C105: Křižka Václav | D105: Rudná | E105: 897 | F105: 91 | G105: 1254
B106: Sloup J (Rud) | C106: Sloup Jiří | D106: Rudná | E106: 896 | F106: 91 | G106: 1248
B107: Charvát V (Rud) | C107: Charvát Vojtěch | D107: Rudná | E107: 895 | F107: 91 | G107: 1247
B108: Řízek J (Ves) | C108: Řízek Jiří | D108: Vestec | E108: 894 | F108: 91 | G108: 1269
B109: Matoušek T (Oře) | C109: Matoušek Tomáš | D109: Ořech | E109: 893 | F109: 91 | G109: 1299
B110: Tesař O (Úho) | C110: Tesař Ondřej | D110: Úholičky | E110: 892 | F110: 91 | G110: 1277
B111: Holeček D (Let) | C111: Holeček David | D111: Lety | E111: 891 | F111: 91 | G111: 1267
B112: Trubnikov S (Úně) | C112: Trubnikov Stanislav | D112: Únětice | E112: 890 | F112: 91 | G112: 1240
B113: Foltyn J (Rud) | C113: Foltyn Jiří | D113: Rudná | E113: 889 | F113: 100.5 | G113: 1284
B114: Šimon M (Roz) | C114: Šimon Matyáš | D114: Roztoky | E114: 888 | F114: 101 | G114: 1247
B115: Polavka Z (Mní) | C115: Polavka Zdeněk | D115: Mníšek | E115: 887 | F115: 101 | G115: 1249
B116: Kruch P (Dav) | C116: Kruch Petr | D116: Davle | E116: 886 | F116: 101 | G116: 1219
A117: x | B117: Ducháčková R (Úho) | C117: Ducháčková Radka | D117: Úholičky | E117: 885 | F117: 101 | G117: 1211
B118: Dalihod J (Úho) | C118: Dalihod Jakub | D118: Úholičky | E118: 884 | F118: 101 | G118: 1263
B119: Stržínek J (Mní) | C119: Stržínek Jiří | D119: Mníšek | E119: 883 | F119: 101 | G119: 1226
B120: Kamenszki I (Stř) | C120: Kamenszki Ivan | D120: Středokluky | E120: 882 | F120: 101 | G120: 1185
B121: Král J (Ves) | C121: Král Jan | D121: Vestec | E121: 881 | F121: 101 | G121: 1192
B122: Tománek F (Dav) | C122: Tománek František | D122: Davle | E122: 880 | F122: 101 | G122: 1195
B123: Vanson P (Stř) | C123: Vanson Patrick | D123: Středokluky | E123: 879 | F123: 101 | G123: 1181
B124: Šenbauer J (Rud) | C124: Šenbauer Jiří | D124: Rudná | E124: 878 | F124: 110.5 | G124: 1175
B125: Wimmerová L (Rud) | C125: Wimmerová Lucie | D125: Rudná | E125: 877 | F125: 110.5 | G125: 1220
B126: Zelenka J (Rud) | C126: Zelenka Jaromír | D126: Rudná | E126: 876 | F126: 110.5 | G126: 1249
B127: Rábová H (Ves) | C127: Rábová Hana | D127: Vestec | E127: 875 | F127: 110.5 | G127: 1148
B128: Šveňha J (Ves) | C128: Šveňha Jiří | D128: Vestec | E128: 874 | F128: 111 | G128: 1203
B129: Knýbel P (Let) | C129: Knýbel Pavel | D129: Lety | E129: 873 | F129: 111 | G129: 1200
B130: Fürst M (Oře) | C130: Fürst Mirko | D130: Ořech | E130: 872 | F130: 111 | G130: 1129
B131: =getPlayerName(C131,D131) -> Matousch Š (Úho) | C131: Matousch Šimon | D131: Úholičky | E131: 871 | F131: 111 | G131: 1130
B132: Dáňa M (Mní) | C132: Dáňa Martin | D132: Mníšek | E132: 870 | F132: 111 | G132: 1125
B133: Kozel V (Úho) | C133: Kozel Vilém | D133: Úholičky | E133: 869 | F133: 111 | G133: 1205
B134: Tichý J (Čer) | C134: Tichý Jiří | D134: Černošice | E134: 868 | F134: 111 | G134: 1128
B135: Richter J (Lib) | C135: Richter Jaroslav st. | D135: Libčice | E135: 867 | F135: 111 | G135: 1256
B136: Veverka V (Oře) | C136: Veverka Václav ml. | D136: Ořech | E136: 866 | F136: 111 | G136: 1134
B137: Lukáš L (Roz) | C137: Lukáš Lukáš | D137: Roztoky | E137: 865 | F137: 111 | G137: 1046
B138: Blažek J (Oře) | C138: Blažek Jiří | D138: Ořech | E138: 864 | F138: 120.5 | G138: 1182
B139: Charvát P (Čer) | C139: Charvát Petr | D139: Černošice | E139: 863 | F139: 120.5 | G139: 1196
B140: Pelant J (Stř) | C140: Pelant Jakub | D140: Středokluky | E140: 862 | F140: 121 | G140: 1112
B141: Tkáč I (Mní) | C141: Tkáč Ivan | D141: Mníšek | E141: 861 | F141: 121 | G141: 1142
B142: Otépka R (Úho) | C142: Otépka Radim | D142: Úholičky | E142: 860 | F142: 121 | G142: 1060
B143: Čáp M (Čer) | C143: Čáp Martin | D143: Černošice | E143: 859 | F143: 121 | G143: 1199
B144: Dostál Z (Lib) | C144: Dostál Zdeněk | D144: Libčice | E144: 858 | F144: 121 | G144: 1122
B145: Zmatlík P (Čer) | C145: Zmatlík Petr | D145: Černošice | E145: 857 | F145: 121 | G145: 1204
B146: Cihelka J (Rud) | C146: Cihelka Jaroslav | D146: Rudná | E146: 856 | F146: 121 | G146: 1124
B147: Vágner J (Roz) | C147: Vágner Jonáš | D147: Roztoky | E147: 855 | F147: 121 | G147: 1089
B148: Veselý P (Čer) | C148: Veselý Petr | D148: Černošice | E148: 854 | F148: 121 | G148: 1074
B149: Votoček J (Lib) | C149: Votoček Jaroslav | D149: Libčice | E149: 853 | F149: 121 | G149: 1086
B150: Tkadlec J (Lib) | C150: Tkadlec Jaroslav | D150: Libčice | E150: 852 | F150: 130.5 | G150: 1142
B151: Nosek M (Čer) | C151: Nosek Michal | D151: Černošice | E151: 851 | F151: 130.5 | G151: 1060
B152: Nágl V (Dav) | C152: Nágl Václav | D152: Davle | E152: 850 | F152: 131 | G152: 1102
B153: Dvořák J (Úho) | C153: Dvořák Jiří | D153: Úholičky | E153: 849 | F153: 131 | G153: 1173
B154: Hrdina P (Čer) | C154: Hrdina Pavel | D154: Černošice | E154: 848 | F154: 131 | G154: 1156
A155: x | B155: Heřman M (Oře) | C155: Heřman Miroslav | D155: Ořech | E155: 847 | F155: 131 | G155: 1095
B156: Hikl J (Stř) | C156: Hikl Josef | D156: Středokluky | E156: 846 | F156: 131 | G156: 1081
B157: Yaroslavtsev V (Oře) | C157: Yaroslavtsev Vitaly | D157: Ořech | E157: 845 | F157: 131 | G157: 1070
B158: Suchý M (Čer) | C158: Suchý Michal | D158: Černošice | E158: 844 | F158: 131 | G158: 1086
B159: Kozel P (Úho) | C159: Kozel Petr | D159: Úholičky | E159: 843 | F159: 131 | G159: 1050
B160: Kalbáč K (Mní) | C160: Kalbáč Karel | D160: Mníšek | E160: 842 | F160: 131 | G160: 1073
B161: Matoušek Z (Oře) | C161: Matoušek Zdeněk | D161: Ořech | E161: 841 | F161: 131 | G161: 1043
B162: Souček J (Čer) | C162: Souček Jan | D162: Černošice | E162: 840 | F162: 140.5 | G162: 1028
B163: Popelka P (Stř) | C163: Popelka Pavel | D163: Středokluky | E163: 839 | F163: 141 | G163: 1079
B164: Veverka V (Oře) | C164: Veverka Václav st. | D164: Ořech | E164: 838 | F164: 141 | G164: 1051
B165: Krejčová B (Oře) | C165: Krejčová Barbora | D165: Ořech | E165: 837 | F165: 141 | G165: 1030
B166: Krásný A (Úho) | C166: Krásný Antonín | D166: Úholičky | E166: 836 | F166: 141 | G166: 1180
B167: Brejcha P (Stř) | C167: Brejcha Petr | D167: Středokluky | E167: 835 | F167: 141 | G167: 1123
B168: Kratochvíl J (Úně) | C168: Kratochvíl Jiří | D168: Únětice | E168: 834 | F168: 141 | G168: 1221
B169: Makovec M (Dav) | C169: Makovec Milan | D169: Davle | E169: 833 | F169: 141 | G169: 994
B170: Hurych V (Úně) | C170: Hurych Vlastislav | D170: Únětice | E170: 832 | F170: 141 | G170: 1037
B171: Severa M (Oře) | C171: Severa Martin | D171: Ořech | E171: 831 | F171: 141 | G171: 1004
B172: Krupička R (Úně) | C172: Krupička Radim | D172: Únětice | E172: 830 | F172: 141 | G172: 973
B173: Černý R (Let) | C173: Černý Radek | D173: Lety | E173: 829 | F173: 150.5 | G173: 1132
B174: Kolbušovský M (Rud) | C174: Kolbušovský Michal | D174: Rudná | E174: 828 | F174: 150.5 | G174: 908
B175: Franc M (Úně) | C175: Franc Martin | D175: Únětice | E175: 827 | F175: 150.5 | G175: 1017
B176: Tříska L (Stř) | C176: Tříska Luboš | D176: Středokluky | E176: 826 | F176: 150.5 | G176: 1057
B177: Vondrová K (Roz) | C177: Vondrová Kristýna nejst. | D177: Roztoky | E177: 825 | F177: 151 | G177: 928
B178: Tobolář K (Lib) | C178: Tobolář Karel | D178: Libčice | E178: 824 | F178: 151 | G178: 970
B179: Šteiger D (Čer) | C179: Šteiger Dominik | D179: Černošice | E179: 823 | F179: 151 | G179: 925
B180: Prudík T (Dav) | C180: Prudík Tomáš | D180: Davle | E180: 822 | F180: 151 | G180: 918
B181: Dvořáková M (Úho) | C181: Dvořáková Martina | D181: Úholičky | E181: 821 | F181: 151 | G181: 828
B182: Freisleben R (Úně) | C182: Freisleben Robin | D182: Únětice | E182: 820 | F182: 151 | G182: 1091
B183: Faltin B (Úně) | C183: Faltin Bohumil | D183: Únětice | E183: 819 | F183: 151 | G183: 838
B184: Anderson B (Úně) | C184: Anderson Ben | D184: Únětice | E184: 818 | F184: 160.5 | G184: 0
B185: Konvalinka M (Lib) | C185: Konvalinka Michal | D185: Libčice | E185: 817 | F185: 160.5 | G185: 0
B186: Boháčová S (Lib) | C186: Boháčová Simona | D186: Libčice | E186: 816 | F186: 160.5 | G186: 0
B187: Horony T (Úho) | C187: Horony Tibor | D187: Úholičky | E187: 815 | F187: 160.5 | G187: 0
B188: Hodač J (Lib) | C188: Hodač Jan | D188: Libčice | E188: 814 | F188: 160.5 | G188: 0
B189: Šťastný J (Oře) | C189: Šťastný Jan | D189: Ořech | E189: 813 | F189: 160.5 | G189: 0
B190: Šťastná D (Oře) | C190: Šťastná Dominika | D190: Ořech | E190: 812 | F190: 160.5 | G190: 0
B191: Šťastná N (Oře) | C191: Šťastná Nataly | D191: Ořech | E191: 811 | F191: 160.5 | G191: 0
B192: Bárta K (Roz) | C192: Bárta Kryštof | D192: Roztoky | E192: 800 | F192: 200 | G192: 0
B193: Vacek J (Roz) | C193: Vacek Jiří | D193: Roztoky | E193: 800 | F193: 200 | G193: 0
B194: Manek J (Lib) | C194: Manek Jakub | D194: Libčice | E194: 800 | F194: 200 | G194: 0
B195: =getPlayerName(C195,D195) -> Selement J (Mní) | C195: Selement Jaroslav | D195: Mníšek | E195: 800 | F195: 200 | G195: 0
B196: Mitáš J (Rud) | C196: Mitáš Josef | D196: Rudná | E196: 800 | F196: 200 | G196: 0
B197: Jakoubek J (Roz) | C197: Jakoubek Jakub | D197: Roztoky | E197: 800 | F197: 200 | G197: 0
B198: Pöschl M (Roz) | C198: Pöschl Miroslav st. | D198: Roztoky | E198: 800 | F198: 200 | G198: 0
B199: Hadrava M (Úho) | C199: Hadrava Miloslav | D199: Úholičky | E199: 800 | F199: 200 | G199: 0
B200: Novák M (Oře) | C200: Novák Marek | D200: Ořech | E200: 800 | F200: 200 | G200: 0
... 146 more rows

Sheet Tisk základ template (hidden)
A2: 1 DIVIZE | C2: Hráči dle žebříčku | D2: Hráči dolosovaní (5.-8.) | E2: Výsledek hry | P2: Výsledek utkání
E3: Set 1 | G3: Set 2. | I3: Set 3. | K3: Set 4. | M3: Set 5.
B4: 1.
B5: 2.
B6: 3.
B7: 4.
A9: 2 DIVIZE | C9: Hráči dle žebříčku | D9: Hráči dolosovaní (13.-16.) | E9: Výsledek hry | P9: Výsledek utkání
E10: Set 1 | G10: Set 2. | I10: Set 3. | K10: Set 4. | M10: Set 5.
B11: 1.
B12: 2.
B13: 3.
B14: 4.
A16: 3 DIVIZE | C16: Hráči dle žebříčku | D16: Hráči dolosovaní (21.-24.) | E16: Výsledek hry | P16: Výsledek utkání
B18: 1.
B19: 2.
B20: 3.
B21: 4.
A23: 4 DIVIZE | C23: Hráči dle žebříčku | D23: Hráči dolosovaní (29.-32.) | E23: Výsledek hry | P23: Výsledek utkání
B25: 1.
B26: 2.
B27: 3.
B28: 4.
A30: 5 DIVIZE | C30: Hráči dle žebříčku | D30: Hráči dolosovaní (37.-40.) | E30: Výsledek hry | P30: Výsledek utkání
B32: 1.
B33: 2.
B34: 3.
B35: 4.
A37: 6 DIVIZE | C37: Hráči dle žebříčku | D37: Hráči dolosovaní (45.-48.) | E37: Výsledek hry | P37: Výsledek utkání
B39: 1. | C39: =#REF! ->  | D39: =#REF! -> 
B40: 2. | C40: =#REF! ->  | D40: =#REF! -> 
B41: 3. | C41: =#REF! ->  | D41: =#REF! -> 
B42: 4. | C42: =#REF! ->  | D42: =#REF! -> 
A44: 7 DIVIZE | C44: Hráči dle žebříčku | D44: Hráči dolosovaní (53.-56.) | E44: Výsledek hry | P44: Výsledek utkání
B46: 1. | C46: =#REF! ->  | D46: =#REF! -> 
B47: 2. | C47: =#REF! ->  | D47: =#REF! -> 
B48: 3. | C48: =#REF! ->  | D48: =#REF! -> 
B49: 4. | C49: =#REF! ->  | D49: =#REF! -> 
A51: 8 DIVIZE | C51: Hráči dle žebříčku | D51: Hráči dolosovaní (61.-64.) | E51: Výsledek hry | P51: Výsledek utkání
B53: 1. | C53: =#REF! ->  | D53: =#REF! -> 
B54: 2. | C54: =#REF! ->  | D54: =#REF! -> 
B55: 3. | C55: =#REF! ->  | D55: =#REF! -> 
B56: 4. | C56: =#REF! ->  | D56: =#REF! -> 

Sheet Tisk druhá část Template (hidden)
B2: 1. Divize - A. | D2: =C3 ->  | F2: =C4 ->  | H2: =C5 ->  | J2: =C6 ->  | L2: Sety | M2: Body | N2: Pořadí | O2: Body | R2: 1 | U2: 3. Divize - A. | W2: =V3 ->  | Y2: =V4 ->  | AA2: =V5 ->  | AC2: =V6 ->  | AE2: Sety | AF2: Body | AG2: Pořadí | AH2: Body | AK2: 1 | AN2: 5. Divize - A. | AX2: Sety | AY2: Body | AZ2: Pořadí | BA2: Body | BD2: 1 | BG2: 7. Divize - A. | BQ2: Sety | BR2: Body | BS2: Pořadí | BW2: 1 | BZ2: 9. Divize - A. | CJ2: Sety | CK2: Body | CL2: Pořadí
C3: =#REF! ->  | V3: =#REF! -> 
C4: =#REF! ->  | V4: =#REF! -> 
C5: =#REF! ->  | V5: =#REF! -> 
C6: =#REF! ->  | V6: =#REF! -> 
C9: Pořadí zápasů | F9: první set | H9: druhý set | J9: třetí set | L9: čtvrtý set | N9: pátý set | Q9: výsledek | V9: Pořadí zápasů | Y9: první set | AA9: druhý set | AC9: třetí set | AE9: čtvrtý set | AG9: pátý set | AJ9: výsledek | AO9: Pořadí zápasů | AR9: první set | AT9: druhý set | AV9: třetí set | AX9: čtvrtý set | AZ9: pátý set | BC9: výsledek | BH9: Pořadí zápasů | BK9: první set | BM9: druhý set | BO9: třetí set | BQ9: čtvrtý set | BS9: pátý set | BV9: výsledek | CA9: Pořadí zápasů | CD9: první set | CF9: druhý set | CH9: třetí set | CJ9: čtvrtý set | CL9: pátý set | CN9: =#REF! ->  | CO9: výsledek
B18: 1. Divize - B. | D18: =C19 ->  | F18: =C20 ->  | H18: =C21 ->  | J18: =C22 ->  | L18: Sety | M18: Body | N18: Pořadí | O18: Body | R18: 1 | U18: 3. Divize - B. | AE18: Sety | AF18: Body | AG18: Pořadí | AH18: Body | AK18: 1 | AN18: 5. Divize - B. | AX18: Sety | AY18: Body | AZ18: Pořadí | BA18: Body | BD18: 1 | BG18: 7. Divize - B. | BQ18: Sety | BR18: Body | BS18: Pořadí | BW18: 1 | BZ18: 9. Divize - B. | CJ18: Sety | CK18: Body | CL18: Pořadí
C19: =#REF! -> 
C20: =#REF! -> 
C21: =#REF! -> 
C22: =#REF! -> 
C26: Pořadí zápasů | F26: první set | H26: druhý set | J26: třetí set | L26: čtvrtý set | N26: pátý set | Q26: výsledek | V26: Pořadí zápasů | Y26: první set | AA26: druhý set | AC26: třetí set | AE26: čtvrtý set | AG26: pátý set | AJ26: výsledek | AO26: Pořadí zápasů | AR26: první set | AT26: druhý set | AV26: třetí set | AX26: čtvrtý set | AZ26: pátý set | BC26: výsledek | BH26: Pořadí zápasů | BK26: první set | BM26: druhý set | BO26: třetí set | BQ26: čtvrtý set | BS26: pátý set | BV26: výsledek | CA26: Pořadí zápasů | CD26: první set | CF26: druhý set | CH26: třetí set | CJ26: čtvrtý set | CL26: pátý set | CN26: =#REF! ->  | CO26: výsledek
B34: =#REF! ->  | D34: =#REF! ->  | F34: =#REF! ->  | H34: =#REF! ->  | J34: =#REF! ->  | L34: Sety | N34: Pořadí | O34: Body | U34: 4. Divize - A. | AE34: Sety | AF34: Body | AG34: Pořadí | AH34: Body | AN34: 6. Divize - A. | AX34: Sety | AY34: Body | AZ34: Pořadí | BA34: Body | BG34: 8. Divize - A. | BQ34: Sety | BR34: Body | BS34: Pořadí | BT34: =#REF! -> 
C35: =#REF! -> 
C36: =#REF! -> 
C37: =#REF! -> 
C38: =#REF! -> 
C41: Pořadí zápasů | F41: první set | H41: druhý set | J41: třetí set | L41: čtvrtý set | N41: pátý set | Q41: výsledek | V41: Pořadí zápasů | Y41: první set | AA41: druhý set | AC41: třetí set | AE41: čtvrtý set | AG41: pátý set | AJ41: výsledek | AO41: Pořadí zápasů | AR41: první set | AT41: druhý set | AV41: třetí set | AX41: čtvrtý set | AZ41: pátý set | BC41: výsledek | BH41: Pořadí zápasů | BK41: první set | BM41: druhý set | BO41: třetí set | BQ41: čtvrtý set | BS41: pátý set | BV41: výsledek
B50: =#REF! ->  | D50: =#REF! ->  | F50: =#REF! ->  | H50: =#REF! ->  | J50: =#REF! ->  | L50: =#REF! ->  | N50: Pořadí | O50: Body | U50: 4. Divize - B. | AE50: Sety | AF50: Body | AG50: Pořadí | AH50: Body | AN50: 6. Divize - B. | AP50: =AO51 ->  | AR50: =AO52 ->  | AT50: =AO53 ->  | AV50: =AO54 ->  | AX50: Sety | AY50: Body | AZ50: Pořadí | BA50: Body | BG50: 8. Divize - B. | BI50: =BH51 ->  | BK50: =BH52 ->  | BM50: =BH53 ->  | BO50: =BH54 ->  | BQ50: Sety | BR50: Body | BS50: Pořadí | BT50: =#REF! -> 
C51: =#REF! ->  | AO51: =#REF! ->  | BH51: =#REF! -> 
C52: =#REF! ->  | AO52: =#REF! ->  | BH52: =#REF! -> 
C53: =#REF! ->  | AO53: =#REF! ->  | BH53: =#REF! -> 
C54: =#REF! ->  | AO54: =#REF! ->  | BH54: =#REF! -> 
D55: =#REF! ->  | E55: =#REF! ->  | F55: =#REF! ->  | G55: =#REF! ->  | H55: =#REF! ->  | I55: =#REF! ->  | J55: =#REF! ->  | K55: =#REF! ->  | L55: =#REF! ->  | M55: =#REF! ->  | N55: =#REF! ->  | O55: =#REF! ->  | W55: =#REF! ->  | X55: =#REF! ->  | Y55: =#REF! ->  | Z55: =#REF! ->  | AA55: =#REF! ->  | AB55: =#REF! ->  | AC55: =#REF! ->  | AD55: =#REF! ->  | AE55: =#REF! ->  | AF55: =#REF! ->  | AG55: =#REF! ->  | AH55: =#REF! ->  | AP55: =#REF! ->  | AQ55: =#REF! ->  | AR55: =#REF! ->  | AS55: =#REF! ->  | AT55: =#REF! ->  | AU55: =#REF! ->  | AV55: =#REF! ->  | AW55: =#REF! ->  | AX55: =#REF! ->  | AY55: =#REF! ->  | AZ55: =#REF! ->  | BA55: =#REF! ->  | BI55: =#REF! ->  | BJ55: =#REF! ->  | BK55: =#REF! ->  | BL55: =#REF! ->  | BM55: =#REF! ->  | BN55: =#REF! ->  | BO55: =#REF! ->  | BP55: =#REF! ->  | BQ55: =#REF! ->  | BR55: =#REF! ->  | BS55: =#REF! ->  | BT55: =#REF! -> 
C58: Pořadí zápasů | F58: první set | H58: druhý set | J58: třetí set | L58: čtvrtý set | N58: pátý set | Q58: výsledek | V58: Pořadí zápasů | Y58: první set | AA58: druhý set | AC58: třetí set | AE58: čtvrtý set | AG58: pátý set | AJ58: výsledek | AO58: Pořadí zápasů | AR58: první set | AT58: druhý set | AV58: třetí set | AX58: čtvrtý set | AZ58: pátý set | BC58: výsledek | BH58: Pořadí zápasů | BK58: první set | BM58: druhý set | BO58: třetí set | BQ58: čtvrtý set | BS58: pátý set | BV58: výsledek
AO59: =#REF! ->  | AP59: =#REF! ->  | BH59: =#REF! ->  | BI59: =#REF! -> 
AO60: =#REF! ->  | AP60: =#REF! ->  | BH60: =#REF! ->  | BI60: =#REF! -> 
AO61: =#REF! ->  | AP61: =#REF! ->  | BH61: =#REF! ->  | BI61: =#REF! -> 
AO62: =#REF! ->  | AP62: =#REF! ->  | BH62: =#REF! ->  | BI62: =#REF! -> 
AO63: =#REF! ->  | AP63: =#REF! ->  | BH63: =#REF! ->  | BI63: =#REF! -> 
AO64: =#REF! ->  | AP64: =#REF! ->  | BH64: =#REF! ->  | BI64: =#REF! -> 

Sheet Conf
C1: Věk
A2: Věk.kateg. | B2: Kategorie | C2: Od | D2: Do | F2: Ročník | G2: Let | H2: Kategorie | I2: 2024
A3: U7 | B3: Mlad.přípravka | C3: 5 | D3: 7 | F3: =+I2-4 -> 2020 | G3: =$I$2-F3 -> 4 | H3: U7
A4: U9 | B4: Starší přípravka | C4: 8 | D4: 9 | F4: =+F3-1 -> 2019 | G4: =$I$2-F4 -> 5 | H4: U7
A5: U11 | B5: Nejmladší žáci | C5: 10 | D5: 11 | F5: =+F4-1 -> 2018 | G5: 6 | H5: U7
A6: U13 | B6: Mladší žáci | C6: 12 | D6: 13 | F6: 2017 | G6: 7 | H6: U7
A7: U15 | B7: Starší žáci | C7: 14 | D7: 15 | F7: 2016 | G7: 8 | H7: U9
A8: U17 | B8: Mladší dorost | C8: 16 | D8: 17 | F8: 2015 | G8: 9 | H8: U9
A9: U19 | B9: Starší dorost | C9: 18 | D9: 19 | F9: 2014 | G9: 10 | H9: U11
F10: 2013 | G10: 11 | H10: U11
F11: 2012 | G11: 12 | H11: U13
F12: 2011 | G12: 13 | H12: U13
F13: 2010 | G13: 14 | H13: U15
F14: 2009 | G14: 15 | H14: U15
F15: 2008 | G15: 16 | H15: U18
F16: 2007 | G16: 17 | H16: U18
F17: 2006 | G17: 18 | H17: U18
F18: 2005 | G18: 19 | H18: U19
F19: 2004 | G19: 20 | H19: Juniori
F20: 2003 | G20: 21 | H20: Juniori

Sheet opMuziCtyrh (hidden)
A1: pritomen | B1: Hráč zkr. | C1: Hráč | D1: Oddíl | E1: Poradi | F1: žebricek | G1: Hráč zkr. | H1: Hráč | I1: Oddíl | J1: Poradi | K1: žebricek | L1: Hráč zkr. | M1: Hráč | N1: Oddíl | O1: Poradi | P1: žebricek
A2: x | B2: =getPlayerName(C2,D2) -> Rudolf T (Úho) | C2: Rudolf Tomáš | D2: Úholičky | E2: 979 | F2: 11 | G2: =getPlayerName(H2,I2) -> Vojtěch D (Úho) | H2: Vojtěch Dušan | I2: Úholičky | J2: 974 | K2: 21 | L2: =getPlayerName(M2,N2) -> Rudolf,Vojtěch (Úho,Úho) | M2: =CONCATENATE(C2,",",H2) -> Rudolf Tomáš,Vojtěch Dušan | N2: =CONCATENATE(D2,",",I2) -> Úholičky,Úholičky | O2: =E2+J2 -> 1953 | P2: =F2+K2 -> 32
A3: x | B3: Frýdl M (Rud) | C3: Frýdl Miloš | D3: Rudná | E3: 997 | F3: 1 | G3: =getPlayerName(H3,I3) -> Mühlhauser Z (Rud) | H3: Mühlhauser Zdeněk | I3: Rudná | J3: 968 | K3: 21 | L3: Frýdl,Mühlhauser (Rud,Rud) | M3: Frýdl Miloš,Mühlhauser Zdeněk | N3: Rudná,Rudná | O3: 1965 | P3: 22
A4: x | B4: Soukup V (Oře) | C4: Soukup Vojtěch | D4: Ořech | E4: 941 | F4: 51 | G4: Poncar K (Oře) | H4: Poncar Karel | I4: Ořech | J4: 937 | K4: 51 | L4: =getPlayerName(M4,N4) -> Soukup,Poncar (Oře,Oře) | M4: =CONCATENATE(C4,",",H4) -> Soukup Vojtěch,Poncar Karel | N4: =CONCATENATE(D4,",",I4) -> Ořech,Ořech | O4: =E4+J4 -> 1878 | P4: =F4+K4 -> 102
A5: x | B5: Redlich M (Oře) | C5: Redlich Michal | D5: Ořech | E5: 967 | F5: 21 | G5: Škoda J (Oře) | H5: Škoda Jiří | I5: Ořech | J5: 962 | K5: 31 | L5: Redlich,Škoda (Oře,Oře) | M5: Redlich Michal,Škoda Jiří | N5: Ořech,Ořech | O5: 1929 | P5: 52
A6: x | B6: Krasničan J (Oře) | C6: Krasničan Jaroslav | D6: Ořech | E6: 964 | F6: 30.5 | G6: Heřman M (Oře) | H6: Heřman Miroslav | I6: Ořech | J6: 847 | K6: 131 | L6: Krasničan,Heřman (Oře,Oře) | M6: Krasničan Jaroslav,Heřman Miroslav | N6: Ořech,Ořech | O6: 1811 | P6: 161.5
A7: x | B7: Skřivánek J (Oře) | C7: Skřivánek Jiří | D7: Ořech | E7: 960 | F7: 31 | G7: Plecitý L (Rud) | H7: Plecitý Lukáš | I7: Rudná | J7: 965 | K7: 21 | L7: Skřivánek,Plecitý (Oře,Rud) | M7: Skřivánek Jiří,Plecitý Lukáš | N7: Ořech,Rudná | O7: 1925 | P7: 52
A8: x | B8: Novák M (Ves) | C8: Novák Michal | D8: Vestec | E8: 975 | F8: 11 | G8: Novák O (Ves) | H8: Novák Ondřej | I8: Vestec | J8: 971 | K8: 21 | L8: Novák,Novák (Ves,Ves) | M8: Novák Michal,Novák Ondřej | N8: Vestec,Vestec | O8: 1946 | P8: 32
A9: x | B9: Eibich J (Roz) | C9: Eibich Jan | D9: Roztoky | E9: 950 | F9: 41 | G9: Šturm V (Roz) | H9: Šturm Vojtěch | I9: Roztoky | J9: 914 | K9: 71 | L9: Eibich,Šturm (Roz,Roz) | M9: Eibich Jan,Šturm Vojtěch | N9: Roztoky,Roztoky | O9: 1864 | P9: 112
A10: x | B10: Vodňanský M (Roz) | C10: Vodňanský Martin | D10: Roztoky | E10: 961 | F10: 31 | G10: Antoš V (Roz) | H10: Antoš Vojtěch | I10: Roztoky | J10: 942 | K10: 51 | L10: Vodňanský,Antoš (Roz,Roz) | M10: Vodňanský Martin,Antoš Vojtěch | N10: Roztoky,Roztoky | O10: 1903 | P10: 82
A11: x | B11: Barcal P (Rud) | C11: Barcal Petr | D11: Rudná | E11: 993 | F11: 1 | G11: Sedmík Z (Rud) | H11: Sedmík Zdeněk | I11: Rudná | J11: 939 | K11: 51 | L11: Barcal,Sedmík (Rud,Rud) | M11: Barcal Petr,Sedmík Zdeněk | N11: Rudná,Rudná | O11: 1932 | P11: 52
A12: x | B12: Vávra A (Oře) | C12: Vávra Aleš | D12: Ořech | E12: 945 | F12: 41 | G12: Zacharda A (Oře) | H12: Zacharda Aleš | I12: Ořech | J12: 918 | K12: 71 | L12: Vávra,Zacharda (Oře,Oře) | M12: Vávra Aleš,Zacharda Aleš | N12: Ořech,Ořech | O12: 1863 | P12: 112
A13: x | B13: Pavlín J (Oře) | C13: Pavlín Jiří | D13: Ořech | E13: 903 | F13: 81 | G13: Ducháčková R (Úho) | H13: Ducháčková Radka | I13: Úholičky | J13: 885 | K13: 101 | L13: Pavlín,Ducháčková (Oře,Úho) | M13: Pavlín Jiří,Ducháčková Radka | N13: Ořech,Úholičky | O13: 1788 | P13: 182
M14: , | N14: , | O14: 0 | P14: 0
M15: , | N15: , | O15: 0 | P15: 0
M16: , | N16: , | O16: 0 | P16: 0
M17: , | N17: , | O17: 0 | P17: 0
M18: , | N18: , | O18: 0 | P18: 0
M19: , | N19: , | O19: 0 | P19: 0
M20: , | N20: , | O20: 0 | P20: 0
M21: , | N21: , | O21: 0 | P21: 0
M22: , | N22: , | O22: 0 | P22: 0
M23: , | N23: , | O23: 0 | P23: 0
M24: , | N24: , | O24: 0 | P24: 0
M25: , | N25: , | O25: 0 | P25: 0
M26: , | N26: , | O26: 0 | P26: 0
M27: , | N27: , | O27: 0 | P27: 0
M28: , | N28: , | O28: 0 | P28: 0
M29: , | N29: , | O29: 0 | P29: 0
M30: , | N30: , | O30: 0 | P30: 0
M31: , | N31: , | O31: 0 | P31: 0
M32: , | N32: , | O32: 0 | P32: 0
M33: , | N33: , | O33: 0 | P33: 0
M34: , | N34: , | O34: 0 | P34: 0
M35: , | N35: , | O35: 0 | P35: 0
M36: , | N36: , | O36: 0 | P36: 0
M37: , | N37: , | O37: 0 | P37: 0
M38: , | N38: , | O38: 0 | P38: 0
M39: , | N39: , | O39: 0 | P39: 0
M40: , | N40: , | O40: 0 | P40: 0
M41: , | N41: , | O41: 0 | P41: 0
M42: , | N42: , | O42: 0 | P42: 0
M43: , | N43: , | O43: 0 | P43: 0
M44: , | N44: , | O44: 0 | P44: 0
M45: , | N45: , | O45: 0 | P45: 0
M46: , | N46: , | O46: 0 | P46: 0
M47: , | N47: , | O47: 0 | P47: 0
M48: , | N48: , | O48: 0 | P48: 0
M49: , | N49: , | O49: 0 | P49: 0
M50: , | N50: , | O50: 0 | P50: 0
M51: , | N51: , | O51: 0 | P51: 0
M52: , | N52: , | O52: 0 | P52: 0
M53: , | N53: , | O53: 0 | P53: 0
M54: , | N54: , | O54: 0 | P54: 0
M55: , | N55: , | O55: 0 | P55: 0
M56: , | N56: , | O56: 0 | P56: 0
M57: , | N57: , | O57: 0 | P57: 0
M58: , | N58: , | O58: 0 | P58: 0
M59: , | N59: , | O59: 0 | P59: 0
M60: , | N60: , | O60: 0 | P60: 0
M61: , | N61: , | O61: 0 | P61: 0
M62: , | N62: , | O62: 0 | P62: 0
M63: , | N63: , | O63: 0 | P63: 0
M64: , | N64: , | O64: 0 | P64: 0
M65: , | N65: , | O65: 0 | P65: 0
M66: , | N66: , | O66: 0 | P66: 0
L67: =getPlayerName(M67,N67) ->  | M67: =CONCATENATE(C67,",",H67) -> , | N67: =CONCATENATE(D67,",",I67) -> , | O67: =E67+J67 -> 0 | P67: =F67+K67 -> 0
M68: , | N68: , | O68: 0 | P68: 0
M69: , | N69: , | O69: 0 | P69: 0
M70: , | N70: , | O70: 0 | P70: 0
M71: , | N71: , | O71: 0 | P71: 0
M72: , | N72: , | O72: 0 | P72: 0
M73: , | N73: , | O73: 0 | P73: 0
M74: , | N74: , | O74: 0 | P74: 0
M75: , | N75: , | O75: 0 | P75: 0
M76: , | N76: , | O76: 0 | P76: 0
M77: , | N77: , | O77: 0 | P77: 0
M78: , | N78: , | O78: 0 | P78: 0
M79: , | N79: , | O79: 0 | P79: 0
M80: , | N80: , | O80: 0 | P80: 0
M81: , | N81: , | O81: 0 | P81: 0
M82: , | N82: , | O82: 0 | P82: 0
M83: , | N83: , | O83: 0 | P83: 0
M84: , | N84: , | O84: 0 | P84: 0
M85: , | N85: , | O85: 0 | P85: 0
M86: , | N86: , | O86: 0 | P86: 0
M87: , | N87: , | O87: 0 | P87: 0
M88: , | N88: , | O88: 0 | P88: 0
M89: , | N89: , | O89: 0 | P89: 0
M90: , | N90: , | O90: 0 | P90: 0
M91: , | N91: , | O91: 0 | P91: 0
M92: , | N92: , | O92: 0 | P92: 0
M93: , | N93: , | O93: 0 | P93: 0
M94: , | N94: , | O94: 0 | P94: 0
M95: , | N95: , | O95: 0 | P95: 0
M96: , | N96: , | O96: 0 | P96: 0
M97: , | N97: , | O97: 0 | P97: 0
M98: , | N98: , | O98: 0 | P98: 0
M99: , | N99: , | O99: 0 | P99: 0
M100: , | N100: , | O100: 0 | P100: 0
M101: , | N101: , | O101: 0 | P101: 0
M102: , | N102: , | O102: 0 | P102: 0
M103: , | N103: , | O103: 0 | P103: 0
M104: , | N104: , | O104: 0 | P104: 0
M105: , | N105: , | O105: 0 | P105: 0
M106: , | N106: , | O106: 0 | P106: 0
M107: , | N107: , | O107: 0 | P107: 0
M108: , | N108: , | O108: 0 | P108: 0
M109: , | N109: , | O109: 0 | P109: 0
M110: , | N110: , | O110: 0 | P110: 0
M111: , | N111: , | O111: 0 | P111: 0
M112: , | N112: , | O112: 0 | P112: 0
M113: , | N113: , | O113: 0 | P113: 0
M114: , | N114: , | O114: 0 | P114: 0

Sheet vychozi
A1: Hráč zkr. | B1: Divize | C1: Přítomen | D1: Právo startu | E1: Sestup | F1: Hráč | G1: Oddíl | H1: Narozen | I1: Kategorie | J1: kateg. | K1: Před. rok | L1: Divize | M1: Výchozí | N1: Neucast | O1: pozice | P1: Aktual | Q1: Pomocny
A2: =IFERROR(CONCATENATE(LEFT(F2,FIND(" ",F2)+4),". ","(",MID(G2,1,3),")"),"") -> Franěk Maty. (Čer) | F2: Franěk Matyáš | G2: Černošice | H2: 2008 | I2: =VLOOKUP(H2,Conf!F:H,3,0) -> U18 | J2: hráč | K2: 1 | L2: =CONCATENATE("D",INT((ROW()-2)/8)+1,"-",MOD(ROW()-2,8)+1) -> D1-1 | M2: 2000 | N2: =-getSubstractionPointKoeficient()*(COUNTA(INDIRECT("Q1:AX1"))-1-COUNT($Q2:$AQ2)) -> 0 | O2: =ROW(A2)-1 -> 1 | P2: =IF(COUNTA(INDIRECT("Q1:AX1"))<2,M2,IF(ISERR(LARGE(Q2:AQ2,1)),IF(M2>0,M2+N2,0),LARGE(Q2:AQ2,1)))+IF(COUNTA(INDIRECT("Q1:AX1"))<3,0,IF(ISERR(LARGE(Q2:AQ2,2)),IF(M2>0,M2+N2,0),LARGE(Q2:AQ2,2)))+IF(COUNTA(INDIRECT("Q1:AX1"))<4,0,IF(ISERR(LARGE(Q2:AQ2,3)),IF(M2>0,M2+N2,0),LARGE(Q2:AQ2,3)))+IF(COUNTA(INDIRECT("Q1:AX1"))<5,0,IF(ISERR(LARGE(Q2:AQ2,4)),IF(M2>0,M2+N2,0),LARGE(Q2:AQ2,4)))+IF(ISERR(LARGE(Q2:AQ2,5)),0,LARGE(Q2:AQ2,5))/10+IF(ISERR(LARGE(Q2:AQ2,6)),0,LARGE(Q2:AQ2,6))/20 -> 2000
A3: Hlavenka Joel. (Čer) | F3: Hlavenka Joel Mathias | G3: Černošice | H3: 2007 | I3: =VLOOKUP(H3,Conf!F:H,3,0) -> U18 | J3: hráč | K3: 2 | L3: D1-2 | M3: 1983 | N3: 0 | O3: 2 | P3: 1983
A4: Ducháček Petr. (Úho) | F4: Ducháček Petr | G4: Úholičky | H4: 2009 | I4: =VLOOKUP(H4,Conf!F:H,3,0) -> U15 | J4: hráč | K4: 4 | L4: D1-3 | M4: 1966 | N4: 0 | O4: 3 | P4: 1966
A5: Hron Maty. (Čer) | F5: Hron Matyáš | G5: Černošice | H5: 2009 | I5: =VLOOKUP(H5,Conf!F:H,3,0) -> U15 | J5: hráč | K5: 5 | L5: D1-4 | M5: 1950 | N5: 0 | O5: 4 | P5: 1950
A6: Knotek Mart. (Dav) | F6: Knotek Martin | G6: Davle | H6: 2008 | I6: =VLOOKUP(H6,Conf!F:H,3,0) -> U18 | J6: hráč | K6: 6 | L6: D1-5 | M6: 1934 | N6: 0 | O6: 5 | P6: 1934
A7: Hlaváček Dani. (Čer) | F7: Hlaváček Daniel | G7: Černošice | H7: 2009 | I7: =VLOOKUP(H7,Conf!F:H,3,0) -> U15 | J7: hráč | K7: 7 | L7: D1-6 | M7: 1918 | N7: 0 | O7: 6 | P7: 1918
A8: Drašar Jaku. (Mní) | F8: Drašar Jakub | G8: Mníšek | H8: 2009 | I8: =VLOOKUP(H8,Conf!F:H,3,0) -> U15 | J8: hráč | K8: 8 | L8: D1-7 | M8: 1902 | N8: 0 | O8: 7 | P8: 1902
A9: Yosypenko Mich. (Úho) | F9: Yosypenko Michal | G9: Úholičky | H9: 2008 | I9: =VLOOKUP(H9,Conf!F:H,3,0) -> U18 | J9: hráč | K9: 9 | L9: D1-8 | M9: 1886 | N9: 0 | O9: 8 | P9: 1886
A10: Boháč Anto. (Lib) | F10: Boháč Antonín | G10: Libčice | H10: 2008 | I10: =VLOOKUP(H10,Conf!F:H,3,0) -> U18 | J10: hráč | K10: 10 | L10: D2-1 | M10: 1870 | N10: 0 | O10: 9 | P10: 1870
A11: Dostál Ondř. (Lib) | F11: Dostál Ondřej | G11: Libčice | H11: 2009 | I11: =VLOOKUP(H11,Conf!F:H,3,0) -> U15 | J11: hráč | K11: 11 | L11: D2-2 | M11: 1853 | N11: 0 | O11: 10 | P11: 1853
A12: Kameník Adam. (Mní) | F12: Kameník Adam | G12: Mníšek | H12: 2010 | I12: =VLOOKUP(H12,Conf!F:H,3,0) -> U15 | J12: hráč | K12: 12 | L12: D2-3 | M12: 1836 | N12: 0 | O12: 11 | P12: 1836
A13: Jurenka Davi. (Rud) | F13: Jurenka David | G13: Rudná | H13: 2007 | I13: =VLOOKUP(H13,Conf!F:H,3,0) -> U18 | J13: hráč | K13: 14 | L13: D2-4 | M13: 1820 | N13: 0 | O13: 12 | P13: 1820
A14: Vybíral Václ. (Dav) | F14: Vybíral Václav | G14: Davle | H14: 2010 | I14: =VLOOKUP(H14,Conf!F:H,3,0) -> U15 | J14: hráč | K14: 15 | L14: D2-5 | M14: 1804 | N14: 0 | O14: 13 | P14: 1804
A15: Břečková Anet. (Úho) | F15: Břečková Aneta | G15: Úholičky | H15: 2008 | I15: =VLOOKUP(H15,Conf!F:H,3,0) -> U18 | J15: hráč | K15: 16 | L15: D2-6 | M15: 1788 | N15: 0 | O15: 14 | P15: 1788
A16: Frinta Maty. (Mní) | F16: Frinta Matyáš | G16: Mníšek | H16: 2009 | I16: =VLOOKUP(H16,Conf!F:H,3,0) -> U15 | J16: hráč | K16: 17 | L16: D2-7 | M16: 1772 | N16: 0 | O16: 15 | P16: 1772
A17: Jesenský Ján. (Mní) | F17: Jesenský Ján | G17: Mníšek | H17: 2010 | I17: =VLOOKUP(H17,Conf!F:H,3,0) -> U15 | J17: hráč | K17: 18 | L17: D2-8 | M17: 1756 | N17: 0 | O17: 16 | P17: 1756
A18: Prokůpek Jiří. (Dav) | F18: Prokůpek Jiří | G18: Davle | H18: 2009 | I18: =VLOOKUP(H18,Conf!F:H,3,0) -> U15 | J18: hráč | K18: 20 | L18: D3-1 | M18: 1740 | N18: 0 | O18: 17 | P18: 1740
A19: Hlavenka Eli . (Čer) | F19: Hlavenka Eli Theodor | G19: Černošice | H19: 2010 | I19: =VLOOKUP(H19,Conf!F:H,3,0) -> U15 | J19: hráč | K19: 21 | L19: D3-2 | M19: 1723 | N19: 0 | O19: 18 | P19: 1723
A20: Lundák Pave. (Dav) | F20: Lundák Pavel | G20: Davle | H20: 2011 | I20: =VLOOKUP(H20,Conf!F:H,3,0) -> U13 | J20: hráč | K20: 22 | L20: D3-3 | M20: 1706 | N20: 0 | O20: 19 | P20: 1706
A21: Dostálová Anet. (Lib) | F21: Dostálová Aneta | G21: Libčice | H21: 2006 | I21: =VLOOKUP(H21,Conf!F:H,3,0) -> U18 | J21: hráč | K21: 23 | L21: D3-4 | M21: 1690 | N21: 0 | O21: 20 | P21: 1690
A22: Chromych Jan. (Dav) | F22: Chromych Jan | G22: Davle | H22: 2006 | I22: =VLOOKUP(H22,Conf!F:H,3,0) -> U18 | J22: hráč | K22: 24 | L22: D3-5 | M22: 1674 | N22: 0 | O22: 21 | P22: 1674
A23: Sazimová Adél. (Úho) | F23: Sazimová Adéla | G23: Úholičky | H23: 2008 | I23: =VLOOKUP(H23,Conf!F:H,3,0) -> U18 | J23: hráč | K23: 25 | L23: D3-6 | M23: 1658 | N23: 0 | O23: 22 | P23: 1658
A24: Kuliš Davi. (Čer) | F24: Kuliš David | G24: Černošice | H24: 2007 | I24: =VLOOKUP(H24,Conf!F:H,3,0) -> U18 | J24: hráč | K24: 27 | L24: D3-7 | M24: 1642 | N24: 0 | O24: 23 | P24: 1642
A25: Valo Václ. (Úho) | F25: Valo Václav | G25: Úholičky | H25: 2009 | I25: =VLOOKUP(H25,Conf!F:H,3,0) -> U15 | J25: hráč | K25: 28 | L25: D3-8 | M25: 1626 | N25: 0 | O25: 24 | P25: 1626
A26: Lacina Thom. (Mní) | F26: Lacina Thomas | G26: Mníšek | H26: 2012 | I26: =VLOOKUP(H26,Conf!F:H,3,0) -> U13 | J26: hráč | K26: 29 | L26: D4-1 | M26: 1610 | N26: 0 | O26: 25 | P26: 1610
A27: Fiala Tobi. (Oře) | F27: Fiala Tobiáš | G27: Ořech | H27: 2010 | I27: =VLOOKUP(H27,Conf!F:H,3,0) -> U15 | J27: hráč | K27: 30 | L27: D4-2 | M27: 1593 | N27: 0 | O27: 26 | P27: 1593
A28: Kunc Luká. (Úho) | F28: Kunc Lukáš | G28: Úholičky | H28: 2008 | I28: =VLOOKUP(H28,Conf!F:H,3,0) -> U18 | J28: hráč | K28: 31 | L28: D4-3 | M28: 1576 | N28: 0 | O28: 27 | P28: 1576
A29: Petříková Joha. (Rud) | F29: Petříková Johana | G29: Rudná | H29: 2013 | I29: =VLOOKUP(H29,Conf!F:H,3,0) -> U11 | J29: hráč | K29: 33 | L29: D4-4 | M29: 1560 | N29: 0 | O29: 28 | P29: 1560
A30: Nguyen Tuan. (Mní) | F30: Nguyen Tuan Tu | G30: Mníšek | H30: 2012 | I30: =VLOOKUP(H30,Conf!F:H,3,0) -> U13 | J30: hráč | K30: 35 | L30: D4-5 | M30: 1544 | N30: 0 | O30: 29 | P30: 1544
A31: Juan Tiag. (Rud) | F31: Juan Tiago | G31: Rudná | H31: 2014 | I31: =VLOOKUP(H31,Conf!F:H,3,0) -> U11 | J31: hráč | K31: 36 | L31: D4-6 | M31: 1528 | N31: 0 | O31: 30 | P31: 1528
A32: Bosch Maya. (Rud) | F32: Bosch Maya | G32: Rudná | H32: 2008 | I32: =VLOOKUP(H32,Conf!F:H,3,0) -> U18 | J32: hráč | K32: 37 | L32: D4-7 | M32: 1512 | N32: 0 | O32: 31 | P32: 1512
A33: Klika Jaku. (Rud) | F33: Klika Jakub | G33: Rudná | H33: 2009 | I33: =VLOOKUP(H33,Conf!F:H,3,0) -> U15 | J33: hráč | K33: 41 | L33: D4-8 | M33: 1496 | N33: 0 | O33: 32 | P33: 1496
A34: =IFERROR(CONCATENATE(LEFT(F34,FIND(" ",F34)+4),". ","(",MID(G34,1,3),")"),"") -> Kabátník Ondr. (Oře) | F34: Kabátník Ondra | G34: Ořech | H34: 2010 | I34: =VLOOKUP(H34,Conf!F:H,3,0) -> U15 | J34: hráč | K34: 42 | L34: =CONCATENATE("D",INT((ROW()-2)/8)+1,"-",MOD(ROW()-2,8)+1) -> D5-1 | M34: 1480 | N34: =-getSubstractionPointKoeficient()*(COUNTA(INDIRECT("Q1:AX1"))-1-COUNT($Q34:$AQ34)) -> 0 | O34: =ROW(A34)-1 -> 33 | P34: =IF(COUNTA(INDIRECT("Q1:AX1"))<2,M34,IF(ISERR(LARGE(Q34:AQ34,1)),IF(M34>0,M34+N34,0),LARGE(Q34:AQ34,1)))+IF(COUNTA(INDIRECT("Q1:AX1"))<3,0,IF(ISERR(LARGE(Q34:AQ34,2)),IF(M34>0,M34+N34,0),LARGE(Q34:AQ34,2)))+IF(COUNTA(INDIRECT("Q1:AX1"))<4,0,IF(ISERR(LARGE(Q34:AQ34,3)),IF(M34>0,M34+N34,0),LARGE(Q34:AQ34,3)))+IF(COUNTA(INDIRECT("Q1:AX1"))<5,0,IF(ISERR(LARGE(Q34:AQ34,4)),IF(M34>0,M34+N34,0),LARGE(Q34:AQ34,4)))+IF(ISERR(LARGE(Q34:AQ34,5)),0,LARGE(Q34:AQ34,5))/10+IF(ISERR(LARGE(Q34:AQ34,6)),0,LARGE(Q34:AQ34,6))/20 -> 1480
A35: Ducháček Mich. (Úho) | F35: Ducháček Michal | G35: Úholičky | H35: 2013 | I35: =VLOOKUP(H35,Conf!F:H,3,0) -> U11 | J35: hráč | K35: 43 | L35: D5-2 | M35: 1463 | N35: 0 | O35: 34 | P35: 1463
A36: Olexa Jaku. (Rud) | F36: Olexa Jakub | G36: Rudná | H36: 2011 | I36: =VLOOKUP(H36,Conf!F:H,3,0) -> U13 | J36: hráč | K36: 44 | L36: D5-3 | M36: 1446 | N36: 0 | O36: 35 | P36: 1446
A37: Frýdlová Tere. (Rud) | F37: Frýdlová Tereza | G37: Rudná | H37: 2013 | I37: =VLOOKUP(H37,Conf!F:H,3,0) -> U11 | J37: hráč | K37: 45 | L37: D5-4 | M37: 1430 | N37: 0 | O37: 36 | P37: 1430
A38: Hošek Ondř. (Mní) | F38: Hošek Ondřej | G38: Mníšek | H38: 2012 | I38: =VLOOKUP(H38,Conf!F:H,3,0) -> U13 | J38: hráč | K38: 46 | L38: D5-5 | M38: 1414 | N38: 0 | O38: 37 | P38: 1414
A39: Andrlík Dali. (Oře) | F39: Andrlík Dalibor | G39: Ořech | H39: 2010 | I39: =VLOOKUP(H39,Conf!F:H,3,0) -> U15 | J39: hráč | K39: 48 | L39: D5-6 | M39: 1398 | N39: 0 | O39: 38 | P39: 1398
A40: Fajt Jaku. (Čer) | F40: Fajt Jakub | G40: Černošice | H40: 2009 | I40: =VLOOKUP(H40,Conf!F:H,3,0) -> U15 | J40: hráč | K40: 49 | L40: D5-7 | M40: 1382 | N40: 0 | O40: 39 | P40: 1382
A41: Stára Jaku. (Úho) | F41: Stára Jakub | G41: Úholičky | H41: 2008 | I41: =VLOOKUP(H41,Conf!F:H,3,0) -> U18 | J41: hráč | K41: 50 | L41: D5-8 | M41: 1366 | N41: 0 | O41: 40 | P41: 1366
A42: Wimmer Víte. (Rud) | F42: Wimmer Vítek | G42: Rudná | H42: 2012 | I42: =VLOOKUP(H42,Conf!F:H,3,0) -> U13 | J42: hráč | K42: 51 | L42: D6-1 | M42: 1350 | N42: 0 | O42: 41 | P42: 1350
A43: Horáčková Anež. (Oře) | F43: Horáčková Anežka | G43: Ořech | H43: 2009 | I43: =VLOOKUP(H43,Conf!F:H,3,0) -> U15 | J43: člen | K43: 52 | L43: D6-2 | M43: 1333 | N43: 0 | O43: 42 | P43: 1333
A44: Adlof Luká. (Úho) | F44: Adlof Lukáš | G44: Úholičky | H44: 2007 | I44: =VLOOKUP(H44,Conf!F:H,3,0) -> U18 | J44: hráč | K44: 53 | L44: D6-3 | M44: 1316 | N44: 0 | O44: 43 | P44: 1316
A45: Framberk Miku. (Lib) | F45: Framberk Mikuláš | G45: Libčice | H45: 2013 | I45: =VLOOKUP(H45,Conf!F:H,3,0) -> U11 | J45: hráč | K45: 54 | L45: D6-4 | M45: 1300 | N45: 0 | O45: 44 | P45: 1300
A46: Tobolář Jind. (Lib) | F46: Tobolář Jindřich | G46: Libčice | H46: 2009 | I46: =VLOOKUP(H46,Conf!F:H,3,0) -> U15 | J46: hráč | K46: 55 | L46: D6-5 | M46: 1284 | N46: 0 | O46: 45 | P46: 1284
A47: Feitz Fran. (Úho) | F47: Feitz František | G47: Úholičky | H47: 2008 | I47: =VLOOKUP(H47,Conf!F:H,3,0) -> U18 | J47: hráč | K47: 56 | L47: D6-6 | M47: 1268 | N47: 0 | O47: 46 | P47: 1268
A48: Špaček Matě. (Oře) | F48: Špaček Matěj | G48: Ořech | H48: 2010 | I48: =VLOOKUP(H48,Conf!F:H,3,0) -> U15 | J48: hráč | K48: 57 | L48: D6-7 | M48: 1252 | N48: 0 | O48: 47 | P48: 1252
A49: Juda Fran. (Lib) | F49: Juda František | G49: Libčice | H49: 2006 | I49: =VLOOKUP(H49,Conf!F:H,3,0) -> U18 | J49: hráč | K49: 58 | L49: D6-8 | M49: 1236 | N49: 0 | O49: 48 | P49: 1236
A50: Šulc Adam. (Oře) | F50: Šulc Adam | G50: Ořech | H50: 2009 | I50: =VLOOKUP(H50,Conf!F:H,3,0) -> U15 | J50: hráč | K50: 60 | L50: D7-1 | M50: 1220 | N50: 0 | O50: 49 | P50: 1220
A51: Patras Maty. (Lib) | F51: Patras Matyáš | G51: Libčice | H51: 2007 | I51: =VLOOKUP(H51,Conf!F:H,3,0) -> U18 | J51: hráč | K51: 61 | L51: D7-2 | M51: 1203 | N51: 0 | O51: 50 | P51: 1203
A52: Šimák Jaro. (Oře) | F52: Šimák Jaroslav | G52: Ořech | H52: 2010 | I52: =VLOOKUP(H52,Conf!F:H,3,0) -> U15 | J52: hráč | K52: 63 | L52: D7-3 | M52: 1186 | N52: 0 | O52: 51 | P52: 1186
A53: Novotný Davi. (Rud) | F53: Novotný David | G53: Rudná | H53: 2013 | I53: =VLOOKUP(H53,Conf!F:H,3,0) -> U11 | J53: hráč | K53: 64 | L53: D7-4 | M53: 1170 | N53: 0 | O53: 52 | P53: 1170
A54: Musil Ondř. (Lib) | F54: Musil Ondřej | G54: Libčice | H54: 2009 | I54: =VLOOKUP(H54,Conf!F:H,3,0) -> U15 | J54: hráč | K54: 65 | L54: D7-5 | M54: 1154 | N54: 0 | O54: 53 | P54: 1154
A55: Müller Vojt. (Dav) | F55: Müller Vojtěch | G55: Davle | H55: 2009 | I55: =VLOOKUP(H55,Conf!F:H,3,0) -> U15 | J55: člen | K55: 100 | L55: D7-6 | M55: 1138 | N55: 0 | O55: 54 | P55: 1138
A56: Středa Luká. (Dav) | F56: Středa Lukáš | G56: Davle | H56: 2010 | I56: =VLOOKUP(H56,Conf!F:H,3,0) -> U15 | J56: člen | K56: 100 | L56: D7-7 | M56: 1138 | N56: 0 | O56: 55 | P56: 1138
A57: Cacek Miku. (Rud) | F57: Cacek Mikuláš | G57: Rudná | H57: 2015 | I57: =VLOOKUP(H57,Conf!F:H,3,0) -> U9 | J57: hráč | K57: 100 | L57: D7-8 | M57: 1138 | N57: 0 | O57: 56 | P57: 1138
A58: Kranát Petr. (Oře) | F58: Kranát Petr | G58: Ořech | H58: 2009 | I58: =VLOOKUP(H58,Conf!F:H,3,0) -> U15 | J58: hráč | K58: 100 | L58: D8-1 | M58: 1138 | N58: 0 | O58: 57 | P58: 1138
A59: Toman Olin. (Dav) | F59: Toman Olin | G59: Davle | H59: 2008 | I59: =VLOOKUP(H59,Conf!F:H,3,0) -> U18 | J59: člen | K59: 100 | L59: D8-2 | M59: 1138 | N59: 0 | O59: 58 | P59: 1138
A60: Skyva Mich. (Dav) | F60: Skyva Michal | G60: Davle | H60: 2006 | I60: =VLOOKUP(H60,Conf!F:H,3,0) -> U18 | J60: hráč | K60: 100 | L60: D8-3 | M60: 1138 | N60: 0 | O60: 59 | P60: 1138
A61: Ponáhlo Mich. (Lib) | F61: Ponáhlo Michal | G61: Libčice | H61: 2007 | I61: =VLOOKUP(H61,Conf!F:H,3,0) -> U18 | J61: hráč | K61: 100 | L61: D8-4 | M61: 1138 | N61: 0 | O61: 60 | P61: 1138
A62: Šťastná Nata. (Oře) | F62: Šťastná Nataly | G62: Ořech | H62: 2008 | I62: =VLOOKUP(H62,Conf!F:H,3,0) -> U18 | J62: hráč | K62: 100 | L62: D8-5 | M62: 1138 | N62: 0 | O62: 61 | P62: 1138
A63: Šťastná Domi. (Oře) | F63: Šťastná Dominika | G63: Ořech | H63: 2008 | I63: =VLOOKUP(H63,Conf!F:H,3,0) -> U18 | J63: hráč | K63: 100 | L63: D8-6 | M63: 1138 | N63: 0 | O63: 62 | P63: 1138
A64: Šťastný Jan. (Oře) | F64: Šťastný Jan | G64: Ořech | H64: 2008 | I64: =VLOOKUP(H64,Conf!F:H,3,0) -> U18 | J64: hráč | K64: 100 | L64: D8-7 | M64: 1138 | N64: 0 | O64: 63 | P64: 1138
A65: Koteljuk Adam. (Oře) | F65: Koteljuk Adam | G65: Ořech | H65: 2010 | I65: =VLOOKUP(H65,Conf!F:H,3,0) -> U15 | J65: hráč | K65: 100 | L65: D8-8 | M65: 1138 | N65: 0 | O65: 64 | P65: 1138
A66: Paliatka Jaku. (Oře) | F66: Paliatka Jakub | G66: Ořech | H66: 2009 | I66: =VLOOKUP(H66,Conf!F:H,3,0) -> U15 | J66: hráč | K66: 100 | L66: D9-1 | M66: 1138 | N66: 0 | O66: 65 | P66: =IF(COUNTA(INDIRECT("Q1:AX1"))<2,M66,IF(ISERR(LARGE(Q66:AQ66,1)),IF(M66>0,M66+N66,0),LARGE(Q66:AQ66,1)))+IF(COUNTA(INDIRECT("Q1:AX1"))<3,0,IF(ISERR(LARGE(Q66:AQ66,2)),IF(M66>0,M66+N66,0),LARGE(Q66:AQ66,2)))+IF(COUNTA(INDIRECT("Q1:AX1"))<4,0,IF(ISERR(LARGE(Q66:AQ66,3)),IF(M66>0,M66+N66,0),LARGE(Q66:AQ66,3)))+IF(COUNTA(INDIRECT("Q1:AX1"))<5,0,IF(ISERR(LARGE(Q66:AQ66,4)),IF(M66>0,M66+N66,0),LARGE(Q66:AQ66,4)))+IF(ISERR(LARGE(Q66:AQ66,5)),0,LARGE(Q66:AQ66,5))/10+IF(ISERR(LARGE(Q66:AQ66,6)),0,LARGE(Q66:AQ66,6))/20 -> 1138
A67: Auf Tade. (Oře) | F67: Auf Tadeáš | G67: Ořech | H67: 2006 | I67: =VLOOKUP(H67,Conf!F:H,3,0) -> U18 | J67: člen | K67: 100 | L67: D9-2 | M67: 1138 | N67: 0 | O67: 66 | P67: 1138
A68: Švehla Fili. (Rud) | F68: Švehla Filip | G68: Rudná | H68: 2009 | I68: =VLOOKUP(H68,Conf!F:H,3,0) -> U15 | J68: hráč | K68: 100 | L68: D9-3 | M68: 1138 | N68: 0 | O68: 67 | P68: 1138

Sheet zebricek_2022
A1: Zebricek mladeze finální za sezonu 2022-2023 (z žebříčku vyloučeni ti co nebyli ani na jednom turnaji)
A2: Hráč | B2: Oddíl | C2: Narozen | D2: Kategorie | E2: kateg. | F2: Před. rok | G2: Divize | H2: Výchozí | I2: Neucast | J2: pozice | K2: Aktual | L2: BTM06(Rud) | M2: BTM05(Úho) | N2: BTM04(Oře) | O2: BTM03(Úho) | P2: BTM02(Rud) | Q2: BTM01(Uhol)
A3: Franěk Matyáš | B3: Černošice | C3: 2008 | D3: U15 | E3: hráč | F3: 70 | G3: D1-1 | I3: 0 | J3: 1 | K3: 8237.5 | L3: 2000 | M3: 2000 | N3: 1970 | O3: 2000 | P3: 1870 | Q3: 1610
A4: Hlavenka Joel Mathias | B4: Černošice | C4: 2007 | D4: U18 | E4: hráč | F4: 23 | G4: D1-2 | I4: 0 | J4: 2 | K4: 8105.5 | L4: 1940 | M4: 1970 | N4: 1920 | O4: 1940 | P4: 1970 | Q4: 1870
A5: Icha Richard | B5: Mníšek | C5: 2005 | D5: U18 | E5: hráč | F5: 8 | G5: D1-3 | I5: 0 | J5: 3 | K5: 7995 | L5: 1920 | M5: 1900 | N5: 1900 | O5: 1900 | P5: 1920 | Q5: 1970
A6: Ducháček Petr | B6: Úholičky | C6: 2009 | D6: U15 | E6: hráč | F6: 11 | G6: D1-4 | I6: 0 | J6: 4 | K6: 7941 | L6: 1900 | M6: 1940 | N6: 1860 | O6: 1920 | P6: 1880 | Q6: 1900
A7: Hron Matyáš | B7: Černošice | C7: 2009 | D7: U15 | E7: hráč | F7: 1 | G7: D1-5 | I7: 0 | J7: 5 | K7: 7940 | L7: 1970 | N7: 2000 | O7: 1970 | Q7: 2000
A8: Knotek Martin | B8: Davle | C8: 2008 | D8: U15 | E8: člen | F8: 2 | G8: D1-6 | I8: 0 | J8: 6 | K8: 7796 | L8: 1880 | M8: 1860 | N8: 1840 | O8: 1840 | P8: 1860 | Q8: 1920
A9: Hlaváček Daniel | B9: Černošice | C9: 2009 | D9: U15 | E9: hráč | F9: 69 | G9: D1-7 | I9: 0 | J9: 7 | K9: 7713 | L9: 1840 | M9: 1810 | N9: 1940 | O9: 1870 | P9: 1740 | Q9: 1580
A10: Drašar Jakub | B10: Mníšek | C10: 2009 | D10: U15 | E10: hráč | F10: 36 | G10: D1-8 | I10: 0 | J10: 8 | K10: 7545 | L10: 1840 | M10: 1870 | N10: 1790 | O10: 1680 | P10: 1790 | Q10: 1710
A11: Yosypenko Michal | B11: Úholičky | C11: 2008 | D11: U15 | E11: hráč | F11: 25 | G11: D2-1 | I11: 0 | J11: 9 | K11: 7480 | L11: 1860 | M11: 1840 | P11: 1940 | Q11: 1840
A12: Boháč Antonín | B12: Libčice | C12: 2008 | D12: U15 | E12: hráč | F12: 7 | G12: D2-2 | I12: 0 | J12: 10 | K12: 7430 | L12: 1730 | O12: 1860 | P12: 1900 | Q12: 1940
A13: Dostál Ondřej | B13: Libčice | C13: 2009 | D13: U15 | E13: hráč | F13: 17 | G13: D2-3 | I13: 0 | J13: 11 | K13: 7417 | M13: 1840 | N13: 1770 | O13: 1790 | P13: 1770 | Q13: 1840
A14: Kameník Adam | B14: Mníšek | C14: 2010 | D14: U13 | E14: hráč | F14: 18 | G14: D2-4 | I14: 0 | J14: 12 | K14: 7360 | M14: 1880 | N14: 1810 | O14: 1810 | Q14: 1860
A15: Bosch Maxmilian | B15: Rudná | C15: 2005 | D15: U18 | E15: hráč | F15: 13 | G15: D2-5 | I15: 0 | J15: 13 | K15: 7310 | L15: 1810 | M15: 1920 | N15: 1840 | O15: 1740
A16: Jurenka David | B16: Rudná | C16: 2007 | D16: U18 | E16: hráč | F16: 6 | G16: D2-6 | I16: 0 | J16: 14 | K16: 7240 | L16: 1790 | N16: 1870 | O16: 1770 | P16: 1810
A17: Vybíral Václav | B17: Davle | C17: 2010 | D17: U13 | E17: člen | F17: 57 | G17: D2-7 | I17: 0 | J17: 15 | K17: 7225 | L17: 1640 | N17: 1880 | O17: 1840 | P17: 1710 | Q17: 1550
A18: Břečková Aneta | B18: Úholičky | C18: 2008 | D18: U15 | E18: hráč | F18: 20 | G18: D2-8 | I18: 0 | J18: 16 | K18: 7216.5 | L18: 1710 | M18: 1710 | N18: 1710 | O18: 1710 | P18: 1730 | Q18: 1810
A19: Frinta Matyáš | B19: Mníšek | C19: 2009 | D19: U15 | E19: hráč | F19: 34 | G19: D3-1 | I19: 0 | J19: 17 | K19: 7140 | L19: 1740 | O19: 1880 | P19: 1840 | Q19: 1680
A20: Jesenský Ján | B20: Mníšek | C20: 2010 | D20: U13 | E20: hráč | F20: 21 | G20: D3-2 | I20: 0 | J20: 18 | K20: 7108 | L20: 1580 | M20: 1770 | N20: 1750 | O20: 1660 | Q20: 1770
A21: Švarcová Liana | B21: Rudná | C21: 2009 | D21: U15 | E21: hráč | F21: 16 | G21: D3-3 | I21: 0 | J21: 19 | K21: 7050 | L21: 1600 | O21: 1730 | P21: 1840 | Q21: 1880
A22: Prokůpek Jiří | B22: Davle | C22: 2009 | D22: U15 | E22: hráč | F22: 61 | G22: D3-4 | I22: 0 | J22: 20 | K22: 7036.5 | L22: 1660 | M22: 1790 | N22: 1710 | O22: 1620 | P22: 1640 | Q22: 1490
A23: Hlavenka Eli Theodor | B23: Černošice | C23: 2010 | D23: U13 | E23: člen | F23: 48 | G23: D3-5 | I23: 0 | J23: 21 | K23: 6978 | L23: 1710 | M23: 1750 | N23: 1740 | O23: 1580 | Q23: 1620
A24: Lundák Pavel | B24: Davle | C24: 2011 | D24: U13 | E24: člen | F24: 47 | G24: D3-6 | I24: 0 | J24: 22 | K24: 6965 | L24: 1750 | M24: 1710 | N24: 1550 | P24: 1710 | Q24: 1640
A25: Dostálová Aneta | B25: Libčice | C25: 2006 | D25: U18 | E25: hráč | F25: 9 | G25: D3-7 | I25: 0 | J25: 23 | K25: 6960 | M25: 1730 | N25: 1730 | O25: 1750 | P25: 1750
A26: Chromych Jan | B26: Davle | C26: 2006 | D26: U18 | E26: hráč | F26: 59 | G26: D3-8 | I26: 0 | J26: 24 | K26: 6861 | L26: 1680 | M26: 1680 | N26: 1680 | O26: 1610 | Q26: 1660
A27: Sazimová Adéla | B27: Úholičky | C27: 2008 | D27: U15 | E27: hráč | F27: 38 | G27: D4-1 | I27: 0 | J27: 25 | K27: 6697 | L27: 1580 | M27: 1600 | N27: 1640 | O27: 1640 | P27: 1580 | Q27: 1580
A28: Teichman Petr | B28: Rudná | C28: 2007 | D28: U18 | E28: člen | F28: 32 | G28: D4-2 | I28: 0 | J28: 26 | K28: 6610 | M28: 1620 | N28: 1600 | P28: 1680 | Q28: 1710
A29: Kuliš David | B29: Černošice | C29: 2007 | D29: U18 | E29: hráč | F29: 40 | G29: D4-3 | I29: 0 | J29: 27 | K29: 6470 | L29: 1610 | M29: 1640 | N29: 1610 | P29: 1610
A30: Valo Václav | B30: Úholičky | C30: 2009 | D30: U15 | E30: hráč | F30: 64 | G30: D4-4 | I30: 0 | J30: 28 | K30: 6437 | L30: 1510 | M30: 1580 | O30: 1580 | P30: 1620 | Q30: 1470
A31: Lacina Thomas | B31: Mníšek | C31: 2012 | D31: U11 | E31: hráč | F31: 71 | G31: D4-5 | I31: 0 | J31: 29 | K31: 6405 | L31: 1620 | M31: 1610 | N31: 1450 | O31: 1550 | P31: 1480
A32: Fiala Tobiáš | B32: Ořech | C32: 2010 | D32: U13 | E32: hráč | F32: 66 | G32: D4-6 | I32: 0 | J32: 30 | K32: 6270 | N32: 1580 | O32: 1600 | P32: 1580 | Q32: 1510
A33: Kunc Lukáš | B33: Úholičky | C33: 2008 | D33: U15 | E33: hráč | F33: 62 | G33: D4-7 | I33: 0 | J33: 31 | K33: 6225 | L33: 1490 | M33: 1550 | O33: 1530 | P33: 1510 | Q33: 1450
A34: Kutilová Krystýna | B34: Rudná | C34: 2009 | D34: U15 | E34: člen | F34: 45 | G34: D4-8 | I34: 0 | J34: 32 | K34: 6200 | L34: 1470 | N34: 1580 | P34: 1550 | Q34: 1600
A35: Petříková Johana | B35: Rudná | C35: 2013 | D35: U11 | E35: hráč | F35: 71 | G35: D5-1 | I35: 0 | J35: 33 | K35: 5870 | L35: 1450 | M35: 1530 | N35: 1300 | O35: 1420 | P35: 1340
A36: Hrabě Michal | B36: Rudná | C36: 2008 | D36: U15 | E36: člen | F36: 52 | G36: D5-2 | I36: 0 | J36: 34 | K36: 5810 | N36: 1470 | O36: 1510 | P36: 1420 | Q36: 1410
A37: Nguyen Tuan Tu | B37: Mníšek | C37: 2012 | D37: U11 | E37: hráč | F37: 71 | G37: D5-3 | I37: 0 | J37: 35 | K37: 5790 | L37: 1380 | N37: 1490 | O37: 1470 | P37: 1450
A38: Juan Tiago | B38: Rudná | C38: 2014 | D38: U9 | E38: hráč | F38: 71 | G38: D5-4 | I38: 0 | J38: 36 | K38: 5622 | L38: 1340 | M38: 1470 | N38: 1320 | O38: 1360 | P38: 1320
A39: Bosch Maya | B39: Rudná | C39: 2008 | D39: U15 | E39: hráč | F39: 26 | G39: D5-5 | I39: 0 | J39: 37 | K39: 5220 | L39: 1770 | M39: 1740 | O39: 1710
A40: Marval Jan | B40: Rudná | C40: 2008 | D40: U15 | E40: člen | F40: 30 | G40: D5-6 | I40: 0 | J40: 38 | K40: 5110 | M40: 1660 | N40: 1660 | Q40: 1790
A41: Kutil Tomáš | B41: Rudná | C41: 2008 | D41: U15 | E41: člen | F41: 31 | G41: D5-7 | I41: 0 | J41: 39 | K41: 5010 | N41: 1620 | P41: 1660 | Q41: 1730
A42: Teichman Radim | B42: Rudná | C42: 2009 | D42: U15 | E42: člen | F42: 53 | G42: D5-8 | I42: 0 | J42: 40 | K42: 4620 | M42: 1580 | N42: 1510 | P42: 1530
A43: Klika Jakub | B43: Rudná | C43: 2009 | D43: U15 | E43: hráč | F43: 71 | G43: D6-1 | I43: 0 | J43: 41 | K43: 4430 | L43: 1530 | M43: 1480 | N43: 1420
A44: Kabátník Ondra | B44: Ořech | C44: 2010 | D44: U13 | E44: hráč | F44: 67 | G44: D6-2 | I44: 0 | J44: 42 | K44: 4410 | N44: 1530 | P44: 1450 | Q44: 1430
A45: Ducháček Michal | B45: Úholičky | C45: 2013 | D45: U11 | E45: hráč | F45: 50 | G45: D6-3 | I45: 0 | J45: 43 | K45: 4330 | M45: 1450 | O45: 1490 | Q45: 1390
A46: Olexa Jakub | B46: Rudná | C46: 2011 | D46: U13 | E46: hráč | F46: 71 | G46: D6-4 | I46: 0 | J46: 44 | K46: 4300 | L46: 1480 | M46: 1420 | N46: 1400
A47: Frýdlová Tereza | B47: Rudná | C47: 2013 | D47: U11 | E47: hráč | F47: 71 | G47: D6-5 | I47: 0 | J47: 45 | K47: 4290 | M47: 1510 | N47: 1380 | O47: 1400
A48: Hošek Ondřej | B48: Mníšek | C48: 2012 | D48: U11 | E48: hráč | F48: 71 | G48: D6-6 | I48: 0 | J48: 46 | K48: 4260 | L48: 1450 | O48: 1450 | P48: 1360
A49: Kolbušovský Michal | B49: Rudná | C49: 2005 | D49: U18 | E49: hráč | F49: 4 | G49: D6-7 | I49: 0 | J49: 47 | K49: 3870 | L49: 1870 | P49: 2000
A50: Andrlík Dalibor | B50: Ořech | C50: 2010 | D50: U13 | E50: hráč | F50: 65 | G50: D6-8 | I50: 0 | J50: 48 | K50: 3130 | P50: 1600 | Q50: 1530
A51: Fajt Jakub | B51: Černošice | C51: 2009 | D51: U15 | E51: člen | F51: 71 | G51: D7-1 | I51: 0 | J51: 49 | K51: 3000 | L51: 1550 | M51: 1450
A52: Stára Jakub | B52: Úholičky | C52: 2008 | D52: U15 | E52: hráč | F52: 71 | G52: D7-2 | I52: 0 | J52: 50 | K52: 2900 | L52: 1420 | N52: 1480
A53: Wimmer Vítek | B53: Rudná | C53: 2012 | D53: U11 | E53: hráč | F53: 71 | G53: D7-3 | I53: 0 | J53: 51 | K53: 2850 | O53: 1450 | P53: 1400
A54: Horáčková Anežka | B54: Ořech | C54: 2009 | D54: U15 | E54: hráč | F54: 71 | G54: D7-4 | I54: 0 | J54: 52 | K54: 2830 | N54: 1450 | P54: 1380
A55: Adlof Lukáš | B55: Úholičky | C55: 2007 | D55: U18 | E55: člen | F55: 71 | G55: D7-5 | I55: 0 | J55: 53 | K55: 2800 | L55: 1400 | M55: 1400
A56: Framberk Mikuláš | B56: Libčice | C56: 2013 | D56: U11 | E56: hráč | F56: 58 | G56: D7-6 | I56: 0 | J56: 54 | K56: 2750 | M56: 1490 | N56: 1260
A57: Tobolář Jindřich | B57: Libčice | C57: 2009 | D57: U15 | E57: hráč | F57: 71 | G57: D7-7 | I57: 0 | J57: 55 | K57: 2740 | M57: 1360 | O57: 1380
A58: Feitz František | B58: Úholičky | C58: 2008 | D58: U15 | E58: člen | F58: 71 | G58: D7-8 | I58: 0 | J58: 56 | K58: 2740 | L58: 1360 | M58: 1380
A59: Špaček Matěj | B59: Ořech | C59: 2010 | D59: U13 | E59: hráč | F59: 71 | G59: D8-1 | I59: 0 | J59: 57 | K59: 2660 | L59: 1320 | N59: 1340
A60: Juda František | B60: Libčice | C60: 2006 | D60: U18 | E60: hráč | F60: 33 | G60: D8-2 | I60: 0 | J60: 58 | K60: 1750 | Q60: 1750
A61: Suchý Marek | B61: Černošice | C61: 2008 | D61: U15 | E61: člen | F61: 39 | G61: D8-3 | I61: 0 | J61: 59 | K61: 1740 | Q61: 1740
A62: Šulc Adam | B62: Ořech | C62: 2009 | D62: U15 | E62: hráč | F62: 63 | G62: D8-4 | I62: 0 | J62: 60 | K62: 1490 | P62: 1490
A63: Patras Matyáš | B63: Libčice | C63: 2007 | D63: U18 | E63: hráč | F63: 51 | G63: D8-5 | I63: 0 | J63: 61 | K63: 1480 | O63: 1480
A64: Kohoutková Karolína | B64: Rudná | C64: 2010 | D64: U13 | E64: člen | F64: 46 | G64: D8-6 | I64: 0 | J64: 62 | K64: 1470 | P64: 1470
A65: Šimák Jaroslav | B65: Ořech | C65: 2010 | D65: U13 | E65: hráč | F65: 68 | G65: D8-7 | I65: 0 | J65: 63 | K65: 1360 | N65: 1360
A66: Novotný David | B66: Rudná | C66: 2013 | D66: U11 | E66: člen | F66: 71 | G66: D8-8 | I66: 0 | J66: 64 | K66: 1300 | L66: 1300
A67: Musil Ondřej | B67: Libčice | C67: 2009 | D67: U15 | E67: hráč | F67: 71 | G67: D9-1 | I67: 0 | J67: 65 | K67: 1280 | N67: 1280
A68: Housa Jiří | B68: Černošice | C68: 2007 | D68: U18 | E68: člen | F68: 71 | G68: D9-2 | I68: 0 | J68: 66 | K68: 0
A69: Pojerová Gabriela | B69: Libčice | C69: 2010 | D69: U13 | E69: hráč | F69: 71 | G69: D9-3 | I69: 0 | J69: 67 | K69: 0
A70: Slapnička Ondřej | B70: Libčice | C70: 2009 | D70: U15 | E70: hráč | F70: 71 | G70: D9-4 | I70: 0 | J70: 68 | K70: 0
A71: Horony Martin | B71: Úholičky | C71: 2007 | D71: U18 | E71: hráč | F71: 71 | G71: D9-5 | I71: 0 | J71: 69 | K71: 0
A72: Kříž Filip | B72: Úholičky | C72: 2007 | D72: U18 | E72: hráč | F72: 71 | G72: D9-6 | I72: 0 | J72: 70 | K72: 0
A73: Müller Vojtěch | B73: Davle | C73: 2009 | D73: U15 | E73: člen | F73: 71 | G73: D9-7 | I73: 0 | J73: 71 | K73: 0
A74: Středa Lukáš | B74: Davle | C74: 2010 | D74: U13 | E74: člen | F74: 71 | G74: D9-8 | I74: 0 | J74: 72 | K74: 0
A75: Hloch Matěj | B75: Roztoky | C75: 2011 | D75: U13 | E75: hráč | F75: 71 | G75: D10-1 | I75: 0 | J75: 73 | K75: 0
A76: Kaláb Adam | B76: Roztoky | C76: 2006 | D76: U18 | E76: hráč | F76: 71 | G76: D10-2 | I76: 0 | J76: 74 | K76: 0
A77: Kuchtová Klára | B77: Roztoky | C77: 2005 | D77: U18 | E77: hráč | F77: 71 | G77: D10-3 | I77: 0 | J77: 75 | K77: 0
A78: Čepela Ondřej | B78: Roztoky | C78: 2008 | D78: U15 | E78: člen | F78: 71 | G78: D10-4 | I78: 0 | J78: 76 | K78: 0
A79: Provazník Adam | B79: Černošice | C79: 2005 | D79: U18 | E79: člen | F79: 71 | G79: D10-5 | I79: 0 | J79: 77 | K79: 0
A80: Freislebenová Sára | B80: Únětice | C80: 2005 | D80: U18 | E80: hráč | F80: 71 | G80: D10-6 | I80: 0 | J80: 78 | K80: 0
A81: Rein Tomáš | B81: Ořech | C81: 2005 | D81: U18 | E81: hráč | F81: 71 | G81: D10-7 | I81: 0 | J81: 79 | K81: 0
A82: Němejc Melichar | B82: Ořech | C82: 2005 | D82: U18 | E82: člen | F82: 71 | G82: D10-8 | I82: 0 | J82: 80 | K82: 0
A83: Cacek Mikuláš | B83: Rudná | C83: 2015 | D83: U9 | E83: člen | F83: 71 | G83: D11-1 | I83: 0 | J83: 81 | K83: 0
A84: Smetanková Amálie | B84: Rudná | C84: 2010 | D84: U13 | E84: člen | F84: 71 | G84: D11-2 | I84: 0 | J84: 82 | K84: 0
A85: Kranát Petr | B85: Ořech | C85: 2009 | D85: U15 | E85: hráč | F85: 60 | G85: D11-3 | I85: 0 | J85: 83 | K85: 0
A86: Toman Olin | B86: Davle | C86: 2008 | D86: U15 | E86: člen | F86: 56 | G86: D11-4 | I86: 0 | J86: 84 | K86: 0
A87: Skyva Michal | B87: Davle | C87: 2006 | D87: U18 | E87: člen | F87: 55 | G87: D11-5 | I87: 0 | J87: 85 | K87: 0
A88: Ponáhlo Michal | B88: Libčice | C88: 2007 | D88: U18 | E88: hráč | F88: 54 | G88: D11-6 | I88: 0 | J88: 86 | K88: 0
A89: Kalinová Hana | B89: Roztoky | C89: 2009 | D89: U15 | E89: hráč | F89: 49 | G89: D11-7 | I89: 0 | J89: 87 | K89: 0
A90: Cabicar Šimon | B90: Roztoky | C90: 2005 | D90: U18 | E90: hráč | F90: 44 | G90: D11-8 | I90: 0 | J90: 88 | K90: 0
A91: Lukáš Filip nejml. | B91: Roztoky | C91: 2011 | D91: U13 | E91: hráč | F91: 43 | G91: D12-1 | I91: 0 | J91: 89 | K91: 0
A92: Vágner Jonáš | B92: Roztoky | C92: 2005 | D92: U18 | E92: hráč | F92: 42 | G92: D12-2 | I92: 0 | J92: 90 | K92: 0
A93: Freudl David | B93: Mníšek | C93: 2009 | D93: U15 | E93: hráč | F93: 41 | G93: D12-3 | I93: 0 | J93: 91 | K93: 0
A94: Příhonský Ernesto | B94: Roztoky | C94: 2010 | D94: U13 | E94: hráč | F94: 37 | G94: D12-4 | I94: 0 | J94: 92 | K94: 0
A95: Machek Jan ml. | B95: Roztoky | C95: 2008 | D95: U15 | E95: hráč | F95: 35 | G95: D12-5 | I95: 0 | J95: 93 | K95: 0
A96: Šťastná Nataly | B96: Ořech | C96: 2008 | D96: U15 | E96: hráč | F96: 29 | G96: D12-6 | I96: 0 | J96: 94 | K96: 0
A97: Hanzlík František | B97: Rudná | C97: 2006 | D97: U18 | E97: člen | F97: 28 | G97: D12-7 | I97: 0 | J97: 95 | K97: 0
A98: Pajer Filip | B98: Černošice | C98: 2005 | D98: U18 | E98: člen | F98: 27 | G98: D12-8 | I98: 0 | J98: 96 | K98: 0
A99: Nováková Karolina | B99: Libčice | C99: 2005 | D99: U18 | E99: hráč | F99: 24 | G99: D13-1 | I99: 0 | J99: 97 | K99: 0
A100: Lukáš Lukáš | B100: Roztoky | C100: 2006 | D100: U18 | E100: hráč | F100: 22 | G100: D13-2 | I100: 0 | J100: 98 | K100: 0
A101: Vašků Karolína | B101: Roztoky | C101: 2010 | D101: U13 | E101: hráč | F101: 19 | G101: D13-3 | I101: 0 | J101: 99 | K101: 0
A102: Šťastná Dominika | B102: Ořech | C102: 2008 | D102: U15 | E102: hráč | F102: 15 | G102: D13-4 | I102: 0 | J102: 100 | K102: 0
A103: Šťastný Jan | B103: Ořech | C103: 2008 | D103: U15 | E103: hráč | F103: 14 | G103: D13-5 | I103: 0 | J103: 101 | K103: 0
A104: Stříbrný Jiří Maxmilián | B104: Roztoky | C104: 2006 | D104: U18 | E104: hráč | F104: 12 | G104: D13-6 | I104: 0 | J104: 102 | K104: 0
A105: Bernard Robin | B105: Mníšek | C105: 2006 | D105: U18 | E105: hráč | F105: 10 | G105: D13-7 | I105: 0 | J105: 103 | K105: 0
A106: Frýdl Lukáš | B106: Rudná | C106: 2010 | D106: U13 | E106: hráč | F106: 5 | G106: D13-8 | I106: 0 | J106: 104 | K106: 0
A107: Hora Ondřej | B107: Rudná | C107: 2007 | D107: U18 | E107: hráč | F107: 3 | G107: D14-1 | I107: 0 | J107: 105 | K107: 0

Sheet evidence_20221105 (hidden)
A1: hrac | B1: oddil | C1: rok narozeni | D1: věk | E1: registrace | F1: Neni na karte Vychozi?
A2: Antoš Vojtěch | B2: Roztoky | C2: 2003 | D2: =YEAR(NOW())-C2 -> 20 | E2: 300Kč | F2: =ISNA(VLOOKUP(A2,#REF!,4,FALSE)) -> FALSE
A3: Bárta Kryštof | B3: Roztoky | C3: 1998 | D3: 25 | E3: 300Kč | F3: =ISNA(VLOOKUP(A3,#REF!,4,FALSE)) -> FALSE
A4: Cabicar Šimon | B4: Roztoky | C4: 2005 | D4: 18 | E4: 150Kč | F4: =ISNA(VLOOKUP(A4,#REF!,4,FALSE)) -> FALSE
A5: Eibich Jan | B5: Roztoky | C5: 1999 | D5: 24 | E5: 300Kč | F5: =ISNA(VLOOKUP(A5,#REF!,4,FALSE)) -> FALSE
A6: Fišman Alexandr | B6: Roztoky | C6: 2003 | D6: 20 | E6: 300Kč | F6: =ISNA(VLOOKUP(A6,#REF!,4,FALSE)) -> FALSE
A7: Hloch Matěj | B7: Roztoky | C7: 2011 | D7: 12 | E7: 150Kč | F7: =ISNA(VLOOKUP(A7,#REF!,4,FALSE)) -> FALSE
A8: Jakoubek Jakub | B8: Roztoky | C8: 1998 | D8: 25 | E8: 300Kč | F8: =ISNA(VLOOKUP(A8,#REF!,4,FALSE)) -> FALSE
A9: Jirásek Jiří | B9: Roztoky | C9: 1975 | D9: 48 | E9: 300Kč | F9: =ISNA(VLOOKUP(A9,#REF!,4,FALSE)) -> FALSE
A10: Kaláb Adam | B10: Roztoky | C10: 2006 | D10: 17 | E10: 150Kč | F10: =ISNA(VLOOKUP(A10,#REF!,4,FALSE)) -> FALSE
A11: Kalinová Hana | B11: Roztoky | C11: 2009 | D11: 14 | E11: 150Kč | F11: =ISNA(VLOOKUP(A11,#REF!,4,FALSE)) -> FALSE
A12: Kuchtová Klára | B12: Roztoky | C12: 2005 | D12: 18 | E12: 150Kč | F12: =ISNA(VLOOKUP(A12,#REF!,4,FALSE)) -> FALSE
A13: Lauermann Matěj | B13: Roztoky | C13: 2002 | D13: 21 | E13: 300Kč | F13: =ISNA(VLOOKUP(A13,#REF!,4,FALSE)) -> FALSE
A14: Levenec Petr | B14: Roztoky | C14: 1978 | D14: 45 | E14: 300Kč | F14: =ISNA(VLOOKUP(A14,#REF!,4,FALSE)) -> FALSE
A15: Lukáš Filip nejml. | B15: Roztoky | C15: 2011 | D15: 12 | E15: 150Kč | F15: =ISNA(VLOOKUP(A15,#REF!,4,FALSE)) -> FALSE
A16: Lukáš Jakub | B16: Roztoky | C16: 1979 | D16: 44 | E16: 300Kč | F16: =ISNA(VLOOKUP(A16,#REF!,4,FALSE)) -> FALSE
A17: Lukáš Lukáš | B17: Roztoky | C17: 2006 | D17: 17 | E17: 150Kč | F17: =ISNA(VLOOKUP(A17,#REF!,4,FALSE)) -> FALSE
A18: Machek Jan ml. | B18: Roztoky | C18: 2008 | D18: 15 | E18: 150Kč | F18: =ISNA(VLOOKUP(A18,#REF!,4,FALSE)) -> FALSE
A19: Pöschl Miroslav st. | B19: Roztoky | C19: 1960 | D19: 63 | E19: 300Kč | F19: =ISNA(VLOOKUP(A19,#REF!,4,FALSE)) -> FALSE
A20: Příhonský Ernesto | B20: Roztoky | C20: 2010 | D20: 13 | E20: 150Kč | F20: =ISNA(VLOOKUP(A20,#REF!,4,FALSE)) -> FALSE
A21: Šimon Matyáš | B21: Roztoky | C21: 2003 | D21: 20 | E21: 300Kč | F21: =ISNA(VLOOKUP(A21,#REF!,4,FALSE)) -> FALSE
A22: Smrček Michal | B22: Roztoky | C22: 1984 | D22: 39 | E22: 300Kč | F22: =ISNA(VLOOKUP(A22,#REF!,4,FALSE)) -> FALSE
A23: Stříbrný Jiří Maxmilián | B23: Roztoky | C23: 2006 | D23: 17 | E23: 150Kč | F23: =ISNA(VLOOKUP(A23,#REF!,4,FALSE)) -> FALSE
A24: Šturm Vojtěch | B24: Roztoky | C24: 2002 | D24: 21 | E24: 300Kč | F24: =ISNA(VLOOKUP(A24,#REF!,4,FALSE)) -> FALSE
A25: Švarc Martin | B25: Roztoky | C25: 1976 | D25: 47 | E25: 300Kč | F25: =ISNA(VLOOKUP(A25,#REF!,4,FALSE)) -> FALSE
A26: Tolárek David | B26: Roztoky | C26: 2002 | D26: 21 | E26: 300Kč | F26: =ISNA(VLOOKUP(A26,#REF!,4,FALSE)) -> FALSE
A27: Vacek Jiří | B27: Roztoky | C27: 1978 | D27: 45 | E27: 300Kč | F27: =ISNA(VLOOKUP(A27,#REF!,4,FALSE)) -> FALSE
A28: Vágner Jonáš | B28: Roztoky | C28: 2005 | D28: 18 | E28: 150Kč | F28: =ISNA(VLOOKUP(A28,#REF!,4,FALSE)) -> FALSE
A29: Vašků Karolína | B29: Roztoky | C29: 2010 | D29: 13 | E29: 150Kč | F29: =ISNA(VLOOKUP(A29,#REF!,4,FALSE)) -> FALSE
A30: Veselý Milan | B30: Roztoky | C30: 1989 | D30: 34 | E30: 300Kč | F30: =ISNA(VLOOKUP(A30,#REF!,4,FALSE)) -> FALSE
A31: Vodňanský Martin | B31: Roztoky | C31: 1981 | D31: 42 | E31: 300Kč | F31: =ISNA(VLOOKUP(A31,#REF!,4,FALSE)) -> FALSE
A32: Vondrová Kristýna nejst. | B32: Roztoky | C32: 2003 | D32: 20 | E32: 300Kč | F32: =ISNA(VLOOKUP(A32,#REF!,4,FALSE)) -> FALSE
A33: Žáček Josef | B33: Roztoky | C33: 1970 | D33: 53 | E33: 300Kč | F33: =ISNA(VLOOKUP(A33,#REF!,4,FALSE)) -> FALSE
A34: Zwiefelhofer Jiří | B34: Roztoky | C34: 1964 | D34: 59 | E34: 300Kč | F34: =ISNA(VLOOKUP(A34,#REF!,4,FALSE)) -> FALSE
A35: Čepela Ondřej | B35: Roztoky | C35: 2008 | D35: 15 | E35: 30Kč | F35: =ISNA(VLOOKUP(A35,#REF!,4,FALSE)) -> FALSE
A36: Lojek Jakub | B36: Roztoky | C36: 2000 | D36: 23 | E36: 30Kč | F36: =ISNA(VLOOKUP(A36,#REF!,4,FALSE)) -> FALSE
A37: Netušil David | B37: Roztoky | C37: 2002 | D37: 21 | E37: 30Kč | F37: =ISNA(VLOOKUP(A37,#REF!,4,FALSE)) -> FALSE
A38: Čáp Martin | B38: Černošice | C38: 1975 | D38: 48 | E38: 300Kč | F38: =ISNA(VLOOKUP(A38,#REF!,4,FALSE)) -> FALSE
A39: Charvát Petr | B39: Černošice | C39: 1947 | D39: 76 | E39: 300Kč | F39: =ISNA(VLOOKUP(A39,#REF!,4,FALSE)) -> FALSE
A40: Cimler Lukáš | B40: Černošice | C40: 1987 | D40: 36 | E40: 300Kč | F40: =ISNA(VLOOKUP(A40,#REF!,4,FALSE)) -> FALSE
A41: Deré Michal | B41: Černošice | C41: 1974 | D41: 49 | E41: 300Kč | F41: =ISNA(VLOOKUP(A41,#REF!,4,FALSE)) -> FALSE
A42: Fischer Jiří | B42: Černošice | C42: 1964 | D42: 59 | E42: 300Kč | F42: =ISNA(VLOOKUP(A42,#REF!,4,FALSE)) -> FALSE
A43: Franěk Matyáš | B43: Černošice | C43: 2008 | D43: 15 | E43: 150Kč | F43: =ISNA(VLOOKUP(A43,#REF!,4,FALSE)) -> FALSE
A44: Hlaváček Daniel | B44: Černošice | C44: 2009 | D44: 14 | E44: 150Kč | F44: =ISNA(VLOOKUP(A44,#REF!,4,FALSE)) -> FALSE
A45: Hlavenka Joel Mathias | B45: Černošice | C45: 2007 | D45: 16 | E45: 150Kč | F45: =ISNA(VLOOKUP(A45,#REF!,4,FALSE)) -> FALSE
A46: Hlavenka Eli Theodor | B46: Černošice | C46: 2010 | D46: 13 | E46: 150Kč | F46: =ISNA(VLOOKUP(A46,#REF!,4,FALSE)) -> FALSE
A47: Hrdina Pavel | B47: Černošice | C47: 1971 | D47: 52 | E47: 300Kč | F47: =ISNA(VLOOKUP(A47,#REF!,4,FALSE)) -> FALSE
A48: Hron Matyáš | B48: Černošice | C48: 2009 | D48: 14 | E48: 150Kč | F48: =ISNA(VLOOKUP(A48,#REF!,4,FALSE)) -> FALSE
A49: Kuliš David | B49: Černošice | C49: 2007 | D49: 16 | E49: 150Kč | F49: =ISNA(VLOOKUP(A49,#REF!,4,FALSE)) -> FALSE
A50: Lágner Petr | B50: Černošice | C50: 1974 | D50: 49 | E50: 300Kč | F50: =ISNA(VLOOKUP(A50,#REF!,4,FALSE)) -> FALSE
A51: Nosek Michal | B51: Černošice | C51: 1985 | D51: 38 | E51: 300Kč | F51: =ISNA(VLOOKUP(A51,#REF!,4,FALSE)) -> FALSE
A52: Roztočilová Tereza | B52: Černošice | C52: 2001 | D52: 22 | E52: 300Kč | F52: =ISNA(VLOOKUP(A52,#REF!,4,FALSE)) -> FALSE
A53: Souček Jan | B53: Černošice | C53: 2000 | D53: 23 | E53: 300Kč | F53: =ISNA(VLOOKUP(A53,#REF!,4,FALSE)) -> FALSE
A54: Šteiger Dominik | B54: Černošice | C54: 2002 | D54: 21 | E54: 300Kč | F54: =ISNA(VLOOKUP(A54,#REF!,4,FALSE)) -> FALSE
A55: Strakoš Jan | B55: Černošice | C55: 1974 | D55: 49 | E55: 300Kč | F55: =ISNA(VLOOKUP(A55,#REF!,4,FALSE)) -> FALSE
A56: Suchý Marek | B56: Černošice | C56: 2008 | D56: 15 | E56: 150Kč | F56: =ISNA(VLOOKUP(A56,#REF!,4,FALSE)) -> FALSE
A57: Suchý Michal | B57: Černošice | C57: 1976 | D57: 47 | E57: 300Kč | F57: =ISNA(VLOOKUP(A57,#REF!,4,FALSE)) -> FALSE
A58: Tichý Jiří | B58: Černošice | C58: 1947 | D58: 76 | E58: 300Kč | F58: =ISNA(VLOOKUP(A58,#REF!,4,FALSE)) -> FALSE
A59: Veselý Petr | B59: Černošice | C59: 1987 | D59: 36 | E59: 300Kč | F59: =ISNA(VLOOKUP(A59,#REF!,4,FALSE)) -> FALSE
A60: Zmatlík Lukáš | B60: Černošice | C60: 1993 | D60: 30 | E60: 300Kč | F60: =ISNA(VLOOKUP(A60,#REF!,4,FALSE)) -> FALSE
A61: Zmatlík Petr | B61: Černošice | C61: 1957 | D61: 66 | E61: 300Kč | F61: =ISNA(VLOOKUP(A61,#REF!,4,FALSE)) -> FALSE
A62: Housa Jiří | B62: Černošice | C62: 2007 | D62: 16 | E62: 30Kč | F62: =ISNA(VLOOKUP(A62,#REF!,4,FALSE)) -> FALSE
A63: Otavová Klaudie | B63: Černošice | C63: 2003 | D63: 20 | E63: 30Kč | F63: =ISNA(VLOOKUP(A63,#REF!,4,FALSE)) -> FALSE
A64: Pajer Filip | B64: Černošice | C64: 2005 | D64: 18 | E64: 30Kč | F64: =ISNA(VLOOKUP(A64,#REF!,4,FALSE)) -> FALSE
A65: Provazník Adam | B65: Černošice | C65: 2005 | D65: 18 | E65: 30Kč | F65: =ISNA(VLOOKUP(A65,#REF!,4,FALSE)) -> FALSE
A66: Wolf Vojtěch | B66: Černošice | C66: 2004 | D66: =YEAR(NOW())-C66 -> 19 | E66: 30Kč | F66: =ISNA(VLOOKUP(A66,#REF!,4,FALSE)) -> FALSE
A67: Anderson Ben | B67: Únětice | C67: 1958 | D67: 65 | E67: 300Kč | F67: =ISNA(VLOOKUP(A67,#REF!,4,FALSE)) -> FALSE
A68: Bartoš Jiří | B68: Únětice | C68: 1957 | D68: 66 | E68: 300Kč | F68: =ISNA(VLOOKUP(A68,#REF!,4,FALSE)) -> FALSE
A69: Faltin Bohumil | B69: Únětice | C69: 2003 | D69: 20 | E69: 300Kč | F69: =ISNA(VLOOKUP(A69,#REF!,4,FALSE)) -> FALSE
A70: Faltin Miloš | B70: Únětice | C70: 1972 | D70: 51 | E70: 300Kč | F70: =ISNA(VLOOKUP(A70,#REF!,4,FALSE)) -> FALSE
A71: Franc Martin | B71: Únětice | C71: 1973 | D71: 50 | E71: 300Kč | F71: =ISNA(VLOOKUP(A71,#REF!,4,FALSE)) -> FALSE
A72: Freisleben Robin | B72: Únětice | C72: 1971 | D72: 52 | E72: 300Kč | F72: =ISNA(VLOOKUP(A72,#REF!,4,FALSE)) -> FALSE
A73: Freislebenová Sára | B73: Únětice | C73: 2005 | D73: 18 | E73: 150Kč | F73: =ISNA(VLOOKUP(A73,#REF!,4,FALSE)) -> FALSE
A74: Hurych Vlastislav | B74: Únětice | C74: 1972 | D74: 51 | E74: 300Kč | F74: =ISNA(VLOOKUP(A74,#REF!,4,FALSE)) -> FALSE
A75: Kratochvíl Jiří | B75: Únětice | C75: 1969 | D75: 54 | E75: 300Kč | F75: =ISNA(VLOOKUP(A75,#REF!,4,FALSE)) -> FALSE
A76: Krupička Radim | B76: Únětice | C76: 1974 | D76: 49 | E76: 300Kč | F76: =ISNA(VLOOKUP(A76,#REF!,4,FALSE)) -> FALSE
A77: Podolský Tomáš | B77: Únětice | C77: 1989 | D77: 34 | E77: 300Kč | F77: =ISNA(VLOOKUP(A77,#REF!,4,FALSE)) -> FALSE
A78: Potužník Adam | B78: Únětice | C78: 2003 | D78: 20 | E78: 300Kč | F78: =ISNA(VLOOKUP(A78,#REF!,4,FALSE)) -> FALSE
A79: Potužník Václav | B79: Únětice | C79: 1972 | D79: 51 | E79: 300Kč | F79: =ISNA(VLOOKUP(A79,#REF!,4,FALSE)) -> FALSE
A80: Sitta Radomír | B80: Únětice | C80: 1969 | D80: 54 | E80: 300Kč | F80: =ISNA(VLOOKUP(A80,#REF!,4,FALSE)) -> FALSE
A81: Trubnikov Stanislav | B81: Únětice | C81: 1965 | D81: 58 | E81: 300Kč | F81: =ISNA(VLOOKUP(A81,#REF!,4,FALSE)) -> FALSE
A82: Bartik Ondřej | B82: Libčice | C82: 1991 | D82: 32 | E82: 300Kč | F82: =ISNA(VLOOKUP(A82,#REF!,4,FALSE)) -> FALSE
A83: Bartoň Milan | B83: Libčice | C83: 1975 | D83: 48 | E83: 300Kč | F83: =ISNA(VLOOKUP(A83,#REF!,4,FALSE)) -> FALSE
A84: Beltrám Javier Ernesto | B84: Libčice | C84: 1978 | D84: 45 | E84: 300Kč | F84: =ISNA(VLOOKUP(A84,#REF!,4,FALSE)) -> FALSE
A85: Boháč Antoním | B85: Libčice | C85: 2008 | D85: 15 | E85: 150Kč | F85: =ISNA(VLOOKUP(A85,#REF!,4,FALSE)) -> FALSE
A86: Boháčová Simona | B86: Libčice | C86: 1976 | D86: 47 | E86: 300Kč | F86: =ISNA(VLOOKUP(A86,#REF!,4,FALSE)) -> FALSE
A87: Česák Michal | B87: Libčice | C87: 1991 | D87: 32 | E87: 300Kč | F87: =ISNA(VLOOKUP(A87,#REF!,4,FALSE)) -> FALSE
A88: Dostál Ondřej | B88: Libčice | C88: 2009 | D88: 14 | E88: 150Kč | F88: =ISNA(VLOOKUP(A88,#REF!,4,FALSE)) -> FALSE
A89: Dostál Zdeněk | B89: Libčice | C89: 1976 | D89: 47 | E89: 300Kč | F89: =ISNA(VLOOKUP(A89,#REF!,4,FALSE)) -> FALSE
A90: Dostálová Aneta | B90: Libčice | C90: 2006 | D90: 17 | E90: 150Kč | F90: =ISNA(VLOOKUP(A90,#REF!,4,FALSE)) -> FALSE
A91: Fišer Štefan | B91: Libčice | C91: 1984 | D91: 39 | E91: 300Kč | F91: =ISNA(VLOOKUP(A91,#REF!,4,FALSE)) -> FALSE
A92: Framberk Jan | B92: Libčice | C92: 1977 | D92: 46 | E92: 300Kč | F92: =ISNA(VLOOKUP(A92,#REF!,4,FALSE)) -> FALSE
A93: Framberk Mikuláš | B93: Libčice | C93: 2013 | D93: 10 | E93: 150Kč | F93: =ISNA(VLOOKUP(A93,#REF!,4,FALSE)) -> FALSE
A94: Hodač Jan | B94: Libčice | C94: 1981 | D94: 42 | E94: 300Kč | F94: =ISNA(VLOOKUP(A94,#REF!,4,FALSE)) -> FALSE
A95: Juda František | B95: Libčice | C95: 2006 | D95: 17 | E95: 150Kč | F95: =ISNA(VLOOKUP(A95,#REF!,4,FALSE)) -> FALSE
A96: Klinga Petr | B96: Libčice | C96: 1963 | D96: 60 | E96: 300Kč | F96: =ISNA(VLOOKUP(A96,#REF!,4,FALSE)) -> FALSE
A97: Konvalinka Michal | B97: Libčice | C97: 1985 | D97: 38 | E97: 300Kč | F97: =ISNA(VLOOKUP(A97,#REF!,4,FALSE)) -> FALSE
A98: Nováková Karolina | B98: Libčice | C98: 2005 | D98: 18 | E98: 150Kč | F98: =ISNA(VLOOKUP(A98,#REF!,4,FALSE)) -> FALSE
A99: Patras Matyáš | B99: Libčice | C99: 2007 | D99: 16 | E99: 150Kč | F99: =ISNA(VLOOKUP(A99,#REF!,4,FALSE)) -> FALSE
A100: Podrápský Jaroslav | B100: Libčice | C100: 1972 | D100: 51 | E100: 300Kč | F100: =ISNA(VLOOKUP(A100,#REF!,4,FALSE)) -> FALSE
A101: Pojerová Gabriela | B101: Libčice | C101: 2010 | D101: 13 | E101: 150Kč | F101: =ISNA(VLOOKUP(A101,#REF!,4,FALSE)) -> FALSE
A102: Ponáhlo Michal | B102: Libčice | C102: 2007 | D102: 16 | E102: 150Kč | F102: =ISNA(VLOOKUP(A102,#REF!,4,FALSE)) -> FALSE
A103: Richter Jaroslav ml. | B103: Libčice | C103: 1973 | D103: 50 | E103: 300Kč | F103: =ISNA(VLOOKUP(A103,#REF!,4,FALSE)) -> FALSE
A104: Richter Jaroslav st. | B104: Libčice | C104: 1951 | D104: 72 | E104: 300Kč | F104: =ISNA(VLOOKUP(A104,#REF!,4,FALSE)) -> FALSE
A105: Richter Vojtěch | B105: Libčice | C105: 1974 | D105: 49 | E105: 300Kč | F105: =ISNA(VLOOKUP(A105,#REF!,4,FALSE)) -> FALSE
A106: Slaměník Richard | B106: Libčice | C106: 1961 | D106: 62 | E106: 300Kč | F106: =ISNA(VLOOKUP(A106,#REF!,4,FALSE)) -> FALSE
A107: Slapnička Ondřej | B107: Libčice | C107: 2009 | D107: 14 | E107: 150Kč | F107: =ISNA(VLOOKUP(A107,#REF!,4,FALSE)) -> FALSE
A108: Špiegel Jan | B108: Libčice | C108: 1961 | D108: 62 | E108: 300Kč | F108: =ISNA(VLOOKUP(A108,#REF!,4,FALSE)) -> FALSE
A109: Šulc Dalibor | B109: Libčice | C109: 1953 | D109: 70 | E109: 300Kč | F109: =ISNA(VLOOKUP(A109,#REF!,4,FALSE)) -> FALSE
A110: Telipský Josef | B110: Libčice | C110: 1968 | D110: 55 | E110: 300Kč | F110: =ISNA(VLOOKUP(A110,#REF!,4,FALSE)) -> FALSE
A111: Tkadlec Jaroslav | B111: Libčice | C111: 1951 | D111: 72 | E111: 300Kč | F111: =ISNA(VLOOKUP(A111,#REF!,4,FALSE)) -> FALSE
A112: Tobolář Karel | B112: Libčice | C112: 1976 | D112: 47 | E112: 300Kč | F112: =ISNA(VLOOKUP(A112,#REF!,4,FALSE)) -> FALSE
A113: Votoček Jaroslav | B113: Libčice | C113: 1950 | D113: 73 | E113: 300Kč | F113: =ISNA(VLOOKUP(A113,#REF!,4,FALSE)) -> FALSE
A114: Kosnar Vladimír | B114: Libčice | C114: 1944 | D114: 79 | E114: 30Kč | F114: =ISNA(VLOOKUP(A114,#REF!,4,FALSE)) -> FALSE
A115: Manek Jakub | B115: Libčice | C115: 2000 | D115: 23 | E115: 30Kč | F115: =ISNA(VLOOKUP(A115,#REF!,4,FALSE)) -> FALSE
A116: Andrlík Dalibor | B116: Ořech | C116: 2010 | D116: 13 | E116: 150Kč | F116: =ISNA(VLOOKUP(A116,#REF!,4,FALSE)) -> FALSE
A117: Blažek Jiří | B117: Ořech | C117: 1994 | D117: 29 | E117: 300Kč | F117: =ISNA(VLOOKUP(A117,#REF!,4,FALSE)) -> FALSE
A118: Bulín Zdeněk | B118: Ořech | C118: 1972 | D118: 51 | E118: 300Kč | F118: =ISNA(VLOOKUP(A118,#REF!,4,FALSE)) -> FALSE
A119: Cafourek Tomáš | B119: Ořech | C119: 2000 | D119: 23 | E119: 300Kč | F119: =ISNA(VLOOKUP(A119,#REF!,4,FALSE)) -> FALSE
A120: Čierny Alexander | B120: Ořech | C120: 1971 | D120: 52 | E120: 300Kč | F120: =ISNA(VLOOKUP(A120,#REF!,4,FALSE)) -> FALSE
A121: Fiala Tobiáš | B121: Ořech | C121: 2010 | D121: 13 | E121: 150Kč | F121: =ISNA(VLOOKUP(A121,#REF!,4,FALSE)) -> FALSE
A122: Flusser Martin | B122: Ořech | C122: 1991 | D122: 32 | E122: 300Kč | F122: =ISNA(VLOOKUP(A122,#REF!,4,FALSE)) -> FALSE
A123: Fürst Mirko | B123: Ořech | C123: 1946 | D123: 77 | E123: 300Kč | F123: =ISNA(VLOOKUP(A123,#REF!,4,FALSE)) -> FALSE
A124: Heřman Miroslav | B124: Ořech | C124: 1978 | D124: 45 | E124: 300Kč | F124: =ISNA(VLOOKUP(A124,#REF!,4,FALSE)) -> FALSE
A125: Hlaváč Jan | B125: Ořech | C125: 2001 | D125: 22 | E125: 300Kč | F125: =ISNA(VLOOKUP(A125,#REF!,4,FALSE)) -> FALSE
A126: Horáčková Anežka | B126: Ořech | C126: 2009 | D126: 14 | E126: 150Kč | F126: =ISNA(VLOOKUP(A126,#REF!,4,FALSE)) -> FALSE
A127: Hruška Ondřej | B127: Ořech | C127: 1995 | D127: 28 | E127: 300Kč | F127: =ISNA(VLOOKUP(A127,#REF!,4,FALSE)) -> FALSE
A128: Hudák Tomáš | B128: Ořech | C128: 2004 | D128: 19 | E128: 150Kč | F128: =ISNA(VLOOKUP(A128,#REF!,4,FALSE)) -> FALSE
A129: Jambor Václav | B129: Ořech | C129: 1945 | D129: 78 | E129: 300Kč | F129: =ISNA(VLOOKUP(A129,#REF!,4,FALSE)) -> FALSE
A130: Kabátník Ondra | B130: Ořech | C130: 2010 | D130: =YEAR(NOW())-C130 -> 13 | E130: 150Kč | F130: =ISNA(VLOOKUP(A130,#REF!,4,FALSE)) -> FALSE
A131: Kohlík Miroslav ml. | B131: Ořech | C131: 1973 | D131: 50 | E131: 300Kč | F131: =ISNA(VLOOKUP(A131,#REF!,4,FALSE)) -> FALSE
A132: Kotěšovská Tereza | B132: Ořech | C132: 2002 | D132: 21 | E132: 300Kč | F132: =ISNA(VLOOKUP(A132,#REF!,4,FALSE)) -> FALSE
A133: Kotěšovský Jan | B133: Ořech | C133: 2002 | D133: 21 | E133: 300Kč | F133: =ISNA(VLOOKUP(A133,#REF!,4,FALSE)) -> FALSE
A134: Kranát Petr | B134: Ořech | C134: 2009 | D134: 14 | E134: 150Kč | F134: =ISNA(VLOOKUP(A134,#REF!,4,FALSE)) -> FALSE
A135: Krasničan Jaroslav | B135: Ořech | C135: 1977 | D135: 46 | E135: 300Kč | F135: =ISNA(VLOOKUP(A135,#REF!,4,FALSE)) -> FALSE
A136: Krejčová Barbora | B136: Ořech | C136: 1996 | D136: 27 | E136: 300Kč | F136: =ISNA(VLOOKUP(A136,#REF!,4,FALSE)) -> FALSE
A137: Matoušek Michal | B137: Ořech | C137: 1982 | D137: 41 | E137: 300Kč | F137: =ISNA(VLOOKUP(A137,#REF!,4,FALSE)) -> FALSE
A138: Matoušek Tomáš | B138: Ořech | C138: 1985 | D138: 38 | E138: 300Kč | F138: =ISNA(VLOOKUP(A138,#REF!,4,FALSE)) -> FALSE
A139: Matoušek Zdeněk | B139: Ořech | C139: 1956 | D139: 67 | E139: 300Kč | F139: =ISNA(VLOOKUP(A139,#REF!,4,FALSE)) -> FALSE
A140: Novák Marek | B140: Ořech | C140: 1996 | D140: 27 | E140: 300Kč | F140: =ISNA(VLOOKUP(A140,#REF!,4,FALSE)) -> FALSE
A141: Pavlín Jiří | B141: Ořech | C141: 1962 | D141: 61 | E141: 300Kč | F141: =ISNA(VLOOKUP(A141,#REF!,4,FALSE)) -> FALSE
A142: Pavlín Šimon | B142: Ořech | C142: 1997 | D142: 26 | E142: 300Kč | F142: =ISNA(VLOOKUP(A142,#REF!,4,FALSE)) -> FALSE
A143: Píš Daniel | B143: Ořech | C143: 1969 | D143: 54 | E143: 300Kč | F143: =ISNA(VLOOKUP(A143,#REF!,4,FALSE)) -> FALSE
A144: Píš Ondřej | B144: Ořech | C144: 1995 | D144: 28 | E144: 300Kč | F144: =ISNA(VLOOKUP(A144,#REF!,4,FALSE)) -> FALSE
A145: Poncar Karel | B145: Ořech | C145: 2001 | D145: 22 | E145: 300Kč | F145: =ISNA(VLOOKUP(A145,#REF!,4,FALSE)) -> FALSE
A146: Pražská Lenka | B146: Ořech | C146: 1966 | D146: 57 | E146: 300Kč | F146: =ISNA(VLOOKUP(A146,#REF!,4,FALSE)) -> FALSE
A147: Ptáčník Martin | B147: Ořech | C147: 1989 | D147: 34 | E147: 300Kč | F147: =ISNA(VLOOKUP(A147,#REF!,4,FALSE)) -> FALSE
A148: Redlich Michal | B148: Ořech | C148: 2003 | D148: 20 | E148: 300Kč | F148: =ISNA(VLOOKUP(A148,#REF!,4,FALSE)) -> FALSE
A149: Rein Tomáš | B149: Ořech | C149: 2005 | D149: 18 | E149: 150Kč | F149: =ISNA(VLOOKUP(A149,#REF!,4,FALSE)) -> FALSE
A150: Severa Martin | B150: Ořech | C150: 1968 | D150: 55 | E150: 300Kč | F150: =ISNA(VLOOKUP(A150,#REF!,4,FALSE)) -> FALSE
A151: Šimák Jaroslav | B151: Ořech | C151: 2010 | D151: 13 | E151: 150Kč | F151: =ISNA(VLOOKUP(A151,#REF!,4,FALSE)) -> FALSE
A152: Škoda Jiří | B152: Ořech | C152: 1992 | D152: 31 | E152: 300Kč | F152: =ISNA(VLOOKUP(A152,#REF!,4,FALSE)) -> FALSE
A153: Skřivánek Jiří | B153: Ořech | C153: 1973 | D153: 50 | E153: 300Kč | F153: =ISNA(VLOOKUP(A153,#REF!,4,FALSE)) -> FALSE
A154: Soukup Vojtěch | B154: Ořech | C154: 2002 | D154: 21 | E154: 300Kč | F154: =ISNA(VLOOKUP(A154,#REF!,4,FALSE)) -> FALSE
A155: Šrenk Štěpán | B155: Ořech | C155: 2001 | D155: 22 | E155: 300Kč | F155: =ISNA(VLOOKUP(A155,#REF!,4,FALSE)) -> FALSE
A156: Šťastná Dominika | B156: Ořech | C156: 2008 | D156: 15 | E156: 150Kč | F156: =ISNA(VLOOKUP(A156,#REF!,4,FALSE)) -> FALSE
A157: Šťastná Nataly | B157: Ořech | C157: 2008 | D157: 15 | E157: 150Kč | F157: =ISNA(VLOOKUP(A157,#REF!,4,FALSE)) -> FALSE
A158: Šťastný Jan | B158: Ořech | C158: 2008 | D158: 15 | E158: 150Kč | F158: =ISNA(VLOOKUP(A158,#REF!,4,FALSE)) -> FALSE
A159: Šulc Adam | B159: Ořech | C159: 2009 | D159: 14 | E159: 150Kč | F159: =ISNA(VLOOKUP(A159,#REF!,4,FALSE)) -> FALSE
A160: Vávra Aleš | B160: Ořech | C160: 1998 | D160: 25 | E160: 300Kč | F160: =ISNA(VLOOKUP(A160,#REF!,4,FALSE)) -> FALSE
A161: Veselý Miroslav | B161: Ořech | C161: 1965 | D161: 58 | E161: 300Kč | F161: =ISNA(VLOOKUP(A161,#REF!,4,FALSE)) -> FALSE
A162: Veverka Jan | B162: Ořech | C162: 1997 | D162: 26 | E162: 300Kč | F162: =ISNA(VLOOKUP(A162,#REF!,4,FALSE)) -> FALSE
A163: Veverka Václav ml. | B163: Ořech | C163: 2000 | D163: 23 | E163: 300Kč | F163: =ISNA(VLOOKUP(A163,#REF!,4,FALSE)) -> FALSE
A164: Veverka Václav st. | B164: Ořech | C164: 1961 | D164: 62 | E164: 300Kč | F164: =ISNA(VLOOKUP(A164,#REF!,4,FALSE)) -> FALSE
A165: Yaroslavtsev Vitaly | B165: Ořech | C165: 1959 | D165: 64 | E165: 300Kč | F165: =ISNA(VLOOKUP(A165,#REF!,4,FALSE)) -> FALSE
A166: Zacharda Aleš | B166: Ořech | C166: 1972 | D166: 51 | E166: 300Kč | F166: =ISNA(VLOOKUP(A166,#REF!,4,FALSE)) -> FALSE
A167: Helt Miroslav | B167: Ořech | C167: 1951 | D167: 72 | E167: 30Kč | F167: =ISNA(VLOOKUP(A167,#REF!,4,FALSE)) -> FALSE
A168: Kohlík Miroslav st. | B168: Ořech | C168: 1949 | D168: 74 | E168: 30Kč | F168: =ISNA(VLOOKUP(A168,#REF!,4,FALSE)) -> FALSE
A169: Němejc Melichar | B169: Ořech | C169: 2005 | D169: 18 | E169: 30Kč | F169: =ISNA(VLOOKUP(A169,#REF!,4,FALSE)) -> FALSE
A170: Pražský Michal | B170: Ořech | C170: 1997 | D170: 26 | E170: 30Kč | F170: =ISNA(VLOOKUP(A170,#REF!,4,FALSE)) -> FALSE
A171: Brejcha Petr | B171: Středokluky | C171: 1961 | D171: 62 | E171: 300Kč | F171: =ISNA(VLOOKUP(A171,#REF!,4,FALSE)) -> FALSE
A172: Chval Ivan | B172: Středokluky | C172: 1962 | D172: 61 | E172: 300Kč | F172: =ISNA(VLOOKUP(A172,#REF!,4,FALSE)) -> FALSE
A173: Hikl Josef | B173: Středokluky | C173: 1947 | D173: 76 | E173: 300Kč | F173: =ISNA(VLOOKUP(A173,#REF!,4,FALSE)) -> FALSE
A174: Kačerovský Zdeněk | B174: Středokluky | C174: 1975 | D174: 48 | E174: 300Kč | F174: =ISNA(VLOOKUP(A174,#REF!,4,FALSE)) -> FALSE
A175: Kamenszki Ivan | B175: Středokluky | C175: 1972 | D175: 51 | E175: 300Kč | F175: =ISNA(VLOOKUP(A175,#REF!,4,FALSE)) -> FALSE
A176: Pelant Jakub | B176: Středokluky | C176: 1980 | D176: 43 | E176: 300Kč | F176: =ISNA(VLOOKUP(A176,#REF!,4,FALSE)) -> FALSE
A177: Popelka Pavel | B177: Středokluky | C177: 1973 | D177: 50 | E177: 300Kč | F177: =ISNA(VLOOKUP(A177,#REF!,4,FALSE)) -> FALSE
A178: Tolar Jakub | B178: Středokluky | C178: 1995 | D178: 28 | E178: 300Kč | F178: =ISNA(VLOOKUP(A178,#REF!,4,FALSE)) -> FALSE
A179: Tolar Petr | B179: Středokluky | C179: 1970 | D179: 53 | E179: 300Kč | F179: =ISNA(VLOOKUP(A179,#REF!,4,FALSE)) -> FALSE
A180: Tříska Luboš | B180: Středokluky | C180: 1961 | D180: 62 | E180: 300Kč | F180: =ISNA(VLOOKUP(A180,#REF!,4,FALSE)) -> FALSE
A181: Vanson Patrick | B181: Středokluky | C181: 1967 | D181: 56 | E181: 300Kč | F181: =ISNA(VLOOKUP(A181,#REF!,4,FALSE)) -> FALSE
A182: Vinš Antonín | B182: Středokluky | C182: 1995 | D182: 28 | E182: 300Kč | F182: =ISNA(VLOOKUP(A182,#REF!,4,FALSE)) -> FALSE
A183: Coubalová Martina | B183: Vestec | C183: 1974 | D183: 49 | E183: 300Kč | F183: =ISNA(VLOOKUP(A183,#REF!,4,FALSE)) -> FALSE
A184: Halodová Petra | B184: Vestec | C184: 1974 | D184: 49 | E184: 300Kč | F184: =ISNA(VLOOKUP(A184,#REF!,4,FALSE)) -> FALSE
A185: Hozman Bohumil | B185: Vestec | C185: 1954 | D185: 69 | E185: 300Kč | F185: =ISNA(VLOOKUP(A185,#REF!,4,FALSE)) -> FALSE
A186: Ihl Roman | B186: Vestec | C186: 1967 | D186: 56 | E186: 300Kč | F186: =ISNA(VLOOKUP(A186,#REF!,4,FALSE)) -> FALSE
A187: Jungvirt Tomáš | B187: Vestec | C187: 1981 | D187: 42 | E187: 300Kč | F187: =ISNA(VLOOKUP(A187,#REF!,4,FALSE)) -> FALSE
A188: Král Jan | B188: Vestec | C188: 1955 | D188: 68 | E188: 300Kč | F188: =ISNA(VLOOKUP(A188,#REF!,4,FALSE)) -> FALSE
A189: Kurková Marie | B189: Vestec | C189: 1973 | D189: 50 | E189: 300Kč | F189: =ISNA(VLOOKUP(A189,#REF!,4,FALSE)) -> FALSE
A190: Lachout Miroslav | B190: Vestec | C190: 1954 | D190: 69 | E190: 300Kč | F190: =ISNA(VLOOKUP(A190,#REF!,4,FALSE)) -> FALSE
A191: Malínek Lukáš | B191: Vestec | C191: 1972 | D191: 51 | E191: 300Kč | F191: =ISNA(VLOOKUP(A191,#REF!,4,FALSE)) -> FALSE
A192: Michal František | B192: Vestec | C192: 1982 | D192: 41 | E192: 300Kč | F192: =ISNA(VLOOKUP(A192,#REF!,4,FALSE)) -> FALSE
A193: Novák Michal | B193: Vestec | C193: 1998 | D193: 25 | E193: 300Kč | F193: =ISNA(VLOOKUP(A193,#REF!,4,FALSE)) -> FALSE
A194: Novák Ondřej | B194: Vestec | C194: 1992 | D194: =YEAR(NOW())-C194 -> 31 | E194: 300Kč | F194: =ISNA(VLOOKUP(A194,#REF!,4,FALSE)) -> FALSE
A195: Přáda Jaroslav | B195: Vestec | C195: 1958 | D195: 65 | E195: 300Kč | F195: =ISNA(VLOOKUP(A195,#REF!,4,FALSE)) -> FALSE
A196: Ráb Václav | B196: Vestec | C196: 1983 | D196: 40 | E196: 300Kč | F196: =ISNA(VLOOKUP(A196,#REF!,4,FALSE)) -> FALSE
A197: Rábová Hana | B197: Vestec | C197: 1989 | D197: 34 | E197: 300Kč | F197: =ISNA(VLOOKUP(A197,#REF!,4,FALSE)) -> FALSE
A198: Řízek Jiří | B198: Vestec | C198: 1956 | D198: 67 | E198: 300Kč | F198: =ISNA(VLOOKUP(A198,#REF!,4,FALSE)) -> FALSE
A199: Rusová Barbora | B199: Vestec | C199: 1985 | D199: 38 | E199: 300Kč | F199: =ISNA(VLOOKUP(A199,#REF!,4,FALSE)) -> FALSE
A200: Sedláček Luděk | B200: Vestec | C200: 1973 | D200: 50 | E200: 300Kč | F200: =ISNA(VLOOKUP(A200,#REF!,4,FALSE)) -> FALSE
... 147 more rows

Sheet evidence_20230925
A1: hrac | B1: oddil | C1: rok narozeni | D1: věk | E1: registrace | F1: Neni na karte Vychozi?
A2: Antoš Vojtěch | B2: Roztoky | C2: 2003 | D2: =YEAR(NOW())-C2 -> 20 | E2: 300Kč | F2: =ISNA(VLOOKUP(A2,vychozi!F:I,4,FALSE)) -> TRUE
A3: Cabicar Šimon | B3: Roztoky | C3: 2005 | D3: 18 | E3: 150Kč | F3: =ISNA(VLOOKUP(A3,vychozi!F:I,4,FALSE)) -> TRUE
A4: Eibich Jan | B4: Roztoky | C4: 1999 | D4: 24 | E4: 300Kč | F4: =ISNA(VLOOKUP(A4,vychozi!F:I,4,FALSE)) -> TRUE
A5: Fišman Alexandr | B5: Roztoky | C5: 2003 | D5: 20 | E5: 300Kč | F5: =ISNA(VLOOKUP(A5,vychozi!F:I,4,FALSE)) -> TRUE
A6: Hloch Matěj | B6: Roztoky | C6: 2011 | D6: 12 | E6: 150Kč | F6: =ISNA(VLOOKUP(A6,vychozi!F:I,4,FALSE)) -> TRUE
A7: Jakoubek Jakub | B7: Roztoky | C7: 1998 | D7: 25 | E7: 300Kč | F7: =ISNA(VLOOKUP(A7,vychozi!F:I,4,FALSE)) -> TRUE
A8: Jirásek Jiří | B8: Roztoky | C8: 1975 | D8: 48 | E8: 300Kč | F8: =ISNA(VLOOKUP(A8,vychozi!F:I,4,FALSE)) -> TRUE
A9: Kalinová Hana | B9: Roztoky | C9: 2009 | D9: 14 | E9: 150Kč | F9: =ISNA(VLOOKUP(A9,vychozi!F:I,4,FALSE)) -> TRUE
A10: Kuchtová Klára | B10: Roztoky | C10: 2005 | D10: 18 | E10: 150Kč | F10: =ISNA(VLOOKUP(A10,vychozi!F:I,4,FALSE)) -> TRUE
A11: Levenec Petr | B11: Roztoky | C11: 1978 | D11: 45 | E11: 300Kč | F11: =ISNA(VLOOKUP(A11,vychozi!F:I,4,FALSE)) -> TRUE
A12: Lukáš Filip nejml. | B12: Roztoky | C12: 2011 | D12: 12 | E12: 150Kč | F12: =ISNA(VLOOKUP(A12,vychozi!F:I,4,FALSE)) -> TRUE
A13: Lukáš Jakub | B13: Roztoky | C13: 1979 | D13: 44 | E13: 300Kč | F13: =ISNA(VLOOKUP(A13,vychozi!F:I,4,FALSE)) -> TRUE
A14: Lukáš Lukáš | B14: Roztoky | C14: 2006 | D14: 17 | E14: 150Kč | F14: =ISNA(VLOOKUP(A14,vychozi!F:I,4,FALSE)) -> TRUE
A15: Machek Jan ml. | B15: Roztoky | C15: 2008 | D15: 15 | E15: 150Kč | F15: =ISNA(VLOOKUP(A15,vychozi!F:I,4,FALSE)) -> TRUE
A16: Pöschl Miroslav st. | B16: Roztoky | C16: 1960 | D16: 63 | E16: 300Kč | F16: =ISNA(VLOOKUP(A16,vychozi!F:I,4,FALSE)) -> TRUE
A17: Příhonský Ernesto | B17: Roztoky | C17: 2010 | D17: 13 | E17: 150Kč | F17: =ISNA(VLOOKUP(A17,vychozi!F:I,4,FALSE)) -> TRUE
A18: Šimon Matyáš | B18: Roztoky | C18: 2003 | D18: 20 | E18: 300Kč | F18: =ISNA(VLOOKUP(A18,vychozi!F:I,4,FALSE)) -> TRUE
A19: Smrček Michal | B19: Roztoky | C19: 1984 | D19: 39 | E19: 300Kč | F19: =ISNA(VLOOKUP(A19,vychozi!F:I,4,FALSE)) -> TRUE
A20: Stříbrný Jiří Maxmilián | B20: Roztoky | C20: 2006 | D20: 17 | E20: 150Kč | F20: =ISNA(VLOOKUP(A20,vychozi!F:I,4,FALSE)) -> TRUE
A21: Šturm Vojtěch | B21: Roztoky | C21: 2002 | D21: 21 | E21: 300Kč | F21: =ISNA(VLOOKUP(A21,vychozi!F:I,4,FALSE)) -> TRUE
A22: Švarc Martin | B22: Roztoky | C22: 1976 | D22: 47 | E22: 300Kč | F22: =ISNA(VLOOKUP(A22,vychozi!F:I,4,FALSE)) -> TRUE
A23: Vacek Jiří | B23: Roztoky | C23: 1978 | D23: 45 | E23: 300Kč | F23: =ISNA(VLOOKUP(A23,vychozi!F:I,4,FALSE)) -> TRUE
A24: Vágner Jonáš | B24: Roztoky | C24: 2005 | D24: 18 | E24: 150Kč | F24: =ISNA(VLOOKUP(A24,vychozi!F:I,4,FALSE)) -> TRUE
A25: Vašků Karolína | B25: Roztoky | C25: 2010 | D25: 13 | E25: 150Kč | F25: =ISNA(VLOOKUP(A25,vychozi!F:I,4,FALSE)) -> TRUE
A26: Veselý Milan | B26: Roztoky | C26: 1989 | D26: 34 | E26: 300Kč | F26: =ISNA(VLOOKUP(A26,vychozi!F:I,4,FALSE)) -> TRUE
A27: Vodňanský Martin | B27: Roztoky | C27: 1981 | D27: 42 | E27: 300Kč | F27: =ISNA(VLOOKUP(A27,vychozi!F:I,4,FALSE)) -> TRUE
A28: Vondrová Kristýna nejst. | B28: Roztoky | C28: 2003 | D28: 20 | E28: 300Kč | F28: =ISNA(VLOOKUP(A28,vychozi!F:I,4,FALSE)) -> TRUE
A29: Žáček Josef | B29: Roztoky | C29: 1970 | D29: 53 | E29: 300Kč | F29: =ISNA(VLOOKUP(A29,vychozi!F:I,4,FALSE)) -> TRUE
A30: Zwiefelhofer Jiří | B30: Roztoky | C30: 1964 | D30: 59 | E30: 300Kč | F30: =ISNA(VLOOKUP(A30,vychozi!F:I,4,FALSE)) -> TRUE
A31: Čáp Martin | B31: Černošice | C31: 1975 | D31: 48 | E31: 300Kč | F31: =ISNA(VLOOKUP(A31,vychozi!F:I,4,FALSE)) -> TRUE
A32: Charvát Petr | B32: Černošice | C32: 1947 | D32: 76 | E32: 300Kč | F32: =ISNA(VLOOKUP(A32,vychozi!F:I,4,FALSE)) -> TRUE
A33: Cimler Lukáš | B33: Černošice | C33: 1987 | D33: 36 | E33: 300Kč | F33: =ISNA(VLOOKUP(A33,vychozi!F:I,4,FALSE)) -> TRUE
A34: Deré Michal | B34: Černošice | C34: 1974 | D34: 49 | E34: 300Kč | F34: =ISNA(VLOOKUP(A34,vychozi!F:I,4,FALSE)) -> TRUE
A35: Fajt Jakub | B35: Černošice | C35: 2009 | D35: 14 | E35: 150Kč | F35: =ISNA(VLOOKUP(A35,vychozi!F:I,4,FALSE)) -> FALSE
A36: Fischer Jiří | B36: Černošice | C36: 1964 | D36: 59 | E36: 300Kč | F36: =ISNA(VLOOKUP(A36,vychozi!F:I,4,FALSE)) -> TRUE
A37: Franěk Matyáš | B37: Černošice | C37: 2008 | D37: 15 | E37: 150Kč | F37: =ISNA(VLOOKUP(A37,vychozi!F:I,4,FALSE)) -> FALSE
A38: Hlaváček Daniel | B38: Černošice | C38: 2009 | D38: 14 | E38: 150Kč | F38: =ISNA(VLOOKUP(A38,vychozi!F:I,4,FALSE)) -> FALSE
A39: Hlavenka Joel Mathias | B39: Černošice | C39: 2007 | D39: 16 | E39: 150Kč | F39: =ISNA(VLOOKUP(A39,vychozi!F:I,4,FALSE)) -> FALSE
A40: Hlavenka Patrik | B40: Černošice | C40: 1975 | D40: 48 | E40: 300Kč | F40: =ISNA(VLOOKUP(A40,vychozi!F:I,4,FALSE)) -> TRUE
A41: Hlavenka Eli Theodor | B41: Černošice | C41: 2010 | D41: 13 | E41: 150Kč | F41: =ISNA(VLOOKUP(A41,vychozi!F:I,4,FALSE)) -> FALSE
A42: Hrdina Pavel | B42: Černošice | C42: 1971 | D42: 52 | E42: 300Kč | F42: =ISNA(VLOOKUP(A42,vychozi!F:I,4,FALSE)) -> TRUE
A43: Hron Matyáš | B43: Černošice | C43: 2009 | D43: 14 | E43: 150Kč | F43: =ISNA(VLOOKUP(A43,vychozi!F:I,4,FALSE)) -> FALSE
A44: Kuliš David | B44: Černošice | C44: 2007 | D44: 16 | E44: 150Kč | F44: =ISNA(VLOOKUP(A44,vychozi!F:I,4,FALSE)) -> FALSE
A45: Lágner Petr | B45: Černošice | C45: 1974 | D45: 49 | E45: 300Kč | F45: =ISNA(VLOOKUP(A45,vychozi!F:I,4,FALSE)) -> TRUE
A46: Nosek Michal | B46: Černošice | C46: 1985 | D46: 38 | E46: 300Kč | F46: =ISNA(VLOOKUP(A46,vychozi!F:I,4,FALSE)) -> TRUE
A47: Roztočilová Tereza | B47: Černošice | C47: 2001 | D47: 22 | E47: 300Kč | F47: =ISNA(VLOOKUP(A47,vychozi!F:I,4,FALSE)) -> TRUE
A48: Šercl Jan | B48: Černošice | C48: 1965 | D48: 58 | E48: 300Kč | F48: =ISNA(VLOOKUP(A48,vychozi!F:I,4,FALSE)) -> TRUE
A49: Souček Jan | B49: Černošice | C49: 2000 | D49: 23 | E49: 300Kč | F49: =ISNA(VLOOKUP(A49,vychozi!F:I,4,FALSE)) -> TRUE
A50: Šteiger Dominik | B50: Černošice | C50: 2002 | D50: 21 | E50: 300Kč | F50: =ISNA(VLOOKUP(A50,vychozi!F:I,4,FALSE)) -> TRUE
A51: Strakoš Jan | B51: Černošice | C51: 1974 | D51: 49 | E51: 300Kč | F51: =ISNA(VLOOKUP(A51,vychozi!F:I,4,FALSE)) -> TRUE
A52: Suchý Michal | B52: Černošice | C52: 1976 | D52: 47 | E52: 300Kč | F52: =ISNA(VLOOKUP(A52,vychozi!F:I,4,FALSE)) -> TRUE
A53: Tichý Jiří | B53: Černošice | C53: 1947 | D53: 76 | E53: 300Kč | F53: =ISNA(VLOOKUP(A53,vychozi!F:I,4,FALSE)) -> TRUE
A54: Veselý Petr | B54: Černošice | C54: 1987 | D54: 36 | E54: 300Kč | F54: =ISNA(VLOOKUP(A54,vychozi!F:I,4,FALSE)) -> TRUE
A55: Zmatlík Lukáš | B55: Černošice | C55: 1993 | D55: 30 | E55: 300Kč | F55: =ISNA(VLOOKUP(A55,vychozi!F:I,4,FALSE)) -> TRUE
A56: Zmatlík Petr | B56: Černošice | C56: 1957 | D56: 66 | E56: 300Kč | F56: =ISNA(VLOOKUP(A56,vychozi!F:I,4,FALSE)) -> TRUE
A57: Zúbek Ondřej | B57: Černošice | C57: 2003 | D57: 20 | E57: 300Kč | F57: =ISNA(VLOOKUP(A57,vychozi!F:I,4,FALSE)) -> TRUE
A58: Anderson Ben | B58: Únětice | C58: 1958 | D58: 65 | E58: 300Kč | F58: =ISNA(VLOOKUP(A58,vychozi!F:I,4,FALSE)) -> TRUE
A59: Bartoš Jiří | B59: Únětice | C59: 1957 | D59: 66 | E59: 300Kč | F59: =ISNA(VLOOKUP(A59,vychozi!F:I,4,FALSE)) -> TRUE
A60: Faltin Bohumil | B60: Únětice | C60: 2003 | D60: 20 | E60: 300Kč | F60: =ISNA(VLOOKUP(A60,vychozi!F:I,4,FALSE)) -> TRUE
A61: Faltin Miloš | B61: Únětice | C61: 1972 | D61: 51 | E61: 300Kč | F61: =ISNA(VLOOKUP(A61,vychozi!F:I,4,FALSE)) -> TRUE
A62: Franc Martin | B62: Únětice | C62: 1973 | D62: 50 | E62: 300Kč | F62: =ISNA(VLOOKUP(A62,vychozi!F:I,4,FALSE)) -> TRUE
A63: Freisleben Robin | B63: Únětice | C63: 1971 | D63: 52 | E63: 300Kč | F63: =ISNA(VLOOKUP(A63,vychozi!F:I,4,FALSE)) -> TRUE
A64: Freislebenová Sára | B64: Únětice | C64: 2005 | D64: 18 | E64: 150Kč | F64: =ISNA(VLOOKUP(A64,vychozi!F:I,4,FALSE)) -> TRUE
A65: Hájková Kateřina | B65: Únětice | C65: 1973 | D65: 50 | E65: 300Kč | F65: =ISNA(VLOOKUP(A65,vychozi!F:I,4,FALSE)) -> TRUE
A66: Hrouda Jakub | B66: Únětice | C66: 2002 | D66: =YEAR(NOW())-C66 -> 21 | E66: 300Kč | F66: =ISNA(VLOOKUP(A66,vychozi!F:I,4,FALSE)) -> TRUE
A67: Hurych Vlastislav | B67: Únětice | C67: 1972 | D67: 51 | E67: 300Kč | F67: =ISNA(VLOOKUP(A67,vychozi!F:I,4,FALSE)) -> TRUE
A68: Javůrek Filip | B68: Únětice | C68: 1991 | D68: 32 | E68: 300Kč | F68: =ISNA(VLOOKUP(A68,vychozi!F:I,4,FALSE)) -> TRUE
A69: Kratochvíl Jiří | B69: Únětice | C69: 1969 | D69: 54 | E69: 300Kč | F69: =ISNA(VLOOKUP(A69,vychozi!F:I,4,FALSE)) -> TRUE
A70: Krupička Radim | B70: Únětice | C70: 1974 | D70: 49 | E70: 300Kč | F70: =ISNA(VLOOKUP(A70,vychozi!F:I,4,FALSE)) -> TRUE
A71: Podolský Tomáš | B71: Únětice | C71: 1989 | D71: 34 | E71: 300Kč | F71: =ISNA(VLOOKUP(A71,vychozi!F:I,4,FALSE)) -> TRUE
A72: Potužník Adam | B72: Únětice | C72: 2003 | D72: 20 | E72: 300Kč | F72: =ISNA(VLOOKUP(A72,vychozi!F:I,4,FALSE)) -> TRUE
A73: Potužník Václav | B73: Únětice | C73: 1972 | D73: 51 | E73: 300Kč | F73: =ISNA(VLOOKUP(A73,vychozi!F:I,4,FALSE)) -> TRUE
A74: Sitta Radomír | B74: Únětice | C74: 1969 | D74: 54 | E74: 300Kč | F74: =ISNA(VLOOKUP(A74,vychozi!F:I,4,FALSE)) -> TRUE
A75: Trubnikov Stanislav | B75: Únětice | C75: 1965 | D75: 58 | E75: 300Kč | F75: =ISNA(VLOOKUP(A75,vychozi!F:I,4,FALSE)) -> TRUE
A76: Bartoň Milan | B76: Libčice | C76: 1975 | D76: 48 | E76: 300Kč | F76: =ISNA(VLOOKUP(A76,vychozi!F:I,4,FALSE)) -> TRUE
A77: Bartoš Pavel | B77: Libčice | C77: 1984 | D77: 39 | E77: 300Kč | F77: =ISNA(VLOOKUP(A77,vychozi!F:I,4,FALSE)) -> TRUE
A78: Beltrám Javier Ernesto | B78: Libčice | C78: 1978 | D78: 45 | E78: 300Kč | F78: =ISNA(VLOOKUP(A78,vychozi!F:I,4,FALSE)) -> TRUE
A79: Boháč Antonín | B79: Libčice | C79: 2008 | D79: 15 | E79: 150Kč | F79: =ISNA(VLOOKUP(A79,vychozi!F:I,4,FALSE)) -> FALSE
A80: Boháčová Simona | B80: Libčice | C80: 1976 | D80: 47 | E80: 300Kč | F80: =ISNA(VLOOKUP(A80,vychozi!F:I,4,FALSE)) -> TRUE
A81: Česák Michal | B81: Libčice | C81: 1991 | D81: 32 | E81: 300Kč | F81: =ISNA(VLOOKUP(A81,vychozi!F:I,4,FALSE)) -> TRUE
A82: Dostál Ondřej | B82: Libčice | C82: 2009 | D82: 14 | E82: 150Kč | F82: =ISNA(VLOOKUP(A82,vychozi!F:I,4,FALSE)) -> FALSE
A83: Dostál Zdeněk | B83: Libčice | C83: 1976 | D83: 47 | E83: 300Kč | F83: =ISNA(VLOOKUP(A83,vychozi!F:I,4,FALSE)) -> TRUE
A84: Dostálová Aneta | B84: Libčice | C84: 2006 | D84: 17 | E84: 150Kč | F84: =ISNA(VLOOKUP(A84,vychozi!F:I,4,FALSE)) -> FALSE
A85: Framberk Jan | B85: Libčice | C85: 1977 | D85: 46 | E85: 300Kč | F85: =ISNA(VLOOKUP(A85,vychozi!F:I,4,FALSE)) -> TRUE
A86: Framberk Mikuláš | B86: Libčice | C86: 2013 | D86: 10 | E86: 150Kč | F86: =ISNA(VLOOKUP(A86,vychozi!F:I,4,FALSE)) -> FALSE
A87: Ghodrati Hanieh | B87: Libčice | C87: 1985 | D87: 38 | E87: 300Kč | F87: =ISNA(VLOOKUP(A87,vychozi!F:I,4,FALSE)) -> TRUE
A88: Hodač Jan | B88: Libčice | C88: 1981 | D88: 42 | E88: 300Kč | F88: =ISNA(VLOOKUP(A88,vychozi!F:I,4,FALSE)) -> TRUE
A89: Juda František | B89: Libčice | C89: 2006 | D89: 17 | E89: 150Kč | F89: =ISNA(VLOOKUP(A89,vychozi!F:I,4,FALSE)) -> FALSE
A90: Klinga Petr | B90: Libčice | C90: 1963 | D90: 60 | E90: 300Kč | F90: =ISNA(VLOOKUP(A90,vychozi!F:I,4,FALSE)) -> TRUE
A91: Konvalinka Michal | B91: Libčice | C91: 1985 | D91: 38 | E91: 300Kč | F91: =ISNA(VLOOKUP(A91,vychozi!F:I,4,FALSE)) -> TRUE
A92: Manek Jakub | B92: Libčice | C92: 2000 | D92: 23 | E92: 300Kč | F92: =ISNA(VLOOKUP(A92,vychozi!F:I,4,FALSE)) -> TRUE
A93: Musil Ondřej | B93: Libčice | C93: 2009 | D93: 14 | E93: 150Kč | F93: =ISNA(VLOOKUP(A93,vychozi!F:I,4,FALSE)) -> FALSE
A94: Nováková Karolina | B94: Libčice | C94: 2005 | D94: 18 | E94: 150Kč | F94: =ISNA(VLOOKUP(A94,vychozi!F:I,4,FALSE)) -> TRUE
A95: Patras Matyáš | B95: Libčice | C95: 2007 | D95: 16 | E95: 150Kč | F95: =ISNA(VLOOKUP(A95,vychozi!F:I,4,FALSE)) -> FALSE
A96: Ponáhlo Michal | B96: Libčice | C96: 2007 | D96: 16 | E96: 150Kč | F96: =ISNA(VLOOKUP(A96,vychozi!F:I,4,FALSE)) -> FALSE
A97: Richter Jaroslav ml. | B97: Libčice | C97: 1973 | D97: 50 | E97: 300Kč | F97: =ISNA(VLOOKUP(A97,vychozi!F:I,4,FALSE)) -> TRUE
A98: Richter Jaroslav st. | B98: Libčice | C98: 1951 | D98: 72 | E98: 300Kč | F98: =ISNA(VLOOKUP(A98,vychozi!F:I,4,FALSE)) -> TRUE
A99: Richter Vojtěch | B99: Libčice | C99: 1974 | D99: 49 | E99: 300Kč | F99: =ISNA(VLOOKUP(A99,vychozi!F:I,4,FALSE)) -> TRUE
A100: Slaměník Richard | B100: Libčice | C100: 1961 | D100: 62 | E100: 300Kč | F100: =ISNA(VLOOKUP(A100,vychozi!F:I,4,FALSE)) -> TRUE
A101: Špiegel Jan | B101: Libčice | C101: 1961 | D101: 62 | E101: 300Kč | F101: =ISNA(VLOOKUP(A101,vychozi!F:I,4,FALSE)) -> TRUE
A102: Šulc Dalibor | B102: Libčice | C102: 1953 | D102: 70 | E102: 300Kč | F102: =ISNA(VLOOKUP(A102,vychozi!F:I,4,FALSE)) -> TRUE
A103: Telipský Josef | B103: Libčice | C103: 1968 | D103: 55 | E103: 300Kč | F103: =ISNA(VLOOKUP(A103,vychozi!F:I,4,FALSE)) -> TRUE
A104: Tkadlec Jaroslav | B104: Libčice | C104: 1951 | D104: 72 | E104: 300Kč | F104: =ISNA(VLOOKUP(A104,vychozi!F:I,4,FALSE)) -> TRUE
A105: Tobolář Jindřich | B105: Libčice | C105: 2009 | D105: 14 | E105: 150Kč | F105: =ISNA(VLOOKUP(A105,vychozi!F:I,4,FALSE)) -> FALSE
A106: Tobolář Karel | B106: Libčice | C106: 1976 | D106: 47 | E106: 300Kč | F106: =ISNA(VLOOKUP(A106,vychozi!F:I,4,FALSE)) -> TRUE
A107: Votoček Jaroslav | B107: Libčice | C107: 1950 | D107: 73 | E107: 300Kč | F107: =ISNA(VLOOKUP(A107,vychozi!F:I,4,FALSE)) -> TRUE
A108: Žambokréthyová Milena | B108: Libčice | C108: 1989 | D108: 34 | E108: 300Kč | F108: =ISNA(VLOOKUP(A108,vychozi!F:I,4,FALSE)) -> TRUE
A109: Fišer Štefan | B109: Libčice | C109: 1984 | D109: 39 | E109: 30Kč | F109: =ISNA(VLOOKUP(A109,vychozi!F:I,4,FALSE)) -> TRUE
A110: Kosnar Vladimír | B110: Libčice | C110: 1944 | D110: 79 | E110: 30Kč | F110: =ISNA(VLOOKUP(A110,vychozi!F:I,4,FALSE)) -> TRUE
A111: Andrlík Dalibor | B111: Ořech | C111: 2010 | D111: 13 | E111: 150Kč | F111: =ISNA(VLOOKUP(A111,vychozi!F:I,4,FALSE)) -> FALSE
A112: Blažek Jiří | B112: Ořech | C112: 1994 | D112: 29 | E112: 300Kč | F112: =ISNA(VLOOKUP(A112,vychozi!F:I,4,FALSE)) -> TRUE
A113: Bulín Zdeněk | B113: Ořech | C113: 1972 | D113: 51 | E113: 300Kč | F113: =ISNA(VLOOKUP(A113,vychozi!F:I,4,FALSE)) -> TRUE
A114: Čierny Alexander | B114: Ořech | C114: 1971 | D114: 52 | E114: 300Kč | F114: =ISNA(VLOOKUP(A114,vychozi!F:I,4,FALSE)) -> TRUE
A115: Fiala Tobiáš | B115: Ořech | C115: 2010 | D115: 13 | E115: 150Kč | F115: =ISNA(VLOOKUP(A115,vychozi!F:I,4,FALSE)) -> FALSE
A116: Fürst Mirko | B116: Ořech | C116: 1946 | D116: 77 | E116: 300Kč | F116: =ISNA(VLOOKUP(A116,vychozi!F:I,4,FALSE)) -> TRUE
A117: Heřman Miroslav | B117: Ořech | C117: 1978 | D117: 45 | E117: 300Kč | F117: =ISNA(VLOOKUP(A117,vychozi!F:I,4,FALSE)) -> TRUE
A118: Hlaváč Jan | B118: Ořech | C118: 2001 | D118: 22 | E118: 300Kč | F118: =ISNA(VLOOKUP(A118,vychozi!F:I,4,FALSE)) -> TRUE
A119: Hruška Ondřej | B119: Ořech | C119: 1995 | D119: 28 | E119: 300Kč | F119: =ISNA(VLOOKUP(A119,vychozi!F:I,4,FALSE)) -> TRUE
A120: Kabátník Ondra | B120: Ořech | C120: 2010 | D120: 13 | E120: 150Kč | F120: =ISNA(VLOOKUP(A120,vychozi!F:I,4,FALSE)) -> FALSE
A121: Kohlík Miroslav ml. | B121: Ořech | C121: 1973 | D121: 50 | E121: 300Kč | F121: =ISNA(VLOOKUP(A121,vychozi!F:I,4,FALSE)) -> TRUE
A122: Koteljuk Adam | B122: Ořech | C122: 2010 | D122: 13 | E122: 150Kč | F122: =ISNA(VLOOKUP(A122,vychozi!F:I,4,FALSE)) -> FALSE
A123: Kranát Petr | B123: Ořech | C123: 2009 | D123: 14 | E123: 150Kč | F123: =ISNA(VLOOKUP(A123,vychozi!F:I,4,FALSE)) -> FALSE
A124: Krasničan Jaroslav | B124: Ořech | C124: 1977 | D124: 46 | E124: 300Kč | F124: =ISNA(VLOOKUP(A124,vychozi!F:I,4,FALSE)) -> TRUE
A125: Krejčová Barbora | B125: Ořech | C125: 1996 | D125: 27 | E125: 300Kč | F125: =ISNA(VLOOKUP(A125,vychozi!F:I,4,FALSE)) -> TRUE
A126: Matoušek Michal | B126: Ořech | C126: 1982 | D126: 41 | E126: 300Kč | F126: =ISNA(VLOOKUP(A126,vychozi!F:I,4,FALSE)) -> TRUE
A127: Matoušek Tomáš | B127: Ořech | C127: 1985 | D127: 38 | E127: 300Kč | F127: =ISNA(VLOOKUP(A127,vychozi!F:I,4,FALSE)) -> TRUE
A128: Matoušek Zdeněk | B128: Ořech | C128: 1956 | D128: 67 | E128: 300Kč | F128: =ISNA(VLOOKUP(A128,vychozi!F:I,4,FALSE)) -> TRUE
A129: Novák Marek | B129: Ořech | C129: 1996 | D129: 27 | E129: 300Kč | F129: =ISNA(VLOOKUP(A129,vychozi!F:I,4,FALSE)) -> TRUE
A130: Paliatka Jakub | B130: Ořech | C130: 2009 | D130: =YEAR(NOW())-C130 -> 14 | E130: 150Kč | F130: =ISNA(VLOOKUP(A130,vychozi!F:I,4,FALSE)) -> FALSE
A131: Pavlín Jiří | B131: Ořech | C131: 1962 | D131: 61 | E131: 300Kč | F131: =ISNA(VLOOKUP(A131,vychozi!F:I,4,FALSE)) -> TRUE
A132: Píš Daniel | B132: Ořech | C132: 1969 | D132: 54 | E132: 300Kč | F132: =ISNA(VLOOKUP(A132,vychozi!F:I,4,FALSE)) -> TRUE
A133: Píš Ondřej | B133: Ořech | C133: 1995 | D133: 28 | E133: 300Kč | F133: =ISNA(VLOOKUP(A133,vychozi!F:I,4,FALSE)) -> TRUE
A134: Poncar Karel | B134: Ořech | C134: 2001 | D134: 22 | E134: 300Kč | F134: =ISNA(VLOOKUP(A134,vychozi!F:I,4,FALSE)) -> TRUE
A135: Pražská Lenka | B135: Ořech | C135: 1966 | D135: 57 | E135: 300Kč | F135: =ISNA(VLOOKUP(A135,vychozi!F:I,4,FALSE)) -> TRUE
A136: Ptáčník Martin | B136: Ořech | C136: 1989 | D136: 34 | E136: 300Kč | F136: =ISNA(VLOOKUP(A136,vychozi!F:I,4,FALSE)) -> TRUE
A137: Redlich Michal | B137: Ořech | C137: 2003 | D137: 20 | E137: 300Kč | F137: =ISNA(VLOOKUP(A137,vychozi!F:I,4,FALSE)) -> TRUE
A138: Rein Tomáš | B138: Ořech | C138: 2005 | D138: 18 | E138: 150Kč | F138: =ISNA(VLOOKUP(A138,vychozi!F:I,4,FALSE)) -> TRUE
A139: Severa Martin | B139: Ořech | C139: 1968 | D139: 55 | E139: 300Kč | F139: =ISNA(VLOOKUP(A139,vychozi!F:I,4,FALSE)) -> TRUE
A140: Šimák Jaroslav | B140: Ořech | C140: 2010 | D140: 13 | E140: 150Kč | F140: =ISNA(VLOOKUP(A140,vychozi!F:I,4,FALSE)) -> FALSE
A141: Škoda Jiří | B141: Ořech | C141: 1992 | D141: 31 | E141: 300Kč | F141: =ISNA(VLOOKUP(A141,vychozi!F:I,4,FALSE)) -> TRUE
A142: Skřivánek Jiří | B142: Ořech | C142: 1973 | D142: 50 | E142: 300Kč | F142: =ISNA(VLOOKUP(A142,vychozi!F:I,4,FALSE)) -> TRUE
A143: Soukup Vojtěch | B143: Ořech | C143: 2002 | D143: 21 | E143: 300Kč | F143: =ISNA(VLOOKUP(A143,vychozi!F:I,4,FALSE)) -> TRUE
A144: Špaček Matěj | B144: Ořech | C144: 2010 | D144: 13 | E144: 150Kč | F144: =ISNA(VLOOKUP(A144,vychozi!F:I,4,FALSE)) -> FALSE
A145: Šťastná Dominika | B145: Ořech | C145: 2008 | D145: 15 | E145: 150Kč | F145: =ISNA(VLOOKUP(A145,vychozi!F:I,4,FALSE)) -> FALSE
A146: Šťastná Nataly | B146: Ořech | C146: 2008 | D146: 15 | E146: 150Kč | F146: =ISNA(VLOOKUP(A146,vychozi!F:I,4,FALSE)) -> FALSE
A147: Šťastný Jan | B147: Ořech | C147: 2008 | D147: 15 | E147: 150Kč | F147: =ISNA(VLOOKUP(A147,vychozi!F:I,4,FALSE)) -> FALSE
A148: Stejskal Michal | B148: Ořech | C148: 1997 | D148: 26 | E148: 300Kč | F148: =ISNA(VLOOKUP(A148,vychozi!F:I,4,FALSE)) -> TRUE
A149: Šulc Adam | B149: Ořech | C149: 2009 | D149: 14 | E149: 150Kč | F149: =ISNA(VLOOKUP(A149,vychozi!F:I,4,FALSE)) -> FALSE
A150: Vávra Aleš | B150: Ořech | C150: 1998 | D150: 25 | E150: 300Kč | F150: =ISNA(VLOOKUP(A150,vychozi!F:I,4,FALSE)) -> TRUE
A151: Veselý Miroslav | B151: Ořech | C151: 1965 | D151: 58 | E151: 300Kč | F151: =ISNA(VLOOKUP(A151,vychozi!F:I,4,FALSE)) -> TRUE
A152: Veverka Jan | B152: Ořech | C152: 1997 | D152: 26 | E152: 300Kč | F152: =ISNA(VLOOKUP(A152,vychozi!F:I,4,FALSE)) -> TRUE
A153: Veverka Václav ml. | B153: Ořech | C153: 2000 | D153: 23 | E153: 300Kč | F153: =ISNA(VLOOKUP(A153,vychozi!F:I,4,FALSE)) -> TRUE
A154: Veverka Václav st. | B154: Ořech | C154: 1961 | D154: 62 | E154: 300Kč | F154: =ISNA(VLOOKUP(A154,vychozi!F:I,4,FALSE)) -> TRUE
A155: Yaroslavtsev Vitaly | B155: Ořech | C155: 1959 | D155: 64 | E155: 300Kč | F155: =ISNA(VLOOKUP(A155,vychozi!F:I,4,FALSE)) -> TRUE
A156: Zacharda Aleš | B156: Ořech | C156: 1972 | D156: 51 | E156: 300Kč | F156: =ISNA(VLOOKUP(A156,vychozi!F:I,4,FALSE)) -> TRUE
A157: Auf Tadeáš | B157: Ořech | C157: 2006 | D157: 17 | E157: 30Kč | F157: =ISNA(VLOOKUP(A157,vychozi!F:I,4,FALSE)) -> FALSE
A158: Brůna Jiří | B158: Ořech | C158: 1958 | D158: 65 | E158: 30Kč | F158: =ISNA(VLOOKUP(A158,vychozi!F:I,4,FALSE)) -> TRUE
A159: Cafourek Tomáš | B159: Ořech | C159: 2000 | D159: 23 | E159: 30Kč | F159: =ISNA(VLOOKUP(A159,vychozi!F:I,4,FALSE)) -> TRUE
A160: Flusser Martin | B160: Ořech | C160: 1991 | D160: 32 | E160: 30Kč | F160: =ISNA(VLOOKUP(A160,vychozi!F:I,4,FALSE)) -> TRUE
A161: Helt Miroslav | B161: Ořech | C161: 1951 | D161: 72 | E161: 30Kč | F161: =ISNA(VLOOKUP(A161,vychozi!F:I,4,FALSE)) -> TRUE
A162: Horáčková Anežka | B162: Ořech | C162: 2009 | D162: 14 | E162: 30Kč | F162: =ISNA(VLOOKUP(A162,vychozi!F:I,4,FALSE)) -> FALSE
A163: Hudák Tomáš | B163: Ořech | C163: 2004 | D163: 19 | E163: 30Kč | F163: =ISNA(VLOOKUP(A163,vychozi!F:I,4,FALSE)) -> TRUE
A164: Jambor Václav | B164: Ořech | C164: 1945 | D164: 78 | E164: 30Kč | F164: =ISNA(VLOOKUP(A164,vychozi!F:I,4,FALSE)) -> TRUE
A165: Kohlík Miroslav st. | B165: Ořech | C165: 1949 | D165: 74 | E165: 30Kč | F165: =ISNA(VLOOKUP(A165,vychozi!F:I,4,FALSE)) -> TRUE
A166: Kotěšovská Tereza | B166: Ořech | C166: 2002 | D166: 21 | E166: 30Kč | F166: =ISNA(VLOOKUP(A166,vychozi!F:I,4,FALSE)) -> TRUE
A167: Kotěšovský Jan | B167: Ořech | C167: 2002 | D167: 21 | E167: 30Kč | F167: =ISNA(VLOOKUP(A167,vychozi!F:I,4,FALSE)) -> TRUE
A168: Krolop David | B168: Ořech | C168: 1991 | D168: 32 | E168: 30Kč | F168: =ISNA(VLOOKUP(A168,vychozi!F:I,4,FALSE)) -> TRUE
A169: Němejc Melichar | B169: Ořech | C169: 2005 | D169: 18 | E169: 30Kč | F169: =ISNA(VLOOKUP(A169,vychozi!F:I,4,FALSE)) -> TRUE
A170: Novák Tomáš | B170: Ořech | C170: 1968 | D170: 55 | E170: 30Kč | F170: =ISNA(VLOOKUP(A170,vychozi!F:I,4,FALSE)) -> TRUE
A171: Pavlín Šimon | B171: Ořech | C171: 1997 | D171: 26 | E171: 30Kč | F171: =ISNA(VLOOKUP(A171,vychozi!F:I,4,FALSE)) -> TRUE
A172: Pražský Michal | B172: Ořech | C172: 1997 | D172: 26 | E172: 30Kč | F172: =ISNA(VLOOKUP(A172,vychozi!F:I,4,FALSE)) -> TRUE
A173: Sladovník David | B173: Ořech | C173: 1995 | D173: 28 | E173: 30Kč | F173: =ISNA(VLOOKUP(A173,vychozi!F:I,4,FALSE)) -> TRUE
A174: Šrenk Štěpán | B174: Ořech | C174: 2001 | D174: 22 | E174: 30Kč | F174: =ISNA(VLOOKUP(A174,vychozi!F:I,4,FALSE)) -> TRUE
A175: Coubalová Martina | B175: Vestec | C175: 1974 | D175: 49 | E175: 300Kč | F175: =ISNA(VLOOKUP(A175,vychozi!F:I,4,FALSE)) -> TRUE
A176: Halodová Petra | B176: Vestec | C176: 1974 | D176: 49 | E176: 300Kč | F176: =ISNA(VLOOKUP(A176,vychozi!F:I,4,FALSE)) -> TRUE
A177: Hozman Bohumil | B177: Vestec | C177: 1954 | D177: 69 | E177: 300Kč | F177: =ISNA(VLOOKUP(A177,vychozi!F:I,4,FALSE)) -> TRUE
A178: Ihl Roman | B178: Vestec | C178: 1967 | D178: 56 | E178: 300Kč | F178: =ISNA(VLOOKUP(A178,vychozi!F:I,4,FALSE)) -> TRUE
A179: Jungvirt Tomáš | B179: Vestec | C179: 1981 | D179: 42 | E179: 300Kč | F179: =ISNA(VLOOKUP(A179,vychozi!F:I,4,FALSE)) -> TRUE
A180: Kratochvíl Christian | B180: Vestec | C180: 1999 | D180: 24 | E180: 300Kč | F180: =ISNA(VLOOKUP(A180,vychozi!F:I,4,FALSE)) -> TRUE
A181: Kurková Marie | B181: Vestec | C181: 1973 | D181: 50 | E181: 300Kč | F181: =ISNA(VLOOKUP(A181,vychozi!F:I,4,FALSE)) -> TRUE
A182: Lachout Miroslav | B182: Vestec | C182: 1954 | D182: 69 | E182: 300Kč | F182: =ISNA(VLOOKUP(A182,vychozi!F:I,4,FALSE)) -> TRUE
A183: Malínek Lukáš | B183: Vestec | C183: 1972 | D183: 51 | E183: 300Kč | F183: =ISNA(VLOOKUP(A183,vychozi!F:I,4,FALSE)) -> TRUE
A184: Michal František | B184: Vestec | C184: 1982 | D184: 41 | E184: 300Kč | F184: =ISNA(VLOOKUP(A184,vychozi!F:I,4,FALSE)) -> TRUE
A185: Novák Michal | B185: Vestec | C185: 1998 | D185: 25 | E185: 300Kč | F185: =ISNA(VLOOKUP(A185,vychozi!F:I,4,FALSE)) -> TRUE
A186: Novák Ondřej | B186: Vestec | C186: 1992 | D186: 31 | E186: 300Kč | F186: =ISNA(VLOOKUP(A186,vychozi!F:I,4,FALSE)) -> TRUE
A187: Ostatnická Jana | B187: Vestec | C187: 1983 | D187: 40 | E187: 300Kč | F187: =ISNA(VLOOKUP(A187,vychozi!F:I,4,FALSE)) -> TRUE
A188: Řízek Jiří | B188: Vestec | C188: 1956 | D188: 67 | E188: 300Kč | F188: =ISNA(VLOOKUP(A188,vychozi!F:I,4,FALSE)) -> TRUE
A189: Rusová Barbora | B189: Vestec | C189: 1985 | D189: 38 | E189: 300Kč | F189: =ISNA(VLOOKUP(A189,vychozi!F:I,4,FALSE)) -> TRUE
A190: Silovský Martin | B190: Vestec | C190: 1966 | D190: 57 | E190: 300Kč | F190: =ISNA(VLOOKUP(A190,vychozi!F:I,4,FALSE)) -> TRUE
A191: Šperl Michal | B191: Vestec | C191: 1969 | D191: 54 | E191: 300Kč | F191: =ISNA(VLOOKUP(A191,vychozi!F:I,4,FALSE)) -> TRUE
A192: Štefan Martin | B192: Vestec | C192: 1982 | D192: 41 | E192: 300Kč | F192: =ISNA(VLOOKUP(A192,vychozi!F:I,4,FALSE)) -> TRUE
A193: Adlof Lukáš | B193: Úholičky | C193: 2007 | D193: 16 | E193: 150Kč | F193: =ISNA(VLOOKUP(A193,vychozi!F:I,4,FALSE)) -> FALSE
A194: Břečková Aneta | B194: Úholičky | C194: 2008 | D194: =YEAR(NOW())-C194 -> 15 | E194: 150Kč | F194: =ISNA(VLOOKUP(A194,vychozi!F:I,4,FALSE)) -> FALSE
A195: Carvan Miloslav | B195: Úholičky | C195: 1957 | D195: 66 | E195: 300Kč | F195: =ISNA(VLOOKUP(A195,vychozi!F:I,4,FALSE)) -> TRUE
A196: Dalihod Jakub | B196: Úholičky | C196: 2001 | D196: 22 | E196: 300Kč | F196: =ISNA(VLOOKUP(A196,vychozi!F:I,4,FALSE)) -> TRUE
A197: Ducháček Michal | B197: Úholičky | C197: 2013 | D197: 10 | E197: 150Kč | F197: =ISNA(VLOOKUP(A197,vychozi!F:I,4,FALSE)) -> FALSE
A198: Ducháček Petr | B198: Úholičky | C198: 2009 | D198: 14 | E198: 150Kč | F198: =ISNA(VLOOKUP(A198,vychozi!F:I,4,FALSE)) -> FALSE
A199: Ducháčková Radka | B199: Úholičky | C199: 1979 | D199: 44 | E199: 300Kč | F199: =ISNA(VLOOKUP(A199,vychozi!F:I,4,FALSE)) -> TRUE
A200: Dvořák František | B200: Úholičky | C200: 2002 | D200: 21 | E200: 300Kč | F200: =ISNA(VLOOKUP(A200,vychozi!F:I,4,FALSE)) -> TRUE
... 121 more rows

Sheet evidence_20220830 (hidden)
A1: hrac | B1: oddil | C1: rok narozeni | D1: věk | E1: registrace | F1: Neni na karte Vychozi? | I1: Jm
A2: Antoš Vojtěch | B2: Roztoky | C2: 2003 | D2: =YEAR(NOW())-C2 -> 20 | E2: 300Kč | F2: =ISNA(VLOOKUP(A2,#REF!,4,FALSE)) -> FALSE
A3: Bárta Kryštof | B3: Roztoky | C3: 1998 | D3: 25 | E3: 300Kč | F3: =ISNA(VLOOKUP(A3,#REF!,4,FALSE)) -> FALSE
A4: Cabicar Šimon | B4: Roztoky | C4: 2005 | D4: 18 | E4: 150Kč | F4: =ISNA(VLOOKUP(A4,#REF!,4,FALSE)) -> FALSE
A5: Eibich Jan | B5: Roztoky | C5: 1999 | D5: 24 | E5: 300Kč | F5: =ISNA(VLOOKUP(A5,#REF!,4,FALSE)) -> FALSE
A6: Fišman Alexandr | B6: Roztoky | C6: 2003 | D6: 20 | E6: 300Kč | F6: =ISNA(VLOOKUP(A6,#REF!,4,FALSE)) -> FALSE
A7: Hloch Matěj | B7: Roztoky | C7: 2011 | D7: 12 | E7: 150Kč | F7: =ISNA(VLOOKUP(A7,#REF!,4,FALSE)) -> FALSE
A8: Jakoubek Jakub | B8: Roztoky | C8: 1998 | D8: 25 | E8: 300Kč | F8: =ISNA(VLOOKUP(A8,#REF!,4,FALSE)) -> FALSE
A9: Jirásek Jiří | B9: Roztoky | C9: 1975 | D9: 48 | E9: 300Kč | F9: =ISNA(VLOOKUP(A9,#REF!,4,FALSE)) -> FALSE
A10: Kaláb Adam | B10: Roztoky | C10: 2006 | D10: 17 | E10: 150Kč | F10: =ISNA(VLOOKUP(A10,#REF!,4,FALSE)) -> FALSE
A11: Kalinová Hana | B11: Roztoky | C11: 2009 | D11: 14 | E11: 150Kč | F11: =ISNA(VLOOKUP(A11,#REF!,4,FALSE)) -> FALSE
A12: Kuchtová Klára | B12: Roztoky | C12: 2005 | D12: 18 | E12: 150Kč | F12: =ISNA(VLOOKUP(A12,#REF!,4,FALSE)) -> FALSE
A13: Lauermann Matěj | B13: Roztoky | C13: 2002 | D13: 21 | E13: 300Kč | F13: =ISNA(VLOOKUP(A13,#REF!,4,FALSE)) -> FALSE
A14: Levenec Petr | B14: Roztoky | C14: 1978 | D14: 45 | E14: 300Kč | F14: =ISNA(VLOOKUP(A14,#REF!,4,FALSE)) -> FALSE
A15: Lukáš Filip nejml. | B15: Roztoky | C15: 2011 | D15: 12 | E15: 150Kč | F15: =ISNA(VLOOKUP(A15,#REF!,4,FALSE)) -> FALSE
A16: Lukáš Jakub | B16: Roztoky | C16: 1979 | D16: 44 | E16: 300Kč | F16: =ISNA(VLOOKUP(A16,#REF!,4,FALSE)) -> FALSE
A17: Lukáš Lukáš | B17: Roztoky | C17: 2006 | D17: 17 | E17: 150Kč | F17: =ISNA(VLOOKUP(A17,#REF!,4,FALSE)) -> FALSE
A18: Machek Jan ml. | B18: Roztoky | C18: 2008 | D18: 15 | E18: 150Kč | F18: =ISNA(VLOOKUP(A18,#REF!,4,FALSE)) -> FALSE
A19: Pöschl Miroslav st. | B19: Roztoky | C19: 1960 | D19: 63 | E19: 300Kč | F19: =ISNA(VLOOKUP(A19,#REF!,4,FALSE)) -> FALSE
A20: Příhonský Ernesto | B20: Roztoky | C20: 2010 | D20: 13 | E20: 150Kč | F20: =ISNA(VLOOKUP(A20,#REF!,4,FALSE)) -> FALSE
A21: Šimon Matyáš | B21: Roztoky | C21: 2003 | D21: 20 | E21: 300Kč | F21: =ISNA(VLOOKUP(A21,#REF!,4,FALSE)) -> FALSE
A22: Smrček Michal | B22: Roztoky | C22: 1984 | D22: 39 | E22: 300Kč | F22: =ISNA(VLOOKUP(A22,#REF!,4,FALSE)) -> FALSE
A23: Stříbrný Jiří Maxmilián | B23: Roztoky | C23: 2006 | D23: 17 | E23: 150Kč | F23: =ISNA(VLOOKUP(A23,#REF!,4,FALSE)) -> FALSE
A24: Šturm Vojtěch | B24: Roztoky | C24: 2002 | D24: 21 | E24: 300Kč | F24: =ISNA(VLOOKUP(A24,#REF!,4,FALSE)) -> FALSE
A25: Švarc Martin | B25: Roztoky | C25: 1976 | D25: 47 | E25: 300Kč | F25: =ISNA(VLOOKUP(A25,#REF!,4,FALSE)) -> FALSE
A26: Tolárek David | B26: Roztoky | C26: 2002 | D26: 21 | E26: 300Kč | F26: =ISNA(VLOOKUP(A26,#REF!,4,FALSE)) -> FALSE
A27: Vacek Jiří | B27: Roztoky | C27: 1978 | D27: 45 | E27: 300Kč | F27: =ISNA(VLOOKUP(A27,#REF!,4,FALSE)) -> FALSE
A28: Vágner Jonáš | B28: Roztoky | C28: 2005 | D28: 18 | E28: 150Kč | F28: =ISNA(VLOOKUP(A28,#REF!,4,FALSE)) -> FALSE
A29: Vašků Karolína | B29: Roztoky | C29: 2010 | D29: 13 | E29: 150Kč | F29: =ISNA(VLOOKUP(A29,#REF!,4,FALSE)) -> FALSE
A30: Veselý Milan | B30: Roztoky | C30: 1989 | D30: 34 | E30: 300Kč | F30: =ISNA(VLOOKUP(A30,#REF!,4,FALSE)) -> FALSE
A31: Vodňanský Martin | B31: Roztoky | C31: 1981 | D31: 42 | E31: 300Kč | F31: =ISNA(VLOOKUP(A31,#REF!,4,FALSE)) -> FALSE
A32: Vondrová Kristýna nejst. | B32: Roztoky | C32: 2003 | D32: 20 | E32: 300Kč | F32: =ISNA(VLOOKUP(A32,#REF!,4,FALSE)) -> FALSE
A33: Žáček Josef | B33: Roztoky | C33: 1970 | D33: 53 | E33: 300Kč | F33: =ISNA(VLOOKUP(A33,#REF!,4,FALSE)) -> FALSE
A34: Zwiefelhofer Jiří | B34: Roztoky | C34: 1964 | D34: 59 | E34: 300Kč | F34: =ISNA(VLOOKUP(A34,#REF!,4,FALSE)) -> FALSE
A35: Čepela Ondřej | B35: Roztoky | C35: 2008 | D35: 15 | E35: 30Kč | F35: =ISNA(VLOOKUP(A35,#REF!,4,FALSE)) -> FALSE
A36: Lojek Jakub | B36: Roztoky | C36: 2000 | D36: 23 | E36: 30Kč | F36: =ISNA(VLOOKUP(A36,#REF!,4,FALSE)) -> FALSE
A37: Netušil David | B37: Roztoky | C37: 2002 | D37: 21 | E37: 30Kč | F37: =ISNA(VLOOKUP(A37,#REF!,4,FALSE)) -> FALSE
A38: Čáp Martin | B38: Černošice | C38: 1975 | D38: 48 | E38: 300Kč | F38: =ISNA(VLOOKUP(A38,#REF!,4,FALSE)) -> FALSE | I38: Čáp Martin | J38: 1975 | K38: 300
A39: Charvát Petr | B39: Černošice | C39: 1947 | D39: 76 | E39: 300Kč | F39: =ISNA(VLOOKUP(A39,#REF!,4,FALSE)) -> FALSE | I39: Charvát Petr | J39: 1947 | K39: 300
A40: Cimler Lukáš | B40: Černošice | C40: 1987 | D40: 36 | E40: 300Kč | F40: =ISNA(VLOOKUP(A40,#REF!,4,FALSE)) -> FALSE | I40: Cimler Lukáš | J40: 1987 | K40: 300
A41: Deré Michal | B41: Černošice | C41: 1974 | D41: 49 | E41: 300Kč | F41: =ISNA(VLOOKUP(A41,#REF!,4,FALSE)) -> FALSE | I41: Deré Michal | J41: 1974 | K41: 300
A42: Fischer Jiří | B42: Černošice | C42: 1964 | D42: 59 | E42: 300Kč | F42: =ISNA(VLOOKUP(A42,#REF!,4,FALSE)) -> FALSE | I42: Fischer Jiří | J42: 1964 | K42: 300
A43: Hlavenka Joel Mathias | B43: Černošice | C43: 2007 | D43: 16 | E43: 150Kč | F43: =ISNA(VLOOKUP(A43,#REF!,4,FALSE)) -> FALSE | I43: Hlavenka Joel Mathias | J43: 2007 | K43: 150
A44: Hrdina Pavel | B44: Černošice | C44: 1971 | D44: 52 | E44: 300Kč | F44: =ISNA(VLOOKUP(A44,#REF!,4,FALSE)) -> FALSE | I44: Hrdina Pavel | J44: 1971 | K44: 300
A45: Hron Matyáš | B45: Černošice | C45: 2009 | D45: 14 | E45: 150Kč | F45: =ISNA(VLOOKUP(A45,#REF!,4,FALSE)) -> FALSE | I45: Hron Matyáš | J45: 2009 | K45: 150
A46: Kuliš David | B46: Černošice | C46: 2007 | D46: 16 | E46: 150Kč | F46: =ISNA(VLOOKUP(A46,#REF!,4,FALSE)) -> FALSE | I46: Kuliš David | J46: 2007 | K46: 150
A47: Lágner Petr | B47: Černošice | C47: 1974 | D47: 49 | E47: 300Kč | F47: =ISNA(VLOOKUP(A47,#REF!,4,FALSE)) -> FALSE | I47: Lágner Petr | J47: 1974 | K47: 300
A48: Nosek Michal | B48: Černošice | C48: 1985 | D48: 38 | E48: 300Kč | F48: =ISNA(VLOOKUP(A48,#REF!,4,FALSE)) -> FALSE | I48: Nosek Michal | J48: 1985 | K48: 300
A49: Roztočilová Tereza | B49: Černošice | C49: 2001 | D49: 22 | E49: 300Kč | F49: =ISNA(VLOOKUP(A49,#REF!,4,FALSE)) -> FALSE | I49: Roztočilová Tereza | J49: 2001 | K49: 300
A50: Souček Jan | B50: Černošice | C50: 2000 | D50: 23 | E50: 300Kč | F50: =ISNA(VLOOKUP(A50,#REF!,4,FALSE)) -> FALSE | I50: Souček Jan | J50: 2000 | K50: 300
A51: Šteiger Dominik | B51: Černošice | C51: 2002 | D51: 21 | E51: 300Kč | F51: =ISNA(VLOOKUP(A51,#REF!,4,FALSE)) -> FALSE | I51: Šteiger Dominik | J51: 2002 | K51: 300
A52: Suchý Michal | B52: Černošice | C52: 1976 | D52: 47 | E52: 300Kč | F52: =ISNA(VLOOKUP(A52,#REF!,4,FALSE)) -> FALSE | I52: Suchý Michal | J52: 1976 | K52: 300
A53: Tichý Jiří | B53: Černošice | C53: 1947 | D53: 76 | E53: 300Kč | F53: =ISNA(VLOOKUP(A53,#REF!,4,FALSE)) -> FALSE | I53: Tichý Jiří | J53: 1947 | K53: 300
A54: Veselý Petr | B54: Černošice | C54: 1987 | D54: 36 | E54: 300Kč | F54: =ISNA(VLOOKUP(A54,#REF!,4,FALSE)) -> FALSE | I54: Veselý Petr | J54: 1987 | K54: 300
A55: Zmatlík Lukáš | B55: Černošice | C55: 1993 | D55: 30 | E55: 300Kč | F55: =ISNA(VLOOKUP(A55,#REF!,4,FALSE)) -> FALSE | I55: Zmatlík Lukáš | J55: 1993 | K55: 300
A56: Zmatlík Petr | B56: Černošice | C56: 1957 | D56: 66 | E56: 300Kč | F56: =ISNA(VLOOKUP(A56,#REF!,4,FALSE)) -> FALSE | I56: Zmatlík Petr | J56: 1957 | K56: 300
A57: Hlavenka Eli Theodor | B57: Černošice | C57: 2010 | D57: 13 | E57: 30Kč | F57: =ISNA(VLOOKUP(A57,#REF!,4,FALSE)) -> FALSE | I57: Hlavenka Eli Theodor | J57: 2010 | K57: 30
A58: Housa Jiří | B58: Černošice | C58: 2007 | D58: 16 | E58: 30Kč | F58: =ISNA(VLOOKUP(A58,#REF!,4,FALSE)) -> FALSE | G58: Nepokračuje | I58: Housa Jiří | J58: 2007 | K58: 30
A59: Otavová Klaudie | B59: Černošice | C59: 2003 | D59: 20 | E59: 30Kč | F59: =ISNA(VLOOKUP(A59,#REF!,4,FALSE)) -> FALSE | I59: Otavová Klaudie | J59: 2003 | K59: 30
A60: Pajer Filip | B60: Černošice | C60: 2005 | D60: 18 | E60: 30Kč | F60: =ISNA(VLOOKUP(A60,#REF!,4,FALSE)) -> FALSE | I60: Pajer Filip | J60: 2005 | K60: 30
A61: Provazník Adam | B61: Černošice | C61: 2005 | D61: 18 | E61: 30Kč | F61: =ISNA(VLOOKUP(A61,#REF!,4,FALSE)) -> FALSE | G61: Nepokračuje | I61: Provazník Adam | J61: 2005 | K61: 30
A62: Suchý Marek | B62: Černošice | C62: 2008 | D62: 15 | E62: 30Kč | F62: =ISNA(VLOOKUP(A62,#REF!,4,FALSE)) -> FALSE | I62: Suchý Marek | J62: 2008 | K62: 30
A63: Wolf Vojtěch | B63: Černošice | C63: 2004 | D63: 19 | E63: 30Kč | F63: =ISNA(VLOOKUP(A63,#REF!,4,FALSE)) -> FALSE | I63: Wolf Vojtěch | J63: 2004 | K63: 30
A64: Anderson Ben | B64: Únětice | C64: 1958 | D64: 65 | E64: 300Kč | F64: =ISNA(VLOOKUP(A64,#REF!,4,FALSE)) -> FALSE
A65: Bartoš Jiří | B65: Únětice | C65: 1957 | D65: 66 | E65: 300Kč | F65: =ISNA(VLOOKUP(A65,#REF!,4,FALSE)) -> FALSE
A66: Faltin Bohumil | B66: Únětice | C66: 2003 | D66: =YEAR(NOW())-C66 -> 20 | E66: 300Kč | F66: =ISNA(VLOOKUP(A66,#REF!,4,FALSE)) -> FALSE
A67: Faltin Miloš | B67: Únětice | C67: 1972 | D67: 51 | E67: 300Kč | F67: =ISNA(VLOOKUP(A67,#REF!,4,FALSE)) -> FALSE
A68: Franc Martin | B68: Únětice | C68: 1973 | D68: 50 | E68: 300Kč | F68: =ISNA(VLOOKUP(A68,#REF!,4,FALSE)) -> FALSE
A69: Freisleben Robin | B69: Únětice | C69: 1971 | D69: 52 | E69: 300Kč | F69: =ISNA(VLOOKUP(A69,#REF!,4,FALSE)) -> FALSE
A70: Freislebenová Sára | B70: Únětice | C70: 2005 | D70: 18 | E70: 150Kč | F70: =ISNA(VLOOKUP(A70,#REF!,4,FALSE)) -> FALSE | G70: Nepokračuje
A71: Hurych Vlastislav | B71: Únětice | C71: 1972 | D71: 51 | E71: 300Kč | F71: =ISNA(VLOOKUP(A71,#REF!,4,FALSE)) -> FALSE
A72: Kratochvíl Jiří | B72: Únětice | C72: 1969 | D72: 54 | E72: 300Kč | F72: =ISNA(VLOOKUP(A72,#REF!,4,FALSE)) -> FALSE
A73: Krupička Radim | B73: Únětice | C73: 1974 | D73: 49 | E73: 300Kč | F73: =ISNA(VLOOKUP(A73,#REF!,4,FALSE)) -> FALSE
A74: Potužník Adam | B74: Únětice | C74: 2003 | D74: 20 | E74: 300Kč | F74: =ISNA(VLOOKUP(A74,#REF!,4,FALSE)) -> FALSE
A75: Potužník Václav | B75: Únětice | C75: 1972 | D75: 51 | E75: 300Kč | F75: =ISNA(VLOOKUP(A75,#REF!,4,FALSE)) -> FALSE
A76: Sitta Radomír | B76: Únětice | C76: 1969 | D76: 54 | E76: 300Kč | F76: =ISNA(VLOOKUP(A76,#REF!,4,FALSE)) -> FALSE
A77: Trubnikov Stanislav | B77: Únětice | C77: 1965 | D77: 58 | E77: 300Kč | F77: =ISNA(VLOOKUP(A77,#REF!,4,FALSE)) -> FALSE
A78: Bartik Ondřej | B78: Libčice | C78: 1991 | D78: 32 | E78: 300Kč | F78: =ISNA(VLOOKUP(A78,#REF!,4,FALSE)) -> FALSE | I78: Bartik Ondřej | J78: 1991 | K78: 300
A79: Bartoň Milan | B79: Libčice | C79: 1975 | D79: 48 | E79: 300Kč | F79: =ISNA(VLOOKUP(A79,#REF!,4,FALSE)) -> FALSE | I79: Bartoň Milan | J79: 1975 | K79: 300
A80: Beltrám Javier Ernesto | B80: Libčice | C80: 1978 | D80: 45 | E80: 300Kč | F80: =ISNA(VLOOKUP(A80,#REF!,4,FALSE)) -> FALSE | I80: Beltrám Javier Ernesto | J80: 1978 | K80: 300
A81: Boháč Antoním | B81: Libčice | C81: 2008 | D81: 15 | E81: 150Kč | F81: =ISNA(VLOOKUP(A81,#REF!,4,FALSE)) -> FALSE | I81: Boháč Antoním | J81: 2008 | K81: 150
A82: Boháčová Simona | B82: Libčice | C82: 1976 | D82: 47 | E82: 300Kč | F82: =ISNA(VLOOKUP(A82,#REF!,4,FALSE)) -> FALSE | I82: Boháčová Simona | J82: 1976 | K82: 300
A83: Česák Michal | B83: Libčice | C83: 1991 | D83: 32 | E83: 300Kč | F83: =ISNA(VLOOKUP(A83,#REF!,4,FALSE)) -> FALSE | I83: Česák Michal | J83: 1991 | K83: 300
A84: Dostál Ondřej | B84: Libčice | C84: 2009 | D84: 14 | E84: 150Kč | F84: =ISNA(VLOOKUP(A84,#REF!,4,FALSE)) -> FALSE | I84: Dostál Ondřej | J84: 2009 | K84: 150
A85: Dostál Zdeněk | B85: Libčice | C85: 1976 | D85: 47 | E85: 300Kč | F85: =ISNA(VLOOKUP(A85,#REF!,4,FALSE)) -> FALSE | I85: Dostál Zdeněk | J85: 1976 | K85: 300
A86: Dostálová Aneta | B86: Libčice | C86: 2006 | D86: 17 | E86: 150Kč | F86: =ISNA(VLOOKUP(A86,#REF!,4,FALSE)) -> FALSE | I86: Dostálová Aneta | J86: 2006 | K86: 150
A87: Fišer Štefan | B87: Libčice | C87: 1984 | D87: 39 | E87: 300Kč | F87: =ISNA(VLOOKUP(A87,#REF!,4,FALSE)) -> FALSE | I87: Fišer Štefan | J87: 1984 | K87: 300
A88: Framberk Jan | B88: Libčice | C88: 1977 | D88: 46 | E88: 300Kč | F88: =ISNA(VLOOKUP(A88,#REF!,4,FALSE)) -> FALSE | I88: Framberk Jan | J88: 1977 | K88: 300
A89: Framberk Mikuláš | B89: Libčice | C89: 2013 | D89: 10 | E89: 150Kč | F89: =ISNA(VLOOKUP(A89,#REF!,4,FALSE)) -> FALSE | I89: Framberk Mikuláš | J89: 2013 | K89: 150
A90: Hodač Jan | B90: Libčice | C90: 1981 | D90: 42 | E90: 300Kč | F90: =ISNA(VLOOKUP(A90,#REF!,4,FALSE)) -> FALSE | I90: Hodač Jan | J90: 1981 | K90: 300
A91: Juda František | B91: Libčice | C91: 2006 | D91: 17 | E91: 150Kč | F91: =ISNA(VLOOKUP(A91,#REF!,4,FALSE)) -> FALSE | I91: Juda František | J91: 2006 | K91: 150
A92: Klinga Petr | B92: Libčice | C92: 1963 | D92: 60 | E92: 300Kč | F92: =ISNA(VLOOKUP(A92,#REF!,4,FALSE)) -> FALSE | I92: Klinga Petr | J92: 1963 | K92: 300
A93: Konvalinka Michal | B93: Libčice | C93: 1985 | D93: 38 | E93: 300Kč | F93: =ISNA(VLOOKUP(A93,#REF!,4,FALSE)) -> FALSE | I93: Konvalinka Michal | J93: 1985 | K93: 300
A94: Nováková Karolina | B94: Libčice | C94: 2005 | D94: 18 | E94: 150Kč | F94: =ISNA(VLOOKUP(A94,#REF!,4,FALSE)) -> FALSE | I94: Nováková Karolina | J94: 2005 | K94: 150
A95: Patras Matyáš | B95: Libčice | C95: 2007 | D95: 16 | E95: 150Kč | F95: =ISNA(VLOOKUP(A95,#REF!,4,FALSE)) -> FALSE | I95: Patras Matyáš | J95: 2007 | K95: 150
A96: Podrápský Jaroslav | B96: Libčice | C96: 1972 | D96: 51 | E96: 300Kč | F96: =ISNA(VLOOKUP(A96,#REF!,4,FALSE)) -> FALSE | I96: Podrápský Jaroslav | J96: 1972 | K96: 300
A97: Pojerová Gabriela | B97: Libčice | C97: 2010 | D97: 13 | E97: 150Kč | F97: =ISNA(VLOOKUP(A97,#REF!,4,FALSE)) -> FALSE | I97: Pojerová Gabriela | J97: 2010 | K97: 150
A98: Ponáhlo Michal | B98: Libčice | C98: 2007 | D98: 16 | E98: 150Kč | F98: =ISNA(VLOOKUP(A98,#REF!,4,FALSE)) -> FALSE | I98: Ponáhlo Michal | J98: 2007 | K98: 150
A99: Richter Jaroslav ml. | B99: Libčice | C99: 1973 | D99: 50 | E99: 300Kč | F99: =ISNA(VLOOKUP(A99,#REF!,4,FALSE)) -> FALSE | I99: Richter Jaroslav ml. | J99: 1973 | K99: 300
A100: Richter Jaroslav st. | B100: Libčice | C100: 1951 | D100: 72 | E100: 300Kč | F100: =ISNA(VLOOKUP(A100,#REF!,4,FALSE)) -> FALSE | I100: Richter Jaroslav st. | J100: 1951 | K100: 300
A101: Richter Vojtěch | B101: Libčice | C101: 1974 | D101: 49 | E101: 300Kč | F101: =ISNA(VLOOKUP(A101,#REF!,4,FALSE)) -> FALSE | I101: Richter Vojtěch | J101: 1974 | K101: 300
A102: Slaměník Richard | B102: Libčice | C102: 1961 | D102: 62 | E102: 300Kč | F102: =ISNA(VLOOKUP(A102,#REF!,4,FALSE)) -> FALSE | I102: Slaměník Richard | J102: 1961 | K102: 300
A103: Slapnička Ondřej | B103: Libčice | C103: 2009 | D103: 14 | E103: 150Kč | F103: =ISNA(VLOOKUP(A103,#REF!,4,FALSE)) -> FALSE | I103: Slapnička Ondřej | J103: 2009 | K103: 150
A104: Špiegel Jan | B104: Libčice | C104: 1961 | D104: 62 | E104: 300Kč | F104: =ISNA(VLOOKUP(A104,#REF!,4,FALSE)) -> FALSE | I104: Špiegel Jan | J104: 1961 | K104: 300
A105: Šulc Dalibor | B105: Libčice | C105: 1953 | D105: 70 | E105: 300Kč | F105: =ISNA(VLOOKUP(A105,#REF!,4,FALSE)) -> FALSE | I105: Šulc Dalibor | J105: 1953 | K105: 300
A106: Telipský Josef | B106: Libčice | C106: 1968 | D106: 55 | E106: 300Kč | F106: =ISNA(VLOOKUP(A106,#REF!,4,FALSE)) -> FALSE | I106: Telipský Josef | J106: 1968 | K106: 300
A107: Tkadlec Jaroslav | B107: Libčice | C107: 1951 | D107: 72 | E107: 300Kč | F107: =ISNA(VLOOKUP(A107,#REF!,4,FALSE)) -> FALSE | I107: Tkadlec Jaroslav | J107: 1951 | K107: 300
A108: Tobolář Karel | B108: Libčice | C108: 1976 | D108: 47 | E108: 300Kč | F108: =ISNA(VLOOKUP(A108,#REF!,4,FALSE)) -> FALSE | I108: Tobolář Karel | J108: 1976 | K108: 300
A109: Votoček Jaroslav | B109: Libčice | C109: 1950 | D109: 73 | E109: 300Kč | F109: =ISNA(VLOOKUP(A109,#REF!,4,FALSE)) -> FALSE | I109: Votoček Jaroslav | J109: 1950 | K109: 300
A110: Kosnar Vladimír | B110: Libčice | C110: 1944 | D110: 79 | E110: 30Kč | F110: =ISNA(VLOOKUP(A110,#REF!,4,FALSE)) -> FALSE | I110: Kosnar Vladimír | J110: 1944 | K110: 30
A111: Manek Jakub | B111: Libčice | C111: 2000 | D111: 23 | E111: 30Kč | F111: =ISNA(VLOOKUP(A111,#REF!,4,FALSE)) -> FALSE | I111: Manek Jakub | J111: 2000 | K111: 30
A112: Andrlík Dalibor | B112: Ořech | C112: 2010 | D112: 13 | E112: 150Kč | F112: =ISNA(VLOOKUP(A112,#REF!,4,FALSE)) -> FALSE | G112: X
A113: Blažek Jiří | B113: Ořech | C113: 1994 | D113: 29 | E113: 300Kč | F113: =ISNA(VLOOKUP(A113,#REF!,4,FALSE)) -> FALSE
A114: Bulín Zdeněk | B114: Ořech | C114: 1972 | D114: 51 | E114: 300Kč | F114: =ISNA(VLOOKUP(A114,#REF!,4,FALSE)) -> FALSE
A115: Cafourek Tomáš | B115: Ořech | C115: 2000 | D115: 23 | E115: 300Kč | F115: =ISNA(VLOOKUP(A115,#REF!,4,FALSE)) -> FALSE
A116: Čierny Alexander | B116: Ořech | C116: 1971 | D116: 52 | E116: 300Kč | F116: =ISNA(VLOOKUP(A116,#REF!,4,FALSE)) -> FALSE
A117: Fiala Tobiáš | B117: Ořech | C117: 2010 | D117: 13 | E117: 150Kč | F117: =ISNA(VLOOKUP(A117,#REF!,4,FALSE)) -> FALSE | G117: X
A118: Flusser Martin | B118: Ořech | C118: 1991 | D118: 32 | E118: 300Kč | F118: =ISNA(VLOOKUP(A118,#REF!,4,FALSE)) -> FALSE
A119: Fürst Mirko | B119: Ořech | C119: 1946 | D119: 77 | E119: 300Kč | F119: =ISNA(VLOOKUP(A119,#REF!,4,FALSE)) -> FALSE
A120: Heřman Miroslav | B120: Ořech | C120: 1978 | D120: 45 | E120: 300Kč | F120: =ISNA(VLOOKUP(A120,#REF!,4,FALSE)) -> FALSE
A121: Hlaváč Jan | B121: Ořech | C121: 2001 | D121: 22 | E121: 300Kč | F121: =ISNA(VLOOKUP(A121,#REF!,4,FALSE)) -> FALSE
A122: Hruška Ondřej | B122: Ořech | C122: 1995 | D122: 28 | E122: 300Kč | F122: =ISNA(VLOOKUP(A122,#REF!,4,FALSE)) -> FALSE
A123: Hudák Tomáš | B123: Ořech | C123: 2004 | D123: 19 | E123: 150Kč | F123: =ISNA(VLOOKUP(A123,#REF!,4,FALSE)) -> FALSE
A124: Jambor Václav | B124: Ořech | C124: 1945 | D124: 78 | E124: 300Kč | F124: =ISNA(VLOOKUP(A124,#REF!,4,FALSE)) -> FALSE
A125: Kabátník Ondra | B125: Ořech | C125: 2010 | D125: 13 | E125: 150Kč | F125: =ISNA(VLOOKUP(A125,#REF!,4,FALSE)) -> FALSE | G125: X
A126: Kohlík Miroslav ml. | B126: Ořech | C126: 1973 | D126: 50 | E126: 300Kč | F126: =ISNA(VLOOKUP(A126,#REF!,4,FALSE)) -> FALSE
A127: Kotěšovská Tereza | B127: Ořech | C127: 2002 | D127: 21 | E127: 300Kč | F127: =ISNA(VLOOKUP(A127,#REF!,4,FALSE)) -> FALSE
A128: Kotěšovský Jan | B128: Ořech | C128: 2002 | D128: 21 | E128: 300Kč | F128: =ISNA(VLOOKUP(A128,#REF!,4,FALSE)) -> FALSE
A129: Kranát Petr | B129: Ořech | C129: 2009 | D129: 14 | E129: 150Kč | F129: =ISNA(VLOOKUP(A129,#REF!,4,FALSE)) -> FALSE | G129: ?
A130: Krasničan Jaroslav | B130: Ořech | C130: 1977 | D130: =YEAR(NOW())-C130 -> 46 | E130: 300Kč | F130: =ISNA(VLOOKUP(A130,#REF!,4,FALSE)) -> FALSE
A131: Krejčová Barbora | B131: Ořech | C131: 1996 | D131: 27 | E131: 300Kč | F131: =ISNA(VLOOKUP(A131,#REF!,4,FALSE)) -> FALSE
A132: Matoušek Michal | B132: Ořech | C132: 1982 | D132: 41 | E132: 300Kč | F132: =ISNA(VLOOKUP(A132,#REF!,4,FALSE)) -> FALSE
A133: Matoušek Tomáš | B133: Ořech | C133: 1985 | D133: 38 | E133: 300Kč | F133: =ISNA(VLOOKUP(A133,#REF!,4,FALSE)) -> FALSE
A134: Matoušek Zdeněk | B134: Ořech | C134: 1956 | D134: 67 | E134: 300Kč | F134: =ISNA(VLOOKUP(A134,#REF!,4,FALSE)) -> FALSE
A135: Novák Marek | B135: Ořech | C135: 1996 | D135: 27 | E135: 300Kč | F135: =ISNA(VLOOKUP(A135,#REF!,4,FALSE)) -> FALSE
A136: Pavlín Jiří | B136: Ořech | C136: 1962 | D136: 61 | E136: 300Kč | F136: =ISNA(VLOOKUP(A136,#REF!,4,FALSE)) -> FALSE
A137: Pavlín Šimon | B137: Ořech | C137: 1997 | D137: 26 | E137: 300Kč | F137: =ISNA(VLOOKUP(A137,#REF!,4,FALSE)) -> FALSE
A138: Píš Daniel | B138: Ořech | C138: 1969 | D138: 54 | E138: 300Kč | F138: =ISNA(VLOOKUP(A138,#REF!,4,FALSE)) -> FALSE
A139: Píš Ondřej | B139: Ořech | C139: 1995 | D139: 28 | E139: 300Kč | F139: =ISNA(VLOOKUP(A139,#REF!,4,FALSE)) -> FALSE
A140: Poncar Karel | B140: Ořech | C140: 2001 | D140: 22 | E140: 300Kč | F140: =ISNA(VLOOKUP(A140,#REF!,4,FALSE)) -> FALSE
A141: Ptáčník Martin | B141: Ořech | C141: 1989 | D141: 34 | E141: 300Kč | F141: =ISNA(VLOOKUP(A141,#REF!,4,FALSE)) -> FALSE
A142: Redlich Michal | B142: Ořech | C142: 2003 | D142: 20 | E142: 300Kč | F142: =ISNA(VLOOKUP(A142,#REF!,4,FALSE)) -> FALSE
A143: Rein Tomáš | B143: Ořech | C143: 2005 | D143: 18 | E143: 150Kč | F143: =ISNA(VLOOKUP(A143,#REF!,4,FALSE)) -> FALSE
A144: Severa Martin | B144: Ořech | C144: 1968 | D144: 55 | E144: 300Kč | F144: =ISNA(VLOOKUP(A144,#REF!,4,FALSE)) -> FALSE
A145: Šimák Jaroslav | B145: Ořech | C145: 2010 | D145: 13 | E145: 150Kč | F145: =ISNA(VLOOKUP(A145,#REF!,4,FALSE)) -> FALSE | G145: X
A146: Škoda Jiří | B146: Ořech | C146: 1992 | D146: 31 | E146: 300Kč | F146: =ISNA(VLOOKUP(A146,#REF!,4,FALSE)) -> FALSE
A147: Skřivánek Jiří | B147: Ořech | C147: 1973 | D147: 50 | E147: 300Kč | F147: =ISNA(VLOOKUP(A147,#REF!,4,FALSE)) -> FALSE
A148: Soukup Vojtěch | B148: Ořech | C148: 2002 | D148: 21 | E148: 300Kč | F148: =ISNA(VLOOKUP(A148,#REF!,4,FALSE)) -> FALSE
A149: Šrenk Štěpán | B149: Ořech | C149: 2001 | D149: 22 | E149: 300Kč | F149: =ISNA(VLOOKUP(A149,#REF!,4,FALSE)) -> FALSE
A150: Šťastná Dominika | B150: Ořech | C150: 2008 | D150: 15 | E150: 150Kč | F150: =ISNA(VLOOKUP(A150,#REF!,4,FALSE)) -> FALSE
A151: Šťastná Nataly | B151: Ořech | C151: 2008 | D151: 15 | E151: 150Kč | F151: =ISNA(VLOOKUP(A151,#REF!,4,FALSE)) -> FALSE
A152: Šťastný Jan | B152: Ořech | C152: 2008 | D152: 15 | E152: 150Kč | F152: =ISNA(VLOOKUP(A152,#REF!,4,FALSE)) -> FALSE
A153: Šulc Adam | B153: Ořech | C153: 2009 | D153: 14 | E153: 150Kč | F153: =ISNA(VLOOKUP(A153,#REF!,4,FALSE)) -> FALSE | G153: X
A154: Vávra Aleš | B154: Ořech | C154: 1998 | D154: 25 | E154: 300Kč | F154: =ISNA(VLOOKUP(A154,#REF!,4,FALSE)) -> FALSE
A155: Veverka Jan | B155: Ořech | C155: 1997 | D155: 26 | E155: 300Kč | F155: =ISNA(VLOOKUP(A155,#REF!,4,FALSE)) -> FALSE
A156: Veverka Václav ml. | B156: Ořech | C156: 2000 | D156: 23 | E156: 300Kč | F156: =ISNA(VLOOKUP(A156,#REF!,4,FALSE)) -> FALSE
A157: Veverka Václav st. | B157: Ořech | C157: 1961 | D157: 62 | E157: 300Kč | F157: =ISNA(VLOOKUP(A157,#REF!,4,FALSE)) -> FALSE
A158: Yaroslavtsev Vitaly | B158: Ořech | C158: 1959 | D158: 64 | E158: 300Kč | F158: =ISNA(VLOOKUP(A158,#REF!,4,FALSE)) -> FALSE
A159: Zacharda Aleš | B159: Ořech | C159: 1972 | D159: 51 | E159: 300Kč | F159: =ISNA(VLOOKUP(A159,#REF!,4,FALSE)) -> FALSE
A160: Helt Miroslav | B160: Ořech | C160: 1951 | D160: 72 | E160: 30Kč | F160: =ISNA(VLOOKUP(A160,#REF!,4,FALSE)) -> FALSE
A161: Kohlík Miroslav st. | B161: Ořech | C161: 1949 | D161: 74 | E161: 30Kč | F161: =ISNA(VLOOKUP(A161,#REF!,4,FALSE)) -> FALSE
A162: Němejc Melichar | B162: Ořech | C162: 2005 | D162: 18 | E162: 30Kč | F162: =ISNA(VLOOKUP(A162,#REF!,4,FALSE)) -> FALSE | G162: -
A163: Pražský Michal | B163: Ořech | C163: 1997 | D163: 26 | E163: 30Kč | F163: =ISNA(VLOOKUP(A163,#REF!,4,FALSE)) -> FALSE
A164: Brejcha Petr | B164: Středokluky | C164: 1961 | D164: 62 | E164: 300Kč | F164: =ISNA(VLOOKUP(A164,#REF!,4,FALSE)) -> FALSE | I164: Sezemský Jaroslav
A165: Chval Ivan | B165: Středokluky | C165: 1962 | D165: 61 | E165: 300Kč | F165: =ISNA(VLOOKUP(A165,#REF!,4,FALSE)) -> FALSE | I165: Šimáček Libor
A166: Hikl Josef | B166: Středokluky | C166: 1947 | D166: 76 | E166: 300Kč | F166: =ISNA(VLOOKUP(A166,#REF!,4,FALSE)) -> FALSE | I166: Šimák Jaroslav
A167: Kačerovský Zdeněk | B167: Středokluky | C167: 1975 | D167: 48 | E167: 300Kč | F167: =ISNA(VLOOKUP(A167,#REF!,4,FALSE)) -> FALSE | I167: Škoda Jiří
A168: Kamenszki Ivan | B168: Středokluky | C168: 1972 | D168: 51 | E168: 300Kč | F168: =ISNA(VLOOKUP(A168,#REF!,4,FALSE)) -> FALSE | I168: Škoda Jiří st.
A169: Pelant Jakub | B169: Středokluky | C169: 1980 | D169: 43 | E169: 300Kč | F169: =ISNA(VLOOKUP(A169,#REF!,4,FALSE)) -> FALSE | I169: Škoda Petr
A170: Popelka Pavel | B170: Středokluky | C170: 1973 | D170: 50 | E170: 300Kč | F170: =ISNA(VLOOKUP(A170,#REF!,4,FALSE)) -> FALSE | I170: Skřivánek Jiří
A171: Tolar Jakub | B171: Středokluky | C171: 1995 | D171: 28 | E171: 300Kč | F171: =ISNA(VLOOKUP(A171,#REF!,4,FALSE)) -> FALSE | I171: Sladovník David
A172: Tolar Petr | B172: Středokluky | C172: 1970 | D172: 53 | E172: 300Kč | F172: =ISNA(VLOOKUP(A172,#REF!,4,FALSE)) -> FALSE | I172: Soukup Vojtěch
A173: Tříska Luboš | B173: Středokluky | C173: 1961 | D173: 62 | E173: 300Kč | F173: =ISNA(VLOOKUP(A173,#REF!,4,FALSE)) -> FALSE | I173: Šrenk Štěpán
A174: Vanson Patrick | B174: Středokluky | C174: 1967 | D174: 56 | E174: 300Kč | F174: =ISNA(VLOOKUP(A174,#REF!,4,FALSE)) -> FALSE | I174: Šťastná Dominika
A175: Vinš Antonín | B175: Středokluky | C175: 1995 | D175: 28 | E175: 300Kč | F175: =ISNA(VLOOKUP(A175,#REF!,4,FALSE)) -> FALSE | I175: Šťastná Nataly
A176: Coubalová Martina | B176: Vestec | C176: 1974 | D176: 49 | E176: 300Kč | F176: =ISNA(VLOOKUP(A176,#REF!,4,FALSE)) -> FALSE | I176: Šťastný Jan
A177: Hozman Bohumil | B177: Vestec | C177: 1954 | D177: 69 | E177: 300Kč | F177: =ISNA(VLOOKUP(A177,#REF!,4,FALSE)) -> FALSE | I177: Šulc Adam
A178: Ihl Roman | B178: Vestec | C178: 1967 | D178: 56 | E178: 300Kč | F178: =ISNA(VLOOKUP(A178,#REF!,4,FALSE)) -> FALSE | I178: Tejkl Tomáš
A179: Jungvirt Tomáš | B179: Vestec | C179: 1981 | D179: 42 | E179: 300Kč | F179: =ISNA(VLOOKUP(A179,#REF!,4,FALSE)) -> FALSE | I179: Vávra Aleš
A180: Král Jan | B180: Vestec | C180: 1955 | D180: 68 | E180: 300Kč | F180: =ISNA(VLOOKUP(A180,#REF!,4,FALSE)) -> FALSE | I180: Veselý Miroslav
A181: Kurková Marie | B181: Vestec | C181: 1973 | D181: 50 | E181: 300Kč | F181: =ISNA(VLOOKUP(A181,#REF!,4,FALSE)) -> FALSE | I181: Veverka Jan
A182: Lachout Miroslav | B182: Vestec | C182: 1954 | D182: 69 | E182: 300Kč | F182: =ISNA(VLOOKUP(A182,#REF!,4,FALSE)) -> FALSE | I182: Veverka Václav ml.
A183: Malínek Lukáš | B183: Vestec | C183: 1972 | D183: 51 | E183: 300Kč | F183: =ISNA(VLOOKUP(A183,#REF!,4,FALSE)) -> FALSE | I183: Veverka Václav st.
A184: Michal František | B184: Vestec | C184: 1982 | D184: 41 | E184: 300Kč | F184: =ISNA(VLOOKUP(A184,#REF!,4,FALSE)) -> FALSE | I184: Woller David
A185: Novák Michal | B185: Vestec | C185: 1998 | D185: 25 | E185: 300Kč | F185: =ISNA(VLOOKUP(A185,#REF!,4,FALSE)) -> FALSE | I185: Yaroslavtsev Vitaly
A186: Novák Ondřej | B186: Vestec | C186: 1992 | D186: 31 | E186: 300Kč | F186: =ISNA(VLOOKUP(A186,#REF!,4,FALSE)) -> FALSE | I186: Zacharda Aleš
A187: Přáda Jaroslav | B187: Vestec | C187: 1958 | D187: 65 | E187: 300Kč | F187: =ISNA(VLOOKUP(A187,#REF!,4,FALSE)) -> FALSE
A188: Ráb Václav | B188: Vestec | C188: 1983 | D188: 40 | E188: 300Kč | F188: =ISNA(VLOOKUP(A188,#REF!,4,FALSE)) -> FALSE
A189: Rábová Hana | B189: Vestec | C189: 1989 | D189: 34 | E189: 300Kč | F189: =ISNA(VLOOKUP(A189,#REF!,4,FALSE)) -> FALSE
A190: Řízek Jiří | B190: Vestec | C190: 1956 | D190: 67 | E190: 300Kč | F190: =ISNA(VLOOKUP(A190,#REF!,4,FALSE)) -> FALSE
A191: Rusová Barbora | B191: Vestec | C191: 1985 | D191: 38 | E191: 300Kč | F191: =ISNA(VLOOKUP(A191,#REF!,4,FALSE)) -> FALSE
A192: Sedláček Luděk | B192: Vestec | C192: 1973 | D192: 50 | E192: 300Kč | F192: =ISNA(VLOOKUP(A192,#REF!,4,FALSE)) -> FALSE
A193: Silovský Martin | B193: Vestec | C193: 1966 | D193: 57 | E193: 300Kč | F193: =ISNA(VLOOKUP(A193,#REF!,4,FALSE)) -> FALSE
A194: Šveňha Jiří | B194: Vestec | C194: 1951 | D194: =YEAR(NOW())-C194 -> 72 | E194: 300Kč | F194: =ISNA(VLOOKUP(A194,#REF!,4,FALSE)) -> FALSE
A195: Břečková Aneta | B195: Úholičky | C195: 2008 | D195: 15 | E195: 150Kč | F195: =ISNA(VLOOKUP(A195,#REF!,4,FALSE)) -> FALSE
A196: Carvan Miloslav | B196: Úholičky | C196: 1957 | D196: 66 | E196: 300Kč | F196: =ISNA(VLOOKUP(A196,#REF!,4,FALSE)) -> FALSE
A197: Dalihod Jakub | B197: Úholičky | C197: 2001 | D197: 22 | E197: 300Kč | F197: =ISNA(VLOOKUP(A197,#REF!,4,FALSE)) -> FALSE
A198: Ducháček Michal | B198: Úholičky | C198: 2013 | D198: 10 | E198: 150Kč | F198: =ISNA(VLOOKUP(A198,#REF!,4,FALSE)) -> FALSE
A199: Ducháček Petr | B199: Úholičky | C199: 2009 | D199: 14 | E199: 150Kč | F199: =ISNA(VLOOKUP(A199,#REF!,4,FALSE)) -> FALSE
A200: Ducháčková Radka | B200: Úholičky | C200: 1979 | D200: 44 | E200: 300Kč | F200: =ISNA(VLOOKUP(A200,#REF!,4,FALSE)) -> FALSE
... 130 more rows

Sheet poziceHistorie
A1: Hráč zkr. | B1: pozice
A2: Franěk Maty. (Čer) | B2: 1
A3: Hlavenka Joel. (Čer) | B3: 2
A4: Ducháček Petr. (Úho) | B4: 3
A5: Hron Maty. (Čer) | B5: 4
A6: Knotek Mart. (Dav) | B6: 5
A7: Hlaváček Dani. (Čer) | B7: 6
A8: Drašar Jaku. (Mní) | B8: 7
A9: Yosypenko Mich. (Úho) | B9: 8
A10: Boháč Anto. (Lib) | B10: 9
A11: Dostál Ondř. (Lib) | B11: 10
A12: Kameník Adam. (Mní) | B12: 11
A13: Jurenka Davi. (Rud) | B13: 12
A14: Vybíral Václ. (Dav) | B14: 13
A15: Břečková Anet. (Úho) | B15: 14
A16: Frinta Maty. (Mní) | B16: 15
A17: Jesenský Ján. (Mní) | B17: 16
A18: Prokůpek Jiří. (Dav) | B18: 17
A19: Hlavenka Eli . (Čer) | B19: 18
A20: Lundák Pave. (Dav) | B20: 19
A21: Dostálová Anet. (Lib) | B21: 20
A22: Chromych Jan. (Dav) | B22: 21
A23: Sazimová Adél. (Úho) | B23: 22
A24: Kuliš Davi. (Čer) | B24: 23
A25: Valo Václ. (Úho) | B25: 24
A26: Lacina Thom. (Mní) | B26: 25
A27: Fiala Tobi. (Oře) | B27: 26
A28: Kunc Luká. (Úho) | B28: 27
A29: Petříková Joha. (Rud) | B29: 28
A30: Nguyen Tuan. (Mní) | B30: 29
A31: Juan Tiag. (Rud) | B31: 30
A32: Bosch Maya. (Rud) | B32: 31
A33: Klika Jaku. (Rud) | B33: 32
A34: Kabátník Ondr. (Oře) | B34: 33
A35: Ducháček Mich. (Úho) | B35: 34
A36: Olexa Jaku. (Rud) | B36: 35
A37: Frýdlová Tere. (Rud) | B37: 36
A38: Hošek Ondř. (Mní) | B38: 37
A39: Andrlík Dali. (Oře) | B39: 38
A40: Fajt Jaku. (Čer) | B40: 39
A41: Stára Jaku. (Úho) | B41: 40
A42: Wimmer Víte. (Rud) | B42: 41
A43: Horáčková Anež. (Oře) | B43: 42
A44: Adlof Luká. (Úho) | B44: 43
A45: Framberk Miku. (Lib) | B45: 44
A46: Tobolář Jind. (Lib) | B46: 45
A47: Feitz Fran. (Úho) | B47: 46
A48: Špaček Matě. (Oře) | B48: 47
A49: Juda Fran. (Lib) | B49: 48
A50: Šulc Adam. (Oře) | B50: 49
A51: Patras Maty. (Lib) | B51: 50
A52: Šimák Jaro. (Oře) | B52: 51
A53: Novotný Davi. (Rud) | B53: 52
A54: Musil Ondř. (Lib) | B54: 53
A55: Müller Vojt. (Dav) | B55: 54
A56: Středa Luká. (Dav) | B56: 55
A57: Cacek Miku. (Rud) | B57: 56
A58: Kranát Petr. (Oře) | B58: 57
A59: Toman Olin. (Dav) | B59: 58
A60: Skyva Mich. (Dav) | B60: 59
A61: Ponáhlo Mich. (Lib) | B61: 60
A62: Šťastná Nata. (Oře) | B62: 61
A63: Šťastná Domi. (Oře) | B63: 62
A64: Šťastný Jan. (Oře) | B64: 63
A65: Koteljuk Adam. (Oře) | B65: 64
A66: Paliatka Jaku. (Oře) | B66: 65
A67: Auf Tade. (Oře) | B67: 66
A68: Švehla Fili. (Rud) | B68: 67

Sheet Kontakty
A1: Klub | B1: Jméno | C1: Telefon | D1: Mail | E1: Komise mládeže | F1: Rozhodčí | G1: Odd. poradající turnaje | H1: Poznámka
A2: Vrané n/Vltavou | B2: Viktor Sýkora | C2: 724045947 | D2: viktor.sykora@email.cz
A3: Libčice n/Vltavou | B3: Jan Framberk | C3: 737239792 | D3: jan.framberk@accon.cz
B4: Zdeněk Dostál | C4: 724059070 | D4: DostalZ@dpp.cz | E4: Člen
A5: Rudná | B5: Václav Křižka | C5: 724617992 | D5: vaclav.krizka@seznam.cz | E5: Předseda | F5: X | G5: X
B6: Miloš Frýdl | C6: 606529526 | D6: milos.frydl@seznam.cz | F6: X | G6: X | H6: Autor BTM aplikace
A7: Roztoky | B7: Jakub Lukáš | C7: 603962434 | D7: jakub.lukas@outlook.cz
A8: Úholičky | B8: Radka Duchačková | C8: 731450768 | D8: Elegancedoruky@gmail.com | E8: Člen
B9: Vilém Kozel | C9: 602277285 | D9: vilem.kozel@centrum.cz | G9: X
A10: Davle | B10: Pavel Toman | C10: 736509145 | D10: p.toman@seznam.cz | E10: Člen
A11: Ořech | B11: Martin Severa | C11: 721840541 | D11: pylot01@seznam.cz | E11: Člen
B12: Jirka Pavlín | C12: 731464006 | D12: sk@viktorieorech.cz | G12: X
B13: Mirko Furst | C13: 271736534 | D13: mrek.f@seznam.cz | F13: X
A14: Černošice | B14: Petr Charvát | C14: 601 500 295 602 319 479 | D14: sea@ucto-sea.eu | E14: Člen
B15: Jan Souček | C15: 725025843 | D15: johnyxsoucek@gmail.com
A16: Mníšek pod Brdy | B16: Marek Drbohlav | C16: 601125900 | D16: marek.drbohlav@email.cz | E16: Člen

Sheet prezence
A1: Hráč | B1: Oddíl | C1: Narozen | D1: Kategorie | E1: Přítomen
A2: Hlavenka Eli Theodor | B2: Černošice | C2: 2010 | D2: =VLOOKUP(C2,Conf!F:H,3,0) -> U15
A3: Franěk Matyáš | B3: Černošice | C3: 2008 | D3: =VLOOKUP(C3,Conf!F:H,3,0) -> U18
A4: Hlaváček Daniel | B4: Černošice | C4: 2009 | D4: =VLOOKUP(C4,Conf!F:H,3,0) -> U15
A5: Hron Matyáš | B5: Černošice | C5: 2009 | D5: =VLOOKUP(C5,Conf!F:H,3,0) -> U15
A6: Suchý Marek | B6: Černošice | C6: 2008 | D6: =VLOOKUP(C6,Conf!F:H,3,0) -> U18
A7: Hlavenka Joel Mathias | B7: Černošice | C7: 2007 | D7: =VLOOKUP(C7,Conf!F:H,3,0) -> U18
A8: Housa Jiří | B8: Černošice | C8: 2007 | D8: =VLOOKUP(C8,Conf!F:H,3,0) -> U18
A9: Kuliš David | B9: Černošice | C9: 2007 | D9: =VLOOKUP(C9,Conf!F:H,3,0) -> U18
A10: Pajer Filip | B10: Černošice | C10: 2005 | D10: =VLOOKUP(C10,Conf!F:H,3,0) -> U19
A11: Provazník Adam | B11: Černošice | C11: 2005 | D11: =VLOOKUP(C11,Conf!F:H,3,0) -> U19
A13: Hráč | B13: Oddíl | C13: Narozen | D13: Kategorie | E13: Přítomen
A14: Lundák Pavel | B14: Davle | C14: 2011 | D14: =VLOOKUP(C14,Conf!F:H,3,0) -> U13
A15: Středa Lukáš | B15: Davle | C15: 2010 | D15: =VLOOKUP(C15,Conf!F:H,3,0) -> U15
A16: Vybíral Václav | B16: Davle | C16: 2010 | D16: =VLOOKUP(C16,Conf!F:H,3,0) -> U15
A17: Knotek Martin | B17: Davle | C17: 2008 | D17: =VLOOKUP(C17,Conf!F:H,3,0) -> U18
A18: Müller Vojtěch | B18: Davle | C18: 2009 | D18: =VLOOKUP(C18,Conf!F:H,3,0) -> U15
A19: Prokůpek Jiří | B19: Davle | C19: 2009 | D19: =VLOOKUP(C19,Conf!F:H,3,0) -> U15
A20: Toman Olin | B20: Davle | C20: 2008 | D20: =VLOOKUP(C20,Conf!F:H,3,0) -> U18
A21: Chromych Jan | B21: Davle | C21: 2006 | D21: =VLOOKUP(C21,Conf!F:H,3,0) -> U18
A22: Skyva Michal | B22: Davle | C22: 2006 | D22: =VLOOKUP(C22,Conf!F:H,3,0) -> U18
A24: Hráč | B24: Oddíl | C24: Narozen | D24: Kategorie | E24: Přítomen
A25: Framberk Mikuláš | B25: Libčice | C25: 2013 | D25: =VLOOKUP(C25,Conf!F:H,3,0) -> U11
A26: Pojerová Gabriela | B26: Libčice | C26: 2010 | D26: =VLOOKUP(C26,Conf!F:H,3,0) -> U15
A27: Boháč Antonín | B27: Libčice | C27: 2008 | D27: =VLOOKUP(C27,Conf!F:H,3,0) -> U18
A28: Dostál Ondřej | B28: Libčice | C28: 2009 | D28: =VLOOKUP(C28,Conf!F:H,3,0) -> U15
A29: Slapnička Ondřej | B29: Libčice | C29: 2009 | D29: =VLOOKUP(C29,Conf!F:H,3,0) -> U15
A30: Tobolář Jindřich | B30: Libčice | C30: 2009 | D30: =VLOOKUP(C30,Conf!F:H,3,0) -> U15
A31: Dostálová Aneta | B31: Libčice | C31: 2006 | D31: =VLOOKUP(C31,Conf!F:H,3,0) -> U18
A32: Juda František | B32: Libčice | C32: 2006 | D32: =VLOOKUP(C32,Conf!F:H,3,0) -> U18
A33: Nováková Karolina | B33: Libčice | C33: 2005 | D33: =VLOOKUP(C33,Conf!F:H,3,0) -> U19
A34: Patras Matyáš | B34: Libčice | C34: 2007 | D34: =VLOOKUP(C34,Conf!F:H,3,0) -> U18
A35: Ponáhlo Michal | B35: Libčice | C35: 2007 | D35: =VLOOKUP(C35,Conf!F:H,3,0) -> U18
A37: Hráč | B37: Oddíl | C37: Narozen | D37: Kategorie | E37: Přítomen
A38: Andrlík Dalibor | B38: Ořech | C38: 2010 | D38: =VLOOKUP(C38,Conf!F:H,3,0) -> U15
A39: Fiala Tobiáš | B39: Ořech | C39: 2010 | D39: =VLOOKUP(C39,Conf!F:H,3,0) -> U15
A40: Kabátník Ondra | B40: Ořech | C40: 2010 | D40: =VLOOKUP(C40,Conf!F:H,3,0) -> U15
A41: Šimák Jaroslav | B41: Ořech | C41: 2010 | D41: =VLOOKUP(C41,Conf!F:H,3,0) -> U15
A42: Špaček Matěj | B42: Ořech | C42: 2010 | D42: =VLOOKUP(C42,Conf!F:H,3,0) -> U15
A43: Horáčková Anežka | B43: Ořech | C43: 2009 | D43: =VLOOKUP(C43,Conf!F:H,3,0) -> U15
A44: Kranát Petr | B44: Ořech | C44: 2009 | D44: =VLOOKUP(C44,Conf!F:H,3,0) -> U15
A45: Šťastná Dominika | B45: Ořech | C45: 2008 | D45: =VLOOKUP(C45,Conf!F:H,3,0) -> U18
A46: Šťastná Nataly | B46: Ořech | C46: 2008 | D46: =VLOOKUP(C46,Conf!F:H,3,0) -> U18
A47: Šťastný Jan | B47: Ořech | C47: 2008 | D47: =VLOOKUP(C47,Conf!F:H,3,0) -> U18
A48: Šulc Adam | B48: Ořech | C48: 2009 | D48: =VLOOKUP(C48,Conf!F:H,3,0) -> U15
A49: Němejc Melichar | B49: Ořech | C49: 2005 | D49: =VLOOKUP(C49,Conf!F:H,3,0) -> U19
A50: Rein Tomáš | B50: Ořech | C50: 2005 | D50: =VLOOKUP(C50,Conf!F:H,3,0) -> U19
A52: Hráč | B52: Oddíl | C52: Narozen | D52: Kategorie | E52: Přítomen
A53: Hošek Ondřej | B53: Mníšek | C53: 2012 | D53: =VLOOKUP(C53,Conf!F:H,3,0) -> U13
A54: Lacina Thomas | B54: Mníšek | C54: 2012 | D54: =VLOOKUP(C54,Conf!F:H,3,0) -> U13
A55: Nguyen Tuan Tu | B55: Mníšek | C55: 2012 | D55: =VLOOKUP(C55,Conf!F:H,3,0) -> U13
A56: Jesenský Ján | B56: Mníšek | C56: 2010 | D56: =VLOOKUP(C56,Conf!F:H,3,0) -> U15
A57: Kameník Adam | B57: Mníšek | C57: 2010 | D57: =VLOOKUP(C57,Conf!F:H,3,0) -> U15
A58: Drašar Jakub | B58: Mníšek | C58: 2009 | D58: =VLOOKUP(C58,Conf!F:H,3,0) -> U15
A59: Freudl David | B59: Mníšek | C59: 2009 | D59: =VLOOKUP(C59,Conf!F:H,3,0) -> U15
A60: Frinta Matyáš | B60: Mníšek | C60: 2009 | D60: =VLOOKUP(C60,Conf!F:H,3,0) -> U15
A61: Bernard Robin | B61: Mníšek | C61: 2006 | D61: =VLOOKUP(C61,Conf!F:H,3,0) -> U18
A62: Icha Richard | B62: Mníšek | C62: 2005 | D62: =VLOOKUP(C62,Conf!F:H,3,0) -> U19
A64: Hráč | B64: Oddíl | C64: Narozen | D64: Kategorie | E64: Přítomen
A65: Hloch Matěj | B65: Roztoky | C65: 2011 | D65: =VLOOKUP(C65,Conf!F:H,3,0) -> U13
A66: Lukáš Filip nejml. | B66: Roztoky | C66: 2011 | D66: =VLOOKUP(C66,Conf!F:H,3,0) -> U13
A67: Příhonský Ernesto | B67: Roztoky | C67: 2010 | D67: =VLOOKUP(C67,Conf!F:H,3,0) -> U15
A68: Vašků Karolína | B68: Roztoky | C68: 2010 | D68: =VLOOKUP(C68,Conf!F:H,3,0) -> U15
A69: Čepela Ondřej | B69: Roztoky | C69: 2008 | D69: =VLOOKUP(C69,Conf!F:H,3,0) -> U18
A70: Kalinová Hana | B70: Roztoky | C70: 2009 | D70: =VLOOKUP(C70,Conf!F:H,3,0) -> U15
A71: Machek Jan ml. | B71: Roztoky | C71: 2008 | D71: =VLOOKUP(C71,Conf!F:H,3,0) -> U18
A72: Cabicar Šimon | B72: Roztoky | C72: 2005 | D72: =VLOOKUP(C72,Conf!F:H,3,0) -> U19
A73: Kaláb Adam | B73: Roztoky | C73: 2006 | D73: =VLOOKUP(C73,Conf!F:H,3,0) -> U18
A74: Kuchtová Klára | B74: Roztoky | C74: 2005 | D74: =VLOOKUP(C74,Conf!F:H,3,0) -> U19
A75: Lukáš Lukáš | B75: Roztoky | C75: 2006 | D75: =VLOOKUP(C75,Conf!F:H,3,0) -> U18
A76: Stříbrný Jiří Maxmilián | B76: Roztoky | C76: 2006 | D76: =VLOOKUP(C76,Conf!F:H,3,0) -> U18
A77: Vágner Jonáš | B77: Roztoky | C77: 2005 | D77: =VLOOKUP(C77,Conf!F:H,3,0) -> U19
A79: Hráč | B79: Oddíl | C79: Narozen | D79: Kategorie | E79: Přítomen
A80: Juan Tiago | B80: Rudná | C80: 2014 | D80: U11
A81: Petříková Johana | B81: Rudná | C81: 2013 | D81: =VLOOKUP(C81,Conf!F:H,3,0) -> U11
A82: Wimmer Vítek | B82: Rudná | C82: 2012 | D82: =VLOOKUP(C82,Conf!F:H,3,0) -> U13
A83: Olexa Jakub | B83: Rudná | C83: 2011 | D83: =VLOOKUP(C83,Conf!F:H,3,0) -> U13
A84: Bosch Maya | B84: Rudná | C84: 2008 | D84: =VLOOKUP(C84,Conf!F:H,3,0) -> U18
A85: Hrabě Michal | B85: Rudná | C85: 2008 | D85: =VLOOKUP(C85,Conf!F:H,3,0) -> U18
A86: Klika Jakub | B86: Rudná | C86: 2009 | D86: =VLOOKUP(C86,Conf!F:H,3,0) -> U15
A87: Kutil Tomáš | B87: Rudná | C87: 2008 | D87: =VLOOKUP(C87,Conf!F:H,3,0) -> U18
A88: Kutilová Krystýna | B88: Rudná | C88: 2009 | D88: =VLOOKUP(C88,Conf!F:H,3,0) -> U15
A89: Marval Jan | B89: Rudná | C89: 2008 | D89: =VLOOKUP(C89,Conf!F:H,3,0) -> U18
A90: Švarcová Liana | B90: Rudná | C90: 2009 | D90: =VLOOKUP(C90,Conf!F:H,3,0) -> U15
A91: Teichman Radim | B91: Rudná | C91: 2009 | D91: =VLOOKUP(C91,Conf!F:H,3,0) -> U15
A92: Bosch Maxmilian | B92: Rudná | C92: 2005 | D92: =VLOOKUP(C92,Conf!F:H,3,0) -> U19
A93: Jurenka David | B93: Rudná | C93: 2007 | D93: =VLOOKUP(C93,Conf!F:H,3,0) -> U18
A94: Kolbušovský Michal | B94: Rudná | C94: 2005 | D94: =VLOOKUP(C94,Conf!F:H,3,0) -> U19
A95: Teichman Petr | B95: Rudná | C95: 2007 | D95: =VLOOKUP(C95,Conf!F:H,3,0) -> U18
A97: Hráč | B97: Oddíl | C97: Narozen | D97: Kategorie | E97: Přítomen
A98: Ducháček Michal | B98: Úholičky | C98: 2013 | D98: =VLOOKUP(C98,Conf!F:H,3,0) -> U11
A99: Břečková Aneta | B99: Úholičky | C99: 2008 | D99: =VLOOKUP(C99,Conf!F:H,3,0) -> U18
A100: Ducháček Petr | B100: Úholičky | C100: 2009 | D100: =VLOOKUP(C100,Conf!F:H,3,0) -> U15
A101: Kunc Lukáš | B101: Úholičky | C101: 2008 | D101: =VLOOKUP(C101,Conf!F:H,3,0) -> U18
A102: Sazimová Adéla | B102: Úholičky | C102: 2008 | D102: =VLOOKUP(C102,Conf!F:H,3,0) -> U18
A103: Valo Václav | B103: Úholičky | C103: 2009 | D103: =VLOOKUP(C103,Conf!F:H,3,0) -> U15
A104: Yosypenko Michal | B104: Úholičky | C104: 2008 | D104: =VLOOKUP(C104,Conf!F:H,3,0) -> U18
A105: Horony Martin | B105: Úholičky | C105: 2007 | D105: =VLOOKUP(C105,Conf!F:H,3,0) -> U18
A106: Kříž Filip | B106: Úholičky | C106: 2007 | D106: =VLOOKUP(C106,Conf!F:H,3,0) -> U18
A107: Freislebenová Sára | B107: Únětice | C107: 2005 | D107: =VLOOKUP(C107,Conf!F:H,3,0) -> U19

Sheet souhrn
A1: Účast na turnaji po oddílech
A3: Přítomen | B3: x
A5: Popisky řádků | B5: Počet
A6: Černošice | B6: 7
A7: Davle | B7: 5
A8: Libčice | B8: 1
A9: Mníšek | B9: 7
A10: Ořech | B10: 1
A11: Rudná | B11: 11
A12: Úholičky | B12: 9
A13: Celkový součet | B13: 41
A16: Použité herní systémy
A17: D1 | B17: Herní systém C
B18: - dvě 4-členné tabulky o rozdělení do pavouka
B19: - první a druhý jdou do pavouka o 1-4 místo
B20: - třetí a čtvrtý jde do pavouka o 5-8 místo
A21: D2 | B21: Herní systém D
B22: - dvě 4-členné tabulky o rozdělení do pavouka
B23: - hráči na prvních místech v tabulkách hrají o 1-2 místo
B24: - hráči na druhých místech v tabulkách hrají o 3-4 místo
B25: - …
A26: D3 | B26: Herní systém D
B27: - dvě 4-členné tabulky o rozdělení do pavouka
B28: - hráči na prvních místech v tabulkách hrají o 1-2 místo
B29: - hráči na druhých místech v tabulkách hrají o 3-4 místo
B30: - …
A31: D4 | B31: Herní systém D
B32: - dvě 4-členné tabulky o rozdělení do pavouka
B33: - hráči na prvních místech v tabulkách hrají o 1-2 místo
B34: - hráči na druhých místech v tabulkách hrají o 3-4 místo
B35: - …
A36: D5 | B36: Herní systém D
B37: - dvě 4-členné tabulky o rozdělení do pavouka
B38: - hráči na prvních místech v tabulkách hrají o 1-2 místo
B39: - hráči na druhých místech v tabulkách hrají o 3-4 místo
B40: - …
